{"text_format":"1","workbook":"xlsx","n_sheets":13,"sheets":["Основные данные","Титульный лист","Описание","Содержание","Отчет","Подпись","Логический контроль","Пояснения (рус)","Пояснения (каз)","Инструкция","Настройки","Справочник валют","Справочник стран"],"not_rendered":{"charts":0,"images":7,"macros":1,"external_links":0,"defined_names":148,"comments":0,"pivot_tables":0},"unopened":[],"bounds":{"document_bytes":16777216,"sheet_cells":100000,"rows_first":2000,"rows_last":500,"rows_between":2000,"halvings":0,"cell_chars":16384,"cell_head_chars":4096},"cells_cut":0,"cells_raw":0,"read":"whole","date_system":"1900"}

{"sheet":"Основные данные","index":0,"n_rows":34,"n_cols":5,"rows_kept":34,"cut":false,"hidden":false,"merged":[[36,0,39,4],[24,1,24,4],[25,1,25,4],[26,1,26,4],[28,1,28,4],[33,0,34,4],[30,0,31,0],[29,1,29,4],[27,1,27,4],[13,1,13,4],[18,1,18,4],[16,1,16,4],[17,1,17,4],[0,0,1,4],[3,0,4,4],[15,1,15,4],[6,1,6,4],[9,1,9,4],[10,1,10,4],[11,1,11,4],[12,1,12,4],[7,1,7,4],[8,1,8,4],[22,1,22,4],[23,1,23,4],[20,1,20,4],[21,1,21,4],[19,1,19,4]]}
["Отчет об исполнении обязательств"]
[]
[]
["Основные данные"]
[]
[]
["Код отчета","pr_d_2023"]
["Язык заполнения *","Русский язык"]
["Тип резидента"]
["Фамилия, имя, отчество (при наличии) физического лица, наименование юридического лица"]
["ИИН/БИН"]
["Наименование иностранного банка"]
["Страна иностранного банка",""]
["Учетный номер",""]
["Период","Квартал",null,"Год"]
["Дата предоставления отчета"]
["Валюта договора","ДОЛЛАР США"]
["Должность"]
["Руководитель или лицо, уполномоченное на подписание отчета"]
["Ф.И.О. Исполнителя"]
["Телефон исполнителя"]
["Согласны на распространение первичных статистических данных **"]
["Комментарий"]
["Дата отчета"]
["Адрес"]
["Телефон"]
["Адрес электронной почты"]
["Телефон руководителя"]
["Заполняется Национальным Банком Республики Казахстан"]
["Дата предоставления отчета"]
["Разделы",1,4,5,6]
[]
[]
["* При смене языка данные отчета обнулятся. Выберите язык до начала заполнения отчета"]

{"sheet":"Титульный лист","index":1,"n_rows":35,"n_cols":4,"rows_kept":35,"cut":false,"hidden":false,"merged":[[30,1,30,3],[31,1,31,3],[33,1,33,3],[34,1,34,3],[12,1,12,3],[13,1,13,3],[15,1,15,3],[16,1,16,3],[27,1,27,3],[28,1,28,3]]}
[null,null,null,"Қазақстан Республикасында валюталық операцияларды мониторингтеу қағидаларына"]
[null,null,null,{"$f":"CONCATENATE(VLOOKUP(p_report_current_id,p_report,COLUMN(p_report_pril),FALSE),\"-қосымша\")","v":"5-қосымша"}]
[null,null,null,{"$f":"CONCATENATE(\"Приложение \",VLOOKUP(p_report_current_id,p_report,COLUMN(p_report_pril),FALSE))","v":"Приложение 5"}]
[null,null,null,"к Правилам мониторинга валютных операций в Республике Казахстан"]
[]
[]
[null,null,null,"Әкімшілік деректерді"]
[null,null,null,"жинау үшін арналған нысан"]
[null,null,null,"Форма, предназначенная для сбора"]
[null,null,null,"административных данных"]
[]
[]
[null,{"$f":"CONCATENATE(\"«\",VLOOKUP(p_report_current_id,p_report,COLUMN(p_report_name_2)-1,FALSE),\"»\")","v":"«Міндеттемелердің орындалуы туралы есеп»"}]
[null,{"$f":"CONCATENATE(\"«\",VLOOKUP(p_report_current_id,p_report,COLUMN(p_report_name_2)-2,FALSE),\"»\")","v":"«Отчет об исполнении обязательств»"}]
[]
[null,{"$f":"CONCATENATE(\"Есепті кезең: \",IF(p1_year=\"\",\"________\",p1_year),\" жылғы \",IF(p1_quarter=\"\",\"__\",p1_quarter),\" тоқсан\")","v":"Есепті кезең: ________ жылғы __ тоқсан"}]
[null,{"$f":"CONCATENATE(\"Отчетный период: \",IF(p1_quarter=\"\",\"__\",p1_quarter),\" квартал \",IF(p1_year=\"\",\"________\",p1_year),\" года\")","v":"Отчетный период: __ квартал ________ года"}]
[]
[null,{"$f":"CONCATENATE(\"Нысанның индексі: \",VLOOKUP(p_report_current_id,p_report,COLUMN(p_report_index),FALSE))","v":"Нысанның индексі: ПР-Д-5"}]
[null,{"$f":"CONCATENATE(\"Индекс: \",VLOOKUP(p_report_current_id,p_report,COLUMN(p_report_index),FALSE))","v":"Индекс: ПР-Д-5"}]
[]
[null,"Кезеңділігі: тоқсан сайын"]
[null,"Периодичность: ежеквартальная"]
[]
[null,{"$f":"CONCATENATE(\"Ақпаратты ұсынатын тұлғалар тобы: \",IF(VLOOKUP(p_report_current_id,p_report,COLUMN(p_report_type)+1,FALSE)=1,\"резидент\",\"резидент-заңды тұлға\"))","v":"Ақпаратты ұсынатын тұлғалар тобы: резидент"}]
[null,{"$f":"CONCATENATE(\"Круг лиц представляющих информацию: \",IF(VLOOKUP(p_report_current_id,p_report,COLUMN(p_report_type)+1,FALSE)=1,\"резидент\",\"юридическое лицо-резидент\"))","v":"Круг лиц представляющих информацию: резидент"}]
[]
[null,"Есептік нөмір беру орны бойынша Қазақстан Республикасы Ұлттық Банкінің аумақтық филиалына ұсынылады"]
["1\n1","Представляется в территориальный филиал Национального Банка Республики Казахстан по месту присвоения учетного номера"]
[]
["1\n1","Әкімшілік деректерге арналған нысан Қазақстан Республикасы Ұлттық Банкінің www.nationalbank.kz интернет-ресурсына орналастырылған"]
["1\n1","Форма административных данных размещена на интернет-ресурсе Национального Банка Республики Казахстан www.nationalbank.kz"]
[]
[null,"Ұсыну мерзімі: есепті кезеңнен кейінгі айдың 10 (оныншы) күніне (қоса алғанда) дейін"]
[null,"Срок представления: до десятого числа (включительно) месяца, следующего за отчетным периодом"]

{"sheet":"Описание","index":2,"n_rows":0,"n_cols":0,"rows_kept":0,"cut":false,"hidden":true,"merged":[]}

{"sheet":"Содержание","index":3,"n_rows":4,"n_cols":10,"rows_kept":4,"cut":false,"hidden":true,"merged":[[0,0,0,4],[2,3,2,4],[3,3,3,4]]}
["Содержание",null,null,null,null,null,{"$f":"CONCATENATE($A$1)","v":"Содержание"}]
[]
[null,1,"Раздел 1","Сведения об исполнении обязательств",null,{"$f":"NOT(ISERROR(AREAS(p5_1031_cols_num)))","v":false},null,null,{"$f":"CONCATENATE($D$3)","v":"Сведения об исполнении обязательств"},"1\n1"]
[null,2,"Раздел 2","Сведения о накопленной стоимости и доходах",null,{"$f":"SUM(OFFSET(p5_1032_data,ROW(p5_1032_indicator_code)-ROW(p5_1032_data),COLUMN(p5_1032_cols_code)-COLUMN(p5_1032_data),ROWS(p5_1032_indicator_code),COLUMNS(p5_1032_cols_code)))>0","v":false},null,null,{"$f":"CONCATENATE($D$4)","v":"Сведения о накопленной стоимости и доходах"},"1\n1"]

{"sheet":"Отчет","index":4,"n_rows":23,"n_cols":15,"rows_kept":23,"cut":false,"hidden":false,"merged":[[4,3,4,15],[12,2,12,5],[11,3,11,15],[2,3,2,4],[6,3,7,3],[6,4,7,4],[6,5,7,5],[6,6,7,6],[6,7,6,8],[6,11,7,11],[6,12,7,12],[6,13,7,13],[6,14,7,14],[6,9,6,10]]}
[1,null,null,null,null,"Форма"]
[]
[1,null,null,"Учетный номер Национального Банка Республики Казахстан",null,{"$f":"CONCATENATE(p1_rc)","v":""}]
[]
["Раздел 1. Сведения об исполнении обязательств",null,null,"Раздел 1. Сведения об исполнении обязательств"]
[]
["1",null,null,"№ п/п","Вид исполнения обязательства","Код назначения платежа","Название актива","Отправитель",null,"Бенефициар",null,"Дата","Валюта","Сумма, тысяч единиц валюты","Примечание"]
[null,null,null,null,null,null,null,"Признак резидентства","Наименование/ фамилия, имя, отчество (при наличии)","Признак резидентства","Наименование/ фамилия, имя, отчество (при наличии)"]
[null,null,null,"1","2","3","4","5","6","7","8","9","10","11","12"]
[null,null,null,"1001","1002","1003","1004","1005","1006","1007","1008","1009","1010","1011","1012"]
[]
["Раздел 2. Сведения о накопленной стоимости и доходах",null,null,"Раздел 2. Сведения о накопленной стоимости и доходах"]
["1",null,"тысяч долларов Соединенных Штатов Америки"]
[null,null,"№","Код строки","Наименование показателя","Всего"]
[null,null,null,"А","Б",1]
[null,null,1,"10","Накопленная стоимость на конец отчетного периода, в том числе в виде:",{"$f":"+F17+F18+F20+F21","v":0}]
[null,null,2,"11","     денег"]
[null,null,3,"12","     ценных бумаг, долей участия, в том числе:"]
[null,null,4,"12.1","         акций, паев инвестиционных фондов, фондов денежного рынка"]
[null,null,5,"13","     недвижимости"]
[null,null,6,"14","     прочее (расшифровать)"]
[null,null,7,"20","Доход резидента в отчетном периоде"]
[null,null,8,"21","Доход нерезидента в отчетном периоде"]

{"sheet":"Подпись","index":5,"n_rows":29,"n_cols":12,"rows_kept":29,"cut":false,"hidden":false,"merged":[[24,1,24,8],[4,4,4,11],[5,4,5,11],[4,1,4,3],[1,6,1,11],[2,1,2,11],[5,1,5,3],[13,2,13,11],[15,3,15,11],[8,3,8,11],[9,3,9,11],[19,4,19,8],[20,4,20,8],[21,4,21,8],[17,5,17,11],[6,3,7,11]]}
[null,"Түсіндірме:"]
[null,"Комментарий: "]
[null,{"$f":"CONCATENATE(p1_comment)","v":""}]
[]
[null,"Ескертпе:"]
[{"$f":"CONCATENATE(p1_comment)","v":""},"Примечание:",null,null,{"$f":"CONCATENATE(p1_comment)","v":""}]
[null,"Резидент",null,{"$f":"CONCATENATE(p1_enterprise)","v":""}]
[null,"Резидент"]
[null,null,null,"(жеке тұлғаның тегі, аты, әкесінің аты (ол бар болса), заңды тұлғаның атауы)"]
[null,null,null,"(фамилия, имя, отчество (при его наличии) физического лица, наименование юридического лица)"]
[null,"Жеке сәйкестендіру нөмірі, бизнес сәйкестендіру нөмірі"]
[null,"Индивидуальный идентификационный номер, бизнес-идентификационный номер ",null,null,null,null,null,null,null,null,null,{"$f":"CONCATENATE(p1_bin)","v":""}]
[null,"Мекенжайы"]
[null,"Адрес",{"$f":"CONCATENATE(p1_address)","v":""}]
[null,"Телефоны"]
[null,"Телефон ",null,{"$f":"CONCATENATE(p1_phone)","v":""}]
[null,"Электрондық пошта мекенжайы"]
[null,"Адрес электронной почты",null,null,null,{"$f":"CONCATENATE(p1_email)","v":""}]
[null,"Орындаушы"]
[null,"Исполнитель",null,null,{"$f":"CONCATENATE(p1_executor)","v":""},null,null,null,null,null,null,{"$f":"CONCATENATE(p1_executor_phone)","v":""}]
[null,null,null,null,"тегі, аты және әкесінің аты (ол бар болса)",null,null,null,null,null,"қолы,","телефоны"]
[null,null,null,null,"фамилия, имя и отчество (при его наличии)",null,null,null,null,null,"подпись,","телефон"]
[null,"Басшы немесе есепке қол қоюға уәкілетті адам"]
[null,"Руководитель или лицо, уполномоченное на подписание отчета"]
[null,{"$f":"CONCATENATE(p1_position_fio)","v":""},null,null,null,null,null,null,null,null,null,{"$f":"CONCATENATE(p1_position_phone)","v":""}]
[null,null,null,null,null,null,null,null,null,null,"қолы,","телефоны"]
[null,null,null,null,null,null,null,null,null,null,"подпись,","телефон"]
[null,"Есепке қол қойылған күн ",null,null,null,{"$f":"IF(p1_report_date=\"\",\"20__ жылғы «____» ___________\",CONCATENATE(YEAR(p1_report_date),\" жылғы «\",DAY(p1_report_date),\"» \",VLOOKUP(MONTH(p1_report_date),p_month,COLUMN(p_month_name)-1,FALSE)))","v":"20__ жылғы «____» ___________"}]
[null,"Дата подписания отчета ",null,null,null,{"$f":"IF(p1_report_date=\"\",\"«____» ___________ 20___ года\",CONCATENATE(\"«\",DAY(p1_report_date),\"» \",VLOOKUP(MONTH(p1_report_date),p_month,COLUMN(p_month_name)-2,FALSE),\" \",YEAR(p1_report_date),\" года\"))","v":"«____» ___________ 20___ года"}]

{"sheet":"Логический контроль","index":6,"n_rows":0,"n_cols":0,"rows_kept":0,"cut":false,"hidden":true,"merged":[]}

{"sheet":"Пояснения (рус)","index":7,"n_rows":48,"n_cols":1,"rows_kept":48,"cut":false,"hidden":false,"merged":[]}
[]
[]
["Приложение"]
["к форме, предназначенной для"]
["сбора административных данных,"]
["«Отчет об исполнении обязательств»"]
[]
[]
["Пояснение по заполнению формы,"]
["предназначенной для сбора административных данных,"]
["«Отчет об исполнении обязательств»"]
[]
[]
["Глава 1. Общие положения"]
[]
["1. Настоящее пояснение определяет единые требования по заполнению формы, предназначенной для сбора административных данных, «Отчет об исполнении обязательств» (далее – Форма)."]
["2. Форма разработана в соответствии с пунктом 5 статьи 14 Закона Республики Казахстан от 2 июля 2018 года «О валютном регулировании и валютном контроле»."]
["3. Форма представляется ежеквартально резидентами Республики Казахстан по валютным договорам с учетным номером на операции третьих лиц по участию в капитале, с ценными бумагами, производными финансовыми инструментами, правами собственности на недвижимость, правами на объекты интеллектуальной собственности, на совместную деятельность, доверительное управление, траст, счета филиалов (представительств) резидента с местом нахождения за пределами Республики Казахстан."]
["4. Форму подписывают руководитель или лицо, уполномоченное на подписание отчета (для юридических лиц), и исполнитель."]
[]
[]
["Глава 2. Заполнение Формы"]
[]
["5. Для целей заполнения Формы используются следующие понятия:"]
["1) программа опционов на ценные бумаги эмитентов-нерезидентов для работников – программа, по которой работник юридического лица-резидента приобретает оговоренное количество ценных бумаг эмитентов-нерезидентов, являющихся инвесторами данного юридического лица и (или) инвесторами инвесторов данного юридического лица;"]
["2) ценные бумаги эмитентов-нерезидентов – финансовые инструменты, признаваемые ценными бумагами в соответствии с законодательством Республики Казахстан и (или) страны эмитента, включая депозитарные расписки, базовым активом которых являются ценные бумаги"]
["эмитентов-нерезидентов."]
["6. В Разделе 1 отражаются сведения об исполнении обязательств по валютному договору в отчетном периоде."]
["В графе 2 отражается вид исполнения обязательств по валютному договору:"]
["1) в виде платежей и (или) переводов денег;"]
["2) в виде поставки товаров (выполнения работ, оказания услуг);"]
["3) в виде передачи актива (ценные бумаги, доли участия, паи инвестиционных фондов, недвижимость, право на объект интеллектуальной собственности, иные виды актива, требующие расшифровки);"]
["4) иное (требующее расшифровки)."]
["Если исполнение обязательства осуществляется в виде денег, то в графе 3 указывается код назначения платежа, графа 4 не заполняется, а в графах 5, 6, 7, 8, 9, 10, 11 указываются отправитель денег, бенефициар денег, дата платежа, валюта платежа, сумма платежа в тысячах единиц валюты платежа на основе платежного документа на перевод (получение) денег."]
["Платежи и (или) переводы денег отражаются в Форме, включая налоги. В Форме отражается возврат денег (возврат платежа без исполнения)."]
["Если исполнение обязательства осуществляется в виде передачи актива, то в графе 4 указывается наименование актива, графа 3 не заполняется, а в графах 5, 6, 7, 8, 9, 10, 11 указываются лицо, передающее актив, лицо, принимающее актив, дата передачи актива, валюта стоимости актива, сумма стоимости актива в тысячах единиц валюты договора."]
["Если исполнение обязательства осуществляется в виде выполнения работ, оказания услуг или иным способом, то графы 3, 4 не заполняются, а в графах 5, 6, 7, 8, 9, 10, 11 указываются лицо, исполняющее обязательство, лицо, принимающее исполнение обязательства, дата исполнения обязательства, валюта и сумма стоимости исполненного обязательства в тысячах единиц валюты договора."]
["Графы 3, 5, 7 заполняются в соответствии с Правилами применения кодов секторов экономики и назначения платежей, утвержденными постановлением Правления Национального Банка Республики Казахстан от 31 августа 2016 года № 203, зарегистрированным в Реестре государственной регистрации нормативных правовых актов под № 14365. Графа 10 заполняется в соответствии с национальным классификатором Республики Казахстан НК РК 07 ISO 4217 «Коды для представления валют и фондов»."]
["При представлении Формы по счету в иностранном банке филиала (представительства) юридического лица с местом нахождения за пределами Республики Казахстан, в Форме отражаются внутрикорпоративные переводы денег: отправленные юридическим лицом данному филиалу (представительству) на этот счет, полученные юридическим лицом от данного филиала (представительства) с этого счета."]
["7. В Разделе 2 отражаются сведения о накопленной стоимости на конец отчетного периода и доходах за отчетный период."]
["Раздел 2 заполняется в следующих случаях:"]
["1) при представлении Формы по счету в иностранном банке, открытому филиалу (представительству) юридического лица с местом нахождения за пределами Республики Казахстан: отражается остаток суммы денег на конец отчетного периода на этом счете, вознаграждение, начисленное резиденту в отчетном периоде иностранным банком по данному счету;"]
["2) при представлении Формы по операциям, связанным с приобретением права собственности на недвижимость за границей: отражается стоимость недвижимости на конец отчетного периода, доход резидента от недвижимости в отчетном периоде;"]
["3) при передаче денег и иного имущества в доверительное управление, траст, отражается стоимость переданного имущества на конец отчетного периода, доходы резидента (нерезидента) в отчетном периоде, в том числе за управление имуществом;"]
["4) по программе опционов на ценные бумаги эмитентов-нерезидентов, заключаемой юридическим лицом-резидентом для своих работников, отражается суммарная стоимость ценных бумаг эмитентов-нерезидентов у работников;"]
["5) по операциям, связанным с передачей денег и финансовых инструментов профессиональным участникам рынка ценных бумаг, осуществляющим валютные операции по поручению клиентов, на счета для учета и хранения денег, принадлежащих клиентам, отражается стоимость переданного имущества на конец отчетного периода, доходы резидента (нерезидента) в отчетном периоде."]
["8. В случае отсутствия информации за отчетный период Форма представляется с нулевыми значениями."]
["9. Корректировки (изменения, дополнения) в Форму вносятся в течение 6 (шести) месяцев после срока представления, установленного пунктом 24 Правил мониторинга валютных операций в Республике Казахстан, утвержденных постановлением Правления Национального Банка Республики Казахстан от 10 апреля 2019 года № 64, зарегистрированным в Реестре государственной регистрации нормативных правовых актов под № 18544."]

{"sheet":"Пояснения (каз)","index":8,"n_rows":46,"n_cols":1,"rows_kept":46,"cut":false,"hidden":false,"merged":[]}
["«Міндеттемелердің"]
["Орындалуы туралы есеп»"]
["әкімшілік деректерді жинауға"]
["арналған нысанға қосымша"]
[]
[]
["«Міндеттемелердің орындалуы туралы есеп»"]
["әкімшілік деректерді жинауға арналған нысанды толтыру бойынша түсіндірме"]
[]
[]
["1-тарау. Жалпы ережелер"]
[]
["1. Осы түсіндірме «Міндеттемелердің орындалуы туралы есеп» әкімшілік деректерді жинауға арналған нысанды (бұдан әрі – Нысан) толтыру бойынша бірыңғай талаптарды айқындайды."]
["2. Нысан «Валюталық реттеу және валюталық бақылау туралы»"]
["2018 жылғы 2 шілдедегі Қазақстан Республикасы Заңы 14-бабының"]
["5-тармағына сәйкес әзірленді."]
["3. Қазақстан Республикасының резиденттері Нысанды үшінші тұлғалардың капиталға қатысу бойынша, бағалы қағаздармен, туынды қаржы құралдарымен, жылжымайтын мүліктің меншік құқығымен, зияткерлік меншік объектілері, бірлескен қызмет құқығымен операцияларға есептік нөмірі берілген валюталық шарттар, сенімгерлік басқару, траст, Қазақстан Республикасының шегінде орналасқан орны бар резидент филиалдарының (өкілдігінің) шоттары бойынша тоқсан сайын ұсынады."]
["4. Нысанға басшы немесе есепке қол қоюға уәкілетті адам (заңды тұлғалар үшін) және орындаушы қол қояды."]
[]
[]
["2-тарау. Нысанды толтыру"]
[]
["5. Нысанды толтыру мақсатында мына ұғымдар пайдаланылады:"]
["1) бейрезидент эмитенттердің қызметкерлерге арналған бағалы қағаздарға опциондар бағдарламасы – резидент заңды тұлғаның қызметкерлері осы заңды тұлғаның инвесторы және (немесе) осы заңды тұлғаның инвесторларының инвесторы болып табылатын бейрезидент эмитенттерден бағалы қағаздардың келісілген санын сатып алатын бағдарлама;"]
["2) бейрезидент эмитенттердің бағалы қағаздары – Қазақстан Республикасының және бейрезидент эмитенттердің бағалы қағаздары базалық активтері болып табылатын депозиторлық қолхаттарды қоса алғанда, эмитент елінің заңнамасына сәйкес бағалы қағаздар деп танылатын қаржы құралдары."]
["6. 1-бөлімде есепті кезеңде валюталық шарт бойынша міндеттемелерді орындау туралы мәліметтер көрсетіледі."]
["2-бағанда валюталық шарт бойынша міндеттемелерді мынадай орындау түрі көрсетіледі:"]
["1) төлемдер және (немесе) ақша аударымдары түрінде;"]
["2) тауарларды жеткізу (жұмысты орындау, қызмет көрсету) түрінде;"]
["3) активті (бағалы қағаздар, қатысу үлестері, инвестициялық қорлардың пайлары, жылжымайтын мүлік, зияткерлік меншік объектісіне арналған құқық, талдаманы қажет ететін активтің өзге түрлері) беру түрінде;"]
["4) өзге (талдаманы қажет ететін)."]
["Егер міндеттемені орындау ақша түрінде жүзеге асырылатын болса, онда 3-бағанда төлем белгілеу коды көрсетіледі, 4-баған толтырылмайды, ал 5, 6, 7, 8, 9, 10, 11-бағандарда ақша аударуға (алуға) арналған төлем құжаты негізінде ақша жөнелтуші, ақша бенефициары, төлем күні, төлем валютасы, төлем сомасы төлем валютасының мың бірлігімен көрсетіледі."]
["Төлемдер және (немесе) ақша аударымдары Нысанда салықты қоса алғанда көрсетіледі. Нысанда ақшаны қайтару (төлемді орындамай қайтару) көрсетіледі."]
["Егер міндеттемелерді орындау активті беру түрінде жүзеге асырылатын болса, онда 4-бағанда активтің атауы көрсетіледі, 3-баған толтырылмайды, ал 5, 6, 7, 8, 9, 10, 11-бағандарда активті беруші тұлға, активті қабылдаушы тұлға, активті беру күні, актив құнының валютасы, актив құнының сомасы шарт валютасының мың бірлігімен көрсетіледі."]
["Егер міндеттемелерді орындау жұмысты орындау, қызмет көрсету немесе өзге тәсілмен жүзеге асырылатын болса, онда 3, 4-бағандар толтырылмайды, ал 5, 6, 7, 8, 9, 10, 11-бағандарда міндеттемені орындайтын тұлға, міндеттемелердің орындалуын қабылдайтын тұлға, міндеттемелерді орындау күні, орындалған міндеттемелердің валютасы мен сомасы шарт валютасының мың бірлігімен көрсетіледі."]
["3, 5, 7-бағандар Нормативтік құқықтық актілерді мемлекеттік тіркеу тізілімінде № 14365 болып тіркелген, Қазақстан Республикасы Ұлттық Банкі Басқармасының 2016 жылғы 31 тамыздағы № 203 қаулысымен бекітілген Экономика секторларының және төлемдер белгілеу кодтарын қолдану қағидаларына сәйкес толтырылады. 10-баған «Валюталар мен қорларды белгілеуге арналған кодтар» ҚР ҰС 07 ISO 4217 Қазақстан Республикасының ұлттық сыныптауышына сәйкес толтырылады."]
["Қазақстан Республикасынан тыс жерде орналасу орны бар заңды тұлға филиалының (өкілдігінің) шетелдік банкіндегі шоты бойынша Нысанды берген кезде Нысанда: заңды тұлға осы филиалға (өкілдікке) бұл шотқа жіберген, заңды тұлға осы филиалдан (өкілдіктен) бұл шоттан жіберген ақшаны ішкі корпоративтік аудару көрсетіледі."]
["7. 2-бөлімде есепті кезеңнің соңында жинақталған құн және есепті кезеңдегі кірістер туралы мәліметтер көрсетіледі."]
["2-бөлім мына жағдайларда толтырылады:"]
["1) Қазақстан Республикасынан тыс жерде орналасу орны бар заңды тұлғаның филиалына (өкілдігіне) ашылған шетелдік банктегі шот бойынша Нысанды ұсынған кезде: есепті кезеңнің соңында осы шотта ақша сомасының қалдығы, шетелдік банк резидентке есепті кезеңде осы шот бойынша есептеген сыйақы көрсетіледі;"]
["2) шетелде жылжымайтын мүлікке меншік құқығын сатып алумен байланысты операциялар бойынша Нысанды ұсынған кезде: есепті кезеңнің соңындағы жылжымайтын мүліктің құны, резиденттің есепті кезеңдегі жылжымайтын мүліктен кірісі көрсетіледі;"]
["3) ақша мен өзге мүлікті сенімгерлік басқаруға, трастқа берген кезде берілген мүліктің есепті кезеңнің соңындағы құны, резиденттің (бейрезиденттің) есепті кезеңдегі кірістері, оның ішінде мүлікті басқарғаны үшін кірістері көрсетіледі;"]
["4) резидент заңды тұлға өзінің қызметкерлері үшін жасайтын бейрезидент эмитенттердің бағалы қағаздарына опциондар бағдарламасы бойынша қызметкерлердегі бейрезидент эмитенттердің бағалы қағаздарының жиынтық құны көрсетіледі;"]
["5) клиенттердің тапсырмалары бойынша валюталық операцияларды жүзеге асыратын бағалы қағаздар нарығына кәсіби қатысушыларға клиенттерге тиесілі ақшаны есепке алу және сақтау шоттарына ақша мен қаржы құралдарын берумен байланысты операциялар бойынша есепті кезеңнің соңында берілген мүліктің құны, резиденттің (бейрезиденттің) есепті кезеңдегі кірістері көрсетіледі."]
["8. Есепті кезеңде ақпарат болмаған жағдайда, Нысан нөлдік мәнмен ұсынылады."]
["9. Нысанға түзетулер (өзгерістер, толықтырулар) Нормативтік құқықтық актілерді мемлекеттік тіркеу тізілімінде № 18544 болып тіркелген, Қазақстан Республикасының Ұлттық Банкі Басқармасының 2019 жылғы 10 сәуірдегі № 64 қаулысымен бекітілген Қазақстан Республикасында валюталық операцияларды мониторингтеу қағидаларының 24-тармағында белгіленген ұсыну мерзімінен кейін 6 (алты) ай ішінде енгізіледі."]

{"sheet":"Инструкция","index":9,"n_rows":59,"n_cols":6,"rows_kept":59,"cut":false,"hidden":false,"merged":[[48,0,48,15],[50,0,50,15],[53,0,53,15],[55,0,55,15],[58,0,58,15],[46,0,46,15],[0,0,0,14],[2,0,2,15],[4,0,4,15],[6,0,6,15],[8,0,8,15],[14,0,14,15],[36,0,36,15],[40,0,40,15],[41,0,41,15],[43,0,43,15],[45,0,45,15]]}
["Инструкция по работе с шаблоном"]
[]
["Внимание! Для корректной работы шаблона не следует отключать макросы."]
[]
["I. Предварительные настройки"]
[]
["Если при открытии шаблона выдалось предупреждение системы безопасности: «Отключить макросы», «Не отключать макросы» следует выбрать опцию \"Не отключать макросы\""]
[]
["Если при открытии файла, содержащего макросы, появляется желтая панель сообщений со значком щита Предупреждение системы безопасности, следует нажать на кнопку \"Включить содержимое\" (рис.1)"]
[]
[]
[]
[null,null,null,null,null,"Рис.1"]
[]
["1. Для начала работы с шаблоном найдите вкладку \"Надстройки\" в пункте меню (рис.2). Проверьте открываются ли ниспадающие списки на листе \"Основные данные\" (рис.3)"]
[]
[]
[]
[]
[]
[]
[]
[]
[]
[]
[null,null,null,null,null,"Рис.2"]
[]
[]
[]
[]
[]
[]
[]
[]
[null,null,null,null,null,"Рис.3"]
[]
["В случае отсутствия вкладки \"Надстройки\" (или есть вкладка, но отсутствует пункт меню Вклады в ней) и/или ниспадающих списков, следует включить макросы.\nПункт меню Файл -> Параметры -> категория Центр управления безопасностью -> кнопочка Параметры центра управления безопасностью -> категория Параметры макросов -> выбрать опцию Включить все макросы -> нажать кнопку Ок. Сохранить, закрыть и открыть шаблон заново. Вкладка «Надстройки» должна появиться"]
[]
[]
[]
["II. Заполнение отчета (шаблона)"]
["1. Начните заполнение с листа \"Основные данные\":\n     -укажите желаемый язык (Русский, Қазақ тілі) до начала заполнения отчета. Если данные отчета были заполнены, при смене языка они обнуляться\n     -заполните требуемые поля"]
["2. После заполнения данных на листе \"Основные данные\" перейдите к заполнению листа \"Отчет\""]
["3. Заполните графы \"Всего\", \"в том числе в виде денег\""]
["4. Информация заполняется в тысячах единиц валюты валютного договора"]
["III. Отправка отчета в Национальный Банк"]
["Сохраните отчет на компьютере и отправьте его по Порталу в Национальный Банк Республики Казахстан (https://nbportal.nationalbank.kz/)"]
[]
["Часто задаваемые вопросы"]
["Вопрос: \"У нас в шаблоне запрашивается пароль, чтобы снять защиту. Как ее снять? Что делать?\""]
["Ответ: Никаких паролей вводить не нужно. Скорее всего заполнение шаблона некорректно. Нельзя добавлять вручную графы, считать формулы рядом с графами, т.к. шаблон защищен, если предусмотрен автоматический выбор из ниспадающего списка нельзя вручную вводить значения в это поле."]
[]
["Вопрос: \"Я заполнял(-а) шаблон, но все исчезло, не сохранилось, шаблон найти не могу\""]
["Ответ: Прежде чем начать заполнение отчета, сохраните его у себя на компьютере (Файл-Сохранить как (присвойте файлу имя)."]
[]
["Вопрос: \"Требуется ли необходимость дублирования отчета на бумажном носителе, если отчет представлен посредством Портала?\""]
["Ответ: Нет, не требуется"]
[]
["Для распечатки настоящей инструкции выполните следующие действия (нажмите пункт меню Файл-Печать) или нажмите кнопку                  "]

{"sheet":"Настройки","index":10,"n_rows":553,"n_cols":50,"rows_kept":553,"cut":false,"hidden":true,"merged":[[197,0,197,23],[209,0,209,11],[159,0,159,6],[417,0,417,11],[551,0,551,5],[535,0,535,6],[429,0,429,2],[494,0,494,2],[500,0,500,2],[11,0,11,6],[189,0,189,6],[0,0,0,2],[6,0,6,6],[16,0,16,6],[174,0,174,7]]}
["Справочник языков"]
["ID","Код","Наименование",null,"ID Текущего языка",null,1,2,3,4]
[1,null,"Русский язык",null,{"$f":"IF(VLOOKUP(A3,p_language,3)=p1_language,A3,IF(VLOOKUP(A4,p_language,3)=p1_language,A4,A5))","v":1},null,2019,2020,2021,2022,2023,2024,2025,2026,2027,2028,2029,2030,2031,2032,2033,2034,2035,2036,2037,2038,2039,2040,2041,2042,2043,2044,2045,2046,2047,2048,2049]
[2,null,"Қазақ тілі","Для формулы проверки РС","ID Текущего отчета",null,"√"]
[0,null,null,{"$f":"VLOOKUP(p_report_current_id,p_report,COLUMN(p_report_rc_mask),FALSE)","v":"00.00.000.КЭИГДФ"},14,null,{"$f":"1=1","v":true}]
[]
["Справочник логический"]
["ID","Код слева","Наименование на русском языке","Наименование на казахском языке","Наименование","Перенос текста или вставка символов \" / \"","Код справа"]
[1,null,"Да","Иә",{"$f":"CONCATENATE(IF(B9<>\"\",CONCATENATE(B9,\" \"),\"\"),IF(p_language_current_id=1,C9,IF(p_language_current_id=2,D9,IF(C9=D9,C9,CONCATENATE(D9,IF(F9=0,\" / \",CHAR(10)),C9)))),IF(G9<>\"\",CONCATENATE(\" \",G9),\"\"))","v":"Да (1)"},0,"(1)"]
[0,null,"Нет","Жоқ",{"$f":"CONCATENATE(IF(B10<>\"\",CONCATENATE(B10,\" \"),\"\"),IF(p_language_current_id=1,C10,IF(p_language_current_id=2,D10,IF(C10=D10,C10,CONCATENATE(D10,IF(F10=0,\" / \",CHAR(10)),C10)))),IF(G10<>\"\",CONCATENATE(\" \",G10),\"\"))","v":"Нет (0)"},0,"(0)"]
[]
["Типы резидентов"]
["ID","Код слева","Наименование на русском языке","Наименование на казахском языке","Наименование","Перенос текста или вставка символов \" / \"","Код справа"]
[0,null,"Физическое лицо","Жеке Тұлға",{"$f":"CONCATENATE(IF(B14<>\"\",CONCATENATE(B14,\" \"),\"\"),IF(p_language_current_id=1,C14,IF(p_language_current_id=2,D14,IF(C14=D14,C14,CONCATENATE(D14,IF(F14=0,\" / \",CHAR(10)),C14)))),IF(G14<>\"\",CONCATENATE(\" \",G14),\"\"))","v":"Физическое лицо"},1]
[1,null,"Предприятие","Кәсіпорын",{"$f":"CONCATENATE(IF(B15<>\"\",CONCATENATE(B15,\" \"),\"\"),IF(p_language_current_id=1,C15,IF(p_language_current_id=2,D15,IF(C15=D15,C15,CONCATENATE(D15,IF(F15=0,\" / \",CHAR(10)),C15)))),IF(G15<>\"\",CONCATENATE(\" \",G15),\"\"))","v":"Предприятие"},1]
[]
["Справочник переводов"]
["ID","Код слева","Наименование на русском языке","Наименование на казахском языке","Наименование","Перенос текста","Код справа","Лист","Наименование в объектах","Отчет","Стиль"]
["A1",null,{"$f":"VLOOKUP(p_report_current_id,p_report,COLUMN(p_report_name_2)-2,FALSE)","v":"Отчет об исполнении обязательств"},{"$f":"VLOOKUP(p_report_current_id,p_report,COLUMN(p_report_name_2)-1,FALSE)","v":"Міндеттемелердің орындалуы туралы есеп"},{"$f":"CONCATENATE(IF(B19<>\"\",CONCATENATE(B19,\" \"),\"\"),IF(p_language_current_id=1,C19,IF(p_language_current_id=2,D19,IF(C19=D19,C19,CONCATENATE(D19,IF(F19=0,\" / \",CHAR(10)),C19)))),IF(G19<>\"\",CONCATENATE(\" \",G19),\"\"))","v":"Отчет об исполнении обязательств"},1,null,1,{"$f":"IF(p_language_current_id=2,CONCATENATE(D19),CONCATENATE(C19))","v":"Отчет об исполнении обязательств"}]
["A4",null,"Основные данные","Негізгі мәліметтер","Основные данные",1,null,1,"Основные данные"]
["A7",null,"Код отчета","Есептің коды","Код отчета",0,null,1,"Код отчета"]
["A8",null,"Язык заполнения","Тілі","Язык заполнения *",0,"*",1,"Язык заполнения"]
["A9",null,"Тип резидента","Резидент типі",{"$f":"CONCATENATE(IF(B23<>\"\",CONCATENATE(B23,\" \"),\"\"),IF(p_language_current_id=1,C23,IF(p_language_current_id=2,D23,IF(C23=D23,C23,CONCATENATE(D23,IF(F23=0,\" / \",CHAR(10)),C23)))),IF(G23<>\"\",CONCATENATE(\" \",G23),\"\"))","v":"Тип резидента"},0,null,1,{"$f":"IF(p_language_current_id=2,CONCATENATE(D23),CONCATENATE(C23))","v":"Тип резидента"}]
["A10",null,{"$f":"IF(VLOOKUP(p_report_current_id,p_report,COLUMN(p_report_type),FALSE)=4,IF(VLOOKUP(p_report_current_id,p_report,COLUMN(p_report_type)+1,FALSE)=2,VLOOKUP(\"enterprise_name\",p_caption,3,FALSE),VLOOKUP(\"resident_name\",p_caption,3,FALSE)),VLOOKUP(\"enterprise\",p_caption,3,FALSE))","v":"Фамилия, имя, отчество (при наличии) физического лица, наименование юридического лица"},{"$f":"IF(VLOOKUP(p_report_current_id,p_report,COLUMN(p_report_type),FALSE)=4,IF(VLOOKUP(p_report_current_id,p_report,COLUMN(p_report_type)+1,FALSE)=2,VLOOKUP(\"enterprise_name\",p_caption,4,FALSE),VLOOKUP(\"resident_name\",p_caption,4,FALSE)),VLOOKUP(\"enterprise\",p_caption,4,FALSE))","v":"Жеке тұлғаның тегі, аты, әкесінің аты (бар болса), заңды тұлғаның атауы"},"Фамилия, имя, отчество (при наличии) физического лица, наименование юридического лица",0,null,1,"Фамилия, имя, отчество (при наличии) физического лица, наименование юридического лица"]
["A11",null,{"$f":"IF(VLOOKUP(p_report_current_id,p_report,COLUMN(p_report_type),FALSE)=4,IF(VLOOKUP(p_report_current_id,p_report,COLUMN(p_report_type)+1,FALSE)=2,VLOOKUP(\"bin\",p_caption,3,FALSE),VLOOKUP(\"agent_bin\",p_caption,3,FALSE)),VLOOKUP(\"bin\",p_caption,3,FALSE))","v":"ИИН/БИН"},{"$f":"IF(VLOOKUP(p_report_current_id,p_report,COLUMN(p_report_type),FALSE)=4,IF(VLOOKUP(p_report_current_id,p_report,COLUMN(p_report_type)+1,FALSE)=2,VLOOKUP(\"bin\",p_caption,4,FALSE),VLOOKUP(\"agent_bin\",p_caption,4,FALSE)),VLOOKUP(\"bin\",p_caption,4,FALSE))","v":"ЖСН/БСН"},"ИИН/БИН",0,null,1,"ИИН/БИН"]
["A12",null,"Наименование иностранного банка","Шетелдік банктің атауы",{"$f":"CONCATENATE(IF(B26<>\"\",CONCATENATE(B26,\" \"),\"\"),IF(p_language_current_id=1,C26,IF(p_language_current_id=2,D26,IF(C26=D26,C26,CONCATENATE(D26,IF(F26=0,\" / \",CHAR(10)),C26)))),IF(G26<>\"\",CONCATENATE(\" \",G26),\"\"))","v":"Наименование иностранного банка"},0,null,1,{"$f":"IF(p_language_current_id=2,CONCATENATE(D26),CONCATENATE(C26))","v":"Наименование иностранного банка"}]
["A13",null,"Страна иностранного банка","Шетел банкінің елі",{"$f":"CONCATENATE(IF(B27<>\"\",CONCATENATE(B27,\" \"),\"\"),IF(p_language_current_id=1,C27,IF(p_language_current_id=2,D27,IF(C27=D27,C27,CONCATENATE(D27,IF(F27=0,\" / \",CHAR(10)),C27)))),IF(G27<>\"\",CONCATENATE(\" \",G27),\"\"))","v":"Страна иностранного банка"},0,null,1,{"$f":"IF(p_language_current_id=2,CONCATENATE(D27),CONCATENATE(C27))","v":"Страна иностранного банка"}]
["A14",null,"Учетный номер","Есептік нөмірі","Учетный номер",0,null,1,"Учетный номер"]
["A15",null,"Период","Кезең","Период",0,null,1,"Период"]
["B15",null,"Квартал","Тоқсан","Квартал",0,null,1,"Квартал"]
["D15",null,"Год","Жыл","Год",0,null,1,"Год"]
["A16",null,"Дата предоставления отчета","Есепті беру күні","Дата предоставления отчета",0,null,1,"Дата предоставления отчета"]
["A17",null,{"$f":"IF(VLOOKUP(p_report_current_id,p_report,COLUMN(p_report_type),FALSE)=4,IF(VLOOKUP(p_report_current_id,p_report,COLUMN(p_report_type)+1,FALSE)=2,VLOOKUP(\"pr_32_currency\",p_caption,3,FALSE),VLOOKUP(\"pr_currency\",p_caption,3,FALSE)),VLOOKUP(\"pb_currency\",p_caption,3,FALSE))","v":"Валюта договора"},{"$f":"IF(VLOOKUP(p_report_current_id,p_report,COLUMN(p_report_type),FALSE)=4,IF(VLOOKUP(p_report_current_id,p_report,COLUMN(p_report_type)+1,FALSE)=2,VLOOKUP(\"pr_32_currency\",p_caption,4,FALSE),VLOOKUP(\"pr_currency\",p_caption,4,FALSE)),VLOOKUP(\"pb_currency\",p_caption,4,FALSE))","v":"Шарттың валютасы"},"Валюта договора",0,null,1,"Валюта договора"]
["A18",null,{"$f":"IF(VLOOKUP(p_report_current_id,p_report,COLUMN(p_report_type))=4,VLOOKUP(\"position\",p_caption,3,FALSE),VLOOKUP(\"manager\",p_caption,3,FALSE))","v":"Должность"},{"$f":"IF(VLOOKUP(p_report_current_id,p_report,COLUMN(p_report_type),FALSE)=4,VLOOKUP(\"position\",p_caption,4,FALSE),VLOOKUP(\"manager\",p_caption,4,FALSE))","v":"Лауазымы"},"Должность",0,null,1,"Должность"]
["A19",null,{"$f":"IF(VLOOKUP(p_report_current_id,p_report,COLUMN(p_report_type),FALSE)=4,VLOOKUP(\"position_fio\",p_caption,3,FALSE),VLOOKUP(\"accountant\",p_caption,3,FALSE))","v":"Руководитель или лицо, уполномоченное на подписание отчета"},{"$f":"IF(VLOOKUP(p_report_current_id,p_report,COLUMN(p_report_type),FALSE)=4,VLOOKUP(\"position_fio\",p_caption,4,FALSE),VLOOKUP(\"accountant\",p_caption,4,FALSE))","v":"Басшы немесе есепке қол қоюға уәкілетті адам"},"Руководитель или лицо, уполномоченное на подписание отчета",0,null,1,"Руководитель или лицо, уполномоченное на подписание отчета"]
["A20",null,"Ф.И.О. Исполнителя","Орындаушының аты-жөні","Ф.И.О. Исполнителя",0,null,1,"Ф.И.О. Исполнителя"]
["A21",null,"Телефон исполнителя","Орындаушының телефоны","Телефон исполнителя",0,null,1,"Телефон исполнителя"]
["A22",null,"Согласны на распространение первичных статистических данных","Алғашқы статистикалық деректерді таратуға келісеміз","Согласны на распространение первичных статистических данных **",1,"**",1,"Согласны на распространение первичных статистических данных"]
["A23",null,"Комментарий","Түсініктемелер","Комментарий",1,null,1,"Комментарий"]
["A24",null,"Дата отчета","Есептің күні",{"$f":"CONCATENATE(IF(B40<>\"\",CONCATENATE(B40,\" \"),\"\"),IF(p_language_current_id=1,C40,IF(p_language_current_id=2,D40,IF(C40=D40,C40,CONCATENATE(D40,IF(F40=0,\" / \",CHAR(10)),C40)))),IF(G40<>\"\",CONCATENATE(\" \",G40),\"\"))","v":"Дата отчета"},0,null,1,{"$f":"IF(p_language_current_id=2,CONCATENATE(D40),CONCATENATE(C40))","v":"Дата отчета"}]
["A25",null,"Адрес","Мекен-жайы","Адрес",1,null,1,"Адрес"]
["A26",null,"Телефон","Телефоны","Телефон",1,null,1,"Телефон","Телефон организации"]
["A27",null,"Адрес электронной почты","Электрондық пошта мекенжайы",{"$f":"CONCATENATE(IF(B43<>\"\",CONCATENATE(B43,\" \"),\"\"),IF(p_language_current_id=1,C43,IF(p_language_current_id=2,D43,IF(C43=D43,C43,CONCATENATE(D43,IF(F43=0,\" / \",CHAR(10)),C43)))),IF(G43<>\"\",CONCATENATE(\" \",G43),\"\"))","v":"Адрес электронной почты"},1,null,1,{"$f":"IF(p_language_current_id=2,CONCATENATE(D43),CONCATENATE(C43))","v":"Адрес электронной почты"},"e-mail респондента"]
["A28",null,"Телефон руководителя","Басшы телефоны",{"$f":"CONCATENATE(IF(B44<>\"\",CONCATENATE(B44,\" \"),\"\"),IF(p_language_current_id=1,C44,IF(p_language_current_id=2,D44,IF(C44=D44,C44,CONCATENATE(D44,IF(F44=0,\" / \",CHAR(10)),C44)))),IF(G44<>\"\",CONCATENATE(\" \",G44),\"\"))","v":"Телефон руководителя"},1,null,1,{"$f":"IF(p_language_current_id=2,CONCATENATE(D44),CONCATENATE(C44))","v":"Телефон руководителя"}]
["A29",null,"Заполняется Национальным Банком Республики Казахстан","Қазақстан Республикасы Ұлттық Банкі толтырады","Заполняется Национальным Банком Республики Казахстан",1,null,1,"Заполняется Национальным Банком Республики Казахстан"]
["A30",null,"Дата предоставления отчета","Есепті беру күні",{"$f":"CONCATENATE(IF(B46<>\"\",CONCATENATE(B46,\" \"),\"\"),IF(p_language_current_id=1,C46,IF(p_language_current_id=2,D46,IF(C46=D46,C46,CONCATENATE(D46,IF(F46=0,\" / \",CHAR(10)),C46)))),IF(G46<>\"\",CONCATENATE(\" \",G46),\"\"))","v":"Дата предоставления отчета"},1,null,1,{"$f":"IF(p_language_current_id=2,CONCATENATE(D46),CONCATENATE(C46))","v":"Дата предоставления отчета"}]
["A31",null,"Разделы","Бөлімдер","Разделы",1,null,1,"Разделы"]
["A34","*","При смене языка данные отчета обнулятся. Выберите язык до начала заполнения отчета","Тілді өзгерткен кезде есептің мәліметтері нөлге аударылады. Есепті толтыра бастамай тілді таңдаңыз.","* При смене языка данные отчета обнулятся. Выберите язык до начала заполнения отчета",1,null,1,"При смене языка данные отчета обнулятся. Выберите язык до начала заполнения отчета"]
["A37",{"$f":"IF(VLOOKUP(p_report_current_id,p_report,COLUMN(p_report_type),FALSE)=4,\"\",\"**\")","v":""},{"$f":"IF(VLOOKUP(p_report_current_id,p_report,COLUMN(p_report_type),FALSE)=4,\"\",\"Данный пункт заполняется согласно пункту 5 статьи 8 Закона Республики Казахстан от 19 марта 2010 года «О государственной статистике»\")","v":""},{"$f":"IF(VLOOKUP(p_report_current_id,p_report,COLUMN(p_report_type),FALSE)=4,\"\",\"Аталған тармақ «Мемлекеттік статистика туралы» Қазақстан Республикасының 2010 жылғы 19 наурыздағы Заңының 8-бабының 5-тармағына сәйкес толтырылады\")","v":""},"",1,null,1,""]
["p3_title",null,"Содержание","Мазмұны","Содержание",1,null,null,"Содержание"]
["p3_col_check",null,"Укажите (галочкой) заполненные части","Толтырылған бөліктерді көрсетіңіз (қанат белгісімен)","Укажите (галочкой) заполненные части",1,null,null,"Укажите (галочкой) заполненные части"]
["p4_g1",null,"Форма","Нысан","Форма",1,null,null,"Форма"]
["p4_d3",null,"Резидент","Резидент","Резидент",1,null,null,"Резидент"]
["p4_e4",null,{"$f":"IF(VLOOKUP(p_report_current_id,p_report,COLUMN(p_report_type),FALSE)=4,IF(VLOOKUP(p_report_current_id,p_report,COLUMN(p_report_type)+1,FALSE)=2,VLOOKUP(\"p4_e42\",p_caption,3,FALSE),VLOOKUP(\"p4_e41\",p_caption,3,FALSE)),\"\")","v":"(фамилия, имя, отчество (при наличии) физического лица, наименование юридического лица)"},{"$f":"IF(VLOOKUP(p_report_current_id,p_report,COLUMN(p_report_type),FALSE)=4,IF(VLOOKUP(p_report_current_id,p_report,COLUMN(p_report_type)+1,FALSE)=2,VLOOKUP(\"p4_e42\",p_caption,4,FALSE),VLOOKUP(\"p4_e41\",p_caption,4,FALSE)),\"\")","v":"(жеке тұлғаның тегі, аты, әкесінің аты (бар болса), заңды тұлғаның атауы)"},"(фамилия, имя, отчество (при наличии) физического лица, наименование юридического лица)",1,null,null,"(фамилия, имя, отчество (при наличии) физического лица, наименование юридического лица)"]
["p4_d5",null,{"$f":"IF(VLOOKUP(p_report_current_id,p_report,COLUMN(p_report_type),FALSE)=4,IF(VLOOKUP(p_report_current_id,p_report,COLUMN(p_report_type)+1,FALSE)=2,VLOOKUP(\"p4_d52\",p_caption,3,FALSE),VLOOKUP(\"p4_d51\",p_caption,3,FALSE)),\"\")","v":"Индивидуальный идентификационный номер, бизнес-идентификационный номер"},{"$f":"IF(VLOOKUP(p_report_current_id,p_report,COLUMN(p_report_type),FALSE)=4,IF(VLOOKUP(p_report_current_id,p_report,COLUMN(p_report_type)+1,FALSE)=2,VLOOKUP(\"p4_d52\",p_caption,4,FALSE),VLOOKUP(\"p4_d51\",p_caption,4,FALSE)),\"\")","v":"Жеке сәйкестендіру нөмірі, бизнес сәйкестендіру нөмірі"},"Индивидуальный идентификационный номер, бизнес-идентификационный номер",1,null,null,"Индивидуальный идентификационный номер, бизнес-идентификационный номер"]
["p4_d6",null,"Учетный номер Национального Банка Республики Казахстан","Қазақстан Республикасы Ұлттық Банкінің есептік нөмірі","Учетный номер Национального Банка Республики Казахстан",1,null,null,"Учетный номер Национального Банка Республики Казахстан"]
["p4_d8",null,{"$f":"IF(VLOOKUP(p_report_current_id,p_report,COLUMN(p_report_type),FALSE)=4,IF(VLOOKUP(p_report_current_id,p_report,COLUMN(p_report_type)+1,FALSE)=2,VLOOKUP(\"pr_32_currency\",p_caption,3,FALSE),VLOOKUP(\"pr_currency\",p_caption,3,FALSE)),VLOOKUP(\"pb_currency\",p_caption,3,FALSE))","v":"Валюта договора"},{"$f":"IF(VLOOKUP(p_report_current_id,p_report,COLUMN(p_report_type),FALSE)=4,IF(VLOOKUP(p_report_current_id,p_report,COLUMN(p_report_type)+1,FALSE)=2,VLOOKUP(\"pr_32_currency\",p_caption,4,FALSE),VLOOKUP(\"pr_currency\",p_caption,4,FALSE)),VLOOKUP(\"pb_currency\",p_caption,4,FALSE))","v":"Шарттың валютасы"},{"$f":"CONCATENATE(IF(B57<>\"\",CONCATENATE(B57,\" \"),\"\"),IF(p_language_current_id=1,C57,IF(p_language_current_id=2,D57,IF(C57=D57,C57,CONCATENATE(D57,IF(F57=0,\" / \",CHAR(10)),C57)))),IF(G57<>\"\",CONCATENATE(\" \",G57),\"\"))","v":"Валюта договора"},1,null,null,{"$f":"IF(p_language_current_id=2,CONCATENATE(D57),CONCATENATE(C57))","v":"Валюта договора"}]
["p4_d7",null,"Наименование иностранного банка, страна","Шетелдік банктің атауы, елі",{"$f":"CONCATENATE(IF(B58<>\"\",CONCATENATE(B58,\" \"),\"\"),IF(p_language_current_id=1,C58,IF(p_language_current_id=2,D58,IF(C58=D58,C58,CONCATENATE(D58,IF(F58=0,\" / \",CHAR(10)),C58)))),IF(G58<>\"\",CONCATENATE(\" \",G58),\"\"))","v":"Наименование иностранного банка, страна"},1,null,null,{"$f":"IF(p_language_current_id=2,CONCATENATE(D58),CONCATENATE(C58))","v":"Наименование иностранного банка, страна"}]
["p4_e41",null,"(фамилия, имя, отчество (при наличии) физического лица, наименование юридического лица)","(жеке тұлғаның тегі, аты, әкесінің аты (бар болса), заңды тұлғаның атауы)","(фамилия, имя, отчество (при наличии) физического лица, наименование юридического лица)",1,null,null,"(фамилия, имя, отчество (при наличии) физического лица, наименование юридического лица)"]
["p4_e42",null,"(наименование юридического лица)","(заңды тұлғаның атауы)",{"$f":"CONCATENATE(IF(B60<>\"\",CONCATENATE(B60,\" \"),\"\"),IF(p_language_current_id=1,C60,IF(p_language_current_id=2,D60,IF(C60=D60,C60,CONCATENATE(D60,IF(F60=0,\" / \",CHAR(10)),C60)))),IF(G60<>\"\",CONCATENATE(\" \",G60),\"\"))","v":"(наименование юридического лица)"},1,null,null,{"$f":"IF(p_language_current_id=2,CONCATENATE(D60),CONCATENATE(C60))","v":"(наименование юридического лица)"}]
["p4_d51",null,"Индивидуальный идентификационный номер, бизнес-идентификационный номер","Жеке сәйкестендіру нөмірі, бизнес сәйкестендіру нөмірі",{"$f":"CONCATENATE(IF(B61<>\"\",CONCATENATE(B61,\" \"),\"\"),IF(p_language_current_id=1,C61,IF(p_language_current_id=2,D61,IF(C61=D61,C61,CONCATENATE(D61,IF(F61=0,\" / \",CHAR(10)),C61)))),IF(G61<>\"\",CONCATENATE(\" \",G61),\"\"))","v":"Индивидуальный идентификационный номер, бизнес-идентификационный номер"},1,null,null,{"$f":"IF(p_language_current_id=2,CONCATENATE(D61),CONCATENATE(C61))","v":"Индивидуальный идентификационный номер, бизнес-идентификационный номер"}]
["p4_d52",null,"Бизнес-идентификационный номер","Бизнес сәйкестендіру нөмірі",{"$f":"CONCATENATE(IF(B62<>\"\",CONCATENATE(B62,\" \"),\"\"),IF(p_language_current_id=1,C62,IF(p_language_current_id=2,D62,IF(C62=D62,C62,CONCATENATE(D62,IF(F62=0,\" / \",CHAR(10)),C62)))),IF(G62<>\"\",CONCATENATE(\" \",G62),\"\"))","v":"Бизнес-идентификационный номер"},1,null,null,{"$f":"IF(p_language_current_id=2,CONCATENATE(D62),CONCATENATE(C62))","v":"Бизнес-идентификационный номер"}]
["indicator_name_1",null,"Виды услуг","Қызмет түрлері","Виды услуг",0,null,null,"Виды услуг"]
["indicator_name_2",null," "," "," ",1,null,null," "]
["cols_num",null,"№","№","№",1,null,null,"№"]
["pb_str_1",null,"Код показателя из формы 1-ПБ, указанный в части 5.1","5.1-бөлігінде көрсетілген 1-ТБ нысанынан көрсеткіштің коды","Код показателя из формы 1-ПБ, указанный в части 5.1",1,null,null,"Код показателя из формы 1-ПБ, указанный в части 5.1"]
["pb_value_1",null,"Задолженность, указанная в части 5.1","5.1-бөлігінде көрсетілген берешек","Задолженность, указанная в части 5.1",1,null,null,"Задолженность, указанная в части 5.1"]
["pb_str_2",null,"Код показателя из формы 1-ПБ, указанный в части 6.1","6.1-бөлігінде көрсетілген 1-ТБ нысанынан көрсеткіштің коды","Код показателя из формы 1-ПБ, указанный в части 6.1",1,null,null,"Код показателя из формы 1-ПБ, указанный в части 6.1"]
["pb_value_2",null,"Задолженность, указанная в части 6.1","6.1-бөлігінде көрсетілген берешек",{"$f":"CONCATENATE(IF(B69<>\"\",CONCATENATE(B69,\" \"),\"\"),IF(p_language_current_id=1,C69,IF(p_language_current_id=2,D69,IF(C69=D69,C69,CONCATENATE(D69,IF(F69=0,\" / \",CHAR(10)),C69)))),IF(G69<>\"\",CONCATENATE(\" \",G69),\"\"))","v":"Задолженность, указанная в части 6.1"},1,null,null,{"$f":"IF(p_language_current_id=2,CONCATENATE(D69),CONCATENATE(C69))","v":"Задолженность, указанная в части 6.1"}]
["indicator_name",null,"Наименование показателя","Көрсеткіш атауы","Наименование показателя",1,null,null,"Наименование показателя"]
["indicator_code",null,"Код строки","Жол коды","Код строки",1,null,null,"Код строки"]
["indicator_num",null,"№","№","№",1,null,null,"№"]
["c_1","*","Ф.И.О. – Фамилия, имя, отчество (при наличии)","Т.А.Ә. – Тегі, аты, әкесінің аты (бар болған жағдайында)","* Ф.И.О. – Фамилия, имя, отчество (при наличии)",1,null,null,"Ф.И.О. – Фамилия, имя, отчество (при наличии)"]
["c_2","**","БИН(бизнес идентификационный номер)/ ИИН (индивидуальный идентификационный номер)/ ИНР (идентификационный номер регистрации) – идентификационные номера, присваиваемые в соответствии с законодательством Казахстана/иностранного государства","БСН (бизнес-сәйкестендіру номері)/ ЖСН (жеке сәйкестендіру номері)/ ТСН (тіркеу сәйкестендіру номері) – Қазақстанның/шет елдің заңнамасына сәйкес берілген сәйкестендіру номерлері","** БИН(бизнес идентификационный номер)/ ИИН (индивидуальный идентификационный номер)/ ИНР (идентификационный номер регистрации) – идентификационные номера, присваиваемые в соответствии с законодательством Казахстана/иностранного государства",1,null,null,"БИН(бизнес идентификационный номер)/ ИИН (индивидуальный идентификационный номер)/ ИНР (идентификационный номер регистрации) – идентификационные номера, присваиваемые в соответствии с законодательством Казахстана/иностранного государства"]
["c_3","*","Долл. США – в тысячах долларов Соединенных штатов Америки","АҚШ долл. – мың Америка құрама штаттарының долларында","* Долл. США – в тысячах долларов Соединенных штатов Америки",1,null,null,"Долл. США – в тысячах долларов Соединенных штатов Америки"]
["c_0",null,1,2,"1",1,null,null,"1"]
["c_0x2",null,"1\n1","2\n2",{"$f":"CONCATENATE(IF(B77<>\"\",CONCATENATE(B77,\" \"),\"\"),IF(p_language_current_id=1,C77,IF(p_language_current_id=2,D77,IF(C77=D77,C77,CONCATENATE(D77,IF(F77=0,\" / \",CHAR(10)),C77)))),IF(G77<>\"\",CONCATENATE(\" \",G77),\"\"))","v":"1\n1"},1,null,null,{"$f":"IF(p_language_current_id=2,CONCATENATE(D77),CONCATENATE(C77))","v":"1\n1"}]
["currency_0",null,"тенге","теңге","тенге",0,null,null,"тенге"]
["currency_1",null,"в тыс. долл. США","мың АҚШ долл.","в тыс. долл. США *",1,"*",null,"в тыс. долл. США"]
["currency_2",null,"в тысячах долларов Соединенных штатов Америки","мың Америка құрама штаттарының долларында","в тысячах долларов Соединенных штатов Америки",1,null,null,"в тысячах долларов Соединенных штатов Америки"]
["currency_3",null,"тысяч единиц валюты счета","шот валютасының мың бірлігі","тысяч единиц валюты счета",1,null,null,"тысяч единиц валюты счета"]
["currency_7",null,"тысяч единиц валюты валютного договора","валюталық шарт валютасының мың бірлігі",{"$f":"CONCATENATE(IF(B82<>\"\",CONCATENATE(B82,\" \"),\"\"),IF(p_language_current_id=1,C82,IF(p_language_current_id=2,D82,IF(C82=D82,C82,CONCATENATE(D82,IF(F82=0,\" / \",CHAR(10)),C82)))),IF(G82<>\"\",CONCATENATE(\" \",G82),\"\"))","v":"тысяч единиц валюты валютного договора"},1,null,null,{"$f":"IF(p_language_current_id=2,CONCATENATE(D82),CONCATENATE(C82))","v":"тысяч единиц валюты валютного договора"}]
["currency_4",null,"тысяч долларов Соединенных Штатов Америки (далее – США)","мың Америка Құрама Штаттарының (бұдан әрі – АҚШ) доллары",{"$f":"CONCATENATE(IF(B83<>\"\",CONCATENATE(B83,\" \"),\"\"),IF(p_language_current_id=1,C83,IF(p_language_current_id=2,D83,IF(C83=D83,C83,CONCATENATE(D83,IF(F83=0,\" / \",CHAR(10)),C83)))),IF(G83<>\"\",CONCATENATE(\" \",G83),\"\"))","v":"тысяч долларов Соединенных Штатов Америки (далее – США)"},1,null,null,{"$f":"IF(p_language_current_id=2,CONCATENATE(D83),CONCATENATE(C83))","v":"тысяч долларов Соединенных Штатов Америки (далее – США)"}]
["currency_5",null,"тысяч долларов США","мың АҚШ доллары",{"$f":"CONCATENATE(IF(B84<>\"\",CONCATENATE(B84,\" \"),\"\"),IF(p_language_current_id=1,C84,IF(p_language_current_id=2,D84,IF(C84=D84,C84,CONCATENATE(D84,IF(F84=0,\" / \",CHAR(10)),C84)))),IF(G84<>\"\",CONCATENATE(\" \",G84),\"\"))","v":"тысяч долларов США"},1,null,null,{"$f":"IF(p_language_current_id=2,CONCATENATE(D84),CONCATENATE(C84))","v":"тысяч долларов США"}]
["currency_6",null,"тысяч долларов Соединенных Штатов Америки","мың Америка Құрама Штаттарының доллары",{"$f":"CONCATENATE(IF(B85<>\"\",CONCATENATE(B85,\" \"),\"\"),IF(p_language_current_id=1,C85,IF(p_language_current_id=2,D85,IF(C85=D85,C85,CONCATENATE(D85,IF(F85=0,\" / \",CHAR(10)),C85)))),IF(G85<>\"\",CONCATENATE(\" \",G85),\"\"))","v":"тысяч долларов Соединенных Штатов Америки"},1,null,null,{"$f":"IF(p_language_current_id=2,CONCATENATE(D85),CONCATENATE(C85))","v":"тысяч долларов Соединенных Штатов Америки"}]
["col_name_1",null,"в том числе","оның ішінде","в том числе :",1,":",null,"в том числе"]
["col_name_2",null,"Всего","Барлығы","Всего",1,null,null,"Всего"]
["col_name_3",null,"По видам валют","Валюта түрлері бойынша","По видам валют",0,null,null,"По видам валют"]
["err_caption",null,"Ошибка ввода данных","Мәліметтерді енгізу қатесі","Ошибка ввода данных",0,null,null,"Ошибка ввода данных"]
["warning_caption",null,"Предупреждение","Ескертпе","Предупреждение",0,null,null,"Предупреждение"]
["pb_01_code",null,"Код показателя из формы 1-ПБ","1-ТБ нысанынан көрсеткіштің коды","Код показателя из формы 1-ПБ",0,null,null,"Код показателя из формы 1-ПБ"]
["pb_01_value",null,"Задолженность на _ (в тыс. долл. США)","_ жағдайы бойынша берешек (мың АҚШ долл.)","Задолженность на _ (в тыс. долл. США) * **",0,"* **",null,"Задолженность на _ (в тыс. долл. США)"]
["enterprise",null,"Предприятие","Кәсіпорын",{"$f":"CONCATENATE(IF(B93<>\"\",CONCATENATE(B93,\" \"),\"\"),IF(p_language_current_id=1,C93,IF(p_language_current_id=2,D93,IF(C93=D93,C93,CONCATENATE(D93,IF(F93=0,\" / \",CHAR(10)),C93)))),IF(G93<>\"\",CONCATENATE(\" \",G93),\"\"))","v":"Предприятие"},0,null,null,{"$f":"IF(p_language_current_id=2,CONCATENATE(D93),CONCATENATE(C93))","v":"Предприятие"}]
["enterprise_name",null,"Наименование юридического лица","Заңды тұлғаның атауы","Наименование юридического лица",0,null,null,"Наименование юридического лица"]
["resident_name",null,"Фамилия, имя, отчество (при наличии) физического лица, наименование юридического лица","Жеке тұлғаның тегі, аты, әкесінің аты (бар болса), заңды тұлғаның атауы","Фамилия, имя, отчество (при наличии) физического лица, наименование юридического лица",0,null,null,"Фамилия, имя, отчество (при наличии) физического лица, наименование юридического лица"]
["agent_name",null,"Наименование/фамилия, имя, отчество (при наличии) инвестора","Инвестордың атауы, тегі, аты, әкесінің аты (бар болса)","Наименование/фамилия, имя, отчество (при наличии) инвестора",0,null,null,"Наименование/фамилия, имя, отчество (при наличии) инвестора"]
["bin",null,"БИН","БСН","БИН",0,null,null,"БИН"]
["agent_bin",null,"ИИН/БИН","ЖСН/БСН","ИИН/БИН",0,null,null,"ИИН/БИН"]
["is_enterprise",null,"Юридическое лицо","Юридическое лицо","Юридическое лицо",0,null,null,"Юридическое лицо"]
["select",null,"Выберите из списка","Выберите из списка","Выберите из списка",0,null,null,"Выберите из списка"]
["manager",null,"Ф.И.О. Руководителя","Басшының аты-жөні","Ф.И.О. Руководителя",0,null,null,"Ф.И.О. Руководителя"]
["position",null,"Должность","Лауазымы","Должность",0,null,null,"Должность"]
["accountant",null,"Ф.И.О. Главного бухгалтера","Бас бухгалтердің аты-жөні","Ф.И.О. Главного бухгалтера",0,null,null,"Ф.И.О. Главного бухгалтера"]
["position_fio",null,"Руководитель или лицо, уполномоченное на подписание отчета","Басшы немесе есепке қол қоюға уәкілетті адам","Руководитель или лицо, уполномоченное на подписание отчета",0,null,null,"Руководитель или лицо, уполномоченное на подписание отчета"]
["pr_32_currency",null,"Валюта счета","Шот валютасы","Валюта счета",0,null,null,"Валюта счета"]
["pr_currency",null,"Валюта договора","Шарттың валютасы","Валюта договора",0,null,null,"Валюта договора"]
["pb_currency",null,"Валюта","Валюта","Валюта",0,null,null,"Валюта"]
["ok",null,"Ок","Ок","Ок",0,null,null,"Ок"]
["cancel",null,"Отмена","Болдырмау","Отмена",0,null,null,"Отмена"]
["add",null,"Добавить","Қосу","Добавить",0,null,null,"Добавить"]
["del",null,"Удалить","Алып тастау","Удалить",0,null,null,"Удалить"]
["edit",null,"Изменить","Өзгерту","Изменить",0,null,null,"Изменить"]
["clear",null,"Очистить","Тазалау","Очистить",0,null,null,"Очистить"]
["sort",null,"Сортировать","Сұрыптау","Сортировать",0,null,null,"Сортировать"]
["err_field",null,"Значение поля \"{0}\" имеет недопустимое значение.","\"{0}\" жолының мәні жарамайды.","Значение поля \"{0}\" имеет недопустимое значение.",0,null,null,"Значение поля \"{0}\" имеет недопустимое значение."]
["err_double",null,"Значение поля \"{0}\" дублируется.","начение поля \"{0}\" дублируется.",{"$f":"CONCATENATE(IF(B116<>\"\",CONCATENATE(B116,\" \"),\"\"),IF(p_language_current_id=1,C116,IF(p_language_current_id=2,D116,IF(C116=D116,C116,CONCATENATE(D116,IF(F116=0,\" / \",CHAR(10)),C116)))),IF(G116<>\"\",CONCATENATE(\" \",G116),\"\"))","v":"Значение поля \"{0}\" дублируется."},0,null,null,{"$f":"IF(p_language_current_id=2,CONCATENATE(D116),CONCATENATE(C116))","v":"Значение поля \"{0}\" дублируется."}]
["err_list",null,"Значение поля {0} не найдено в списке.","{0} жолының мәні тізімде табылмады.","Значение поля {0} не найдено в списке.",0,null,null,"Значение поля {0} не найдено в списке."]
["err_quarter",null,"Значение поля \"Квартал\" может иметь только следующие значения: \"1\", \"2\", \"3\", \"4\".","\"Тоқсан\" жолы тек келесі мәндерді қабылдай алады: \"1\", \"2\", \"3\", \"4\".","Значение поля \"Квартал\" может иметь только следующие значения: \"1\", \"2\", \"3\", \"4\".",0,null,null,"Значение поля \"Квартал\" может иметь только следующие значения: \"1\", \"2\", \"3\", \"4\"."]
["err_year",null,"Значение поля \"Год\" должно лежать в диапазоне от {0} до {1}","\"Жылы\" жолының мәні {0} бастап {1} дейінгі диапазонда болу керек.",{"$f":"CONCATENATE(IF(B119<>\"\",CONCATENATE(B119,\" \"),\"\"),IF(p_language_current_id=1,C119,IF(p_language_current_id=2,D119,IF(C119=D119,C119,CONCATENATE(D119,IF(F119=0,\" / \",CHAR(10)),C119)))),IF(G119<>\"\",CONCATENATE(\" \",G119),\"\"))","v":"Значение поля \"Год\" должно лежать в диапазоне от {0} до {1}"},0,null,null,{"$f":"IF(p_language_current_id=2,CONCATENATE(D119),CONCATENATE(C119))","v":"Значение поля \"Год\" должно лежать в диапазоне от {0} до {1}"}]
["err_date",null,"Значение поля {0} должно лежать в диапазоне от {1} до {2}.","{0} жолының мәні {1} бастап {3} дейінгі диапазонда болу керек.","Значение поля {0} должно лежать в диапазоне от {1} до {2}.",0,null,null,"Значение поля {0} должно лежать в диапазоне от {1} до {2}."]
["err_message",null,"Значение поля имеет недопустимое значение.","Жолдың мәні жарамайды.","Значение поля имеет недопустимое значение.",0,null,null,"Значение поля имеет недопустимое значение."]
["err_extra",null,"Один или более листов с дополнительными данными не скрыт. Хотите ли Вы скрыть их?","Қосымша мәліметтері бар бір және одан астам парақ жасырылмаған. Оларды жасырғыңыз келеді ме?","Один или более листов с дополнительными данными не скрыт. Хотите ли Вы скрыть их?",0,null,null,"Один или более листов с дополнительными данными не скрыт. Хотите ли Вы скрыть их?"]
["err_protect",null,"Книга или один или более листов с  не защищен. Хотите ли Вы защитить их?","Бір және одан астам парақ қорғалмаған. Оларды қорғағыңыз келеді ме?","Книга или один или более листов с  не защищен. Хотите ли Вы защитить их?",0,null,null,"Книга или один или более листов с  не защищен. Хотите ли Вы защитить их?"]
["err_part",null,"Значение поля \"Раздел\" имеет недопустимое значение.","\"Бөлім\" жолының мәні жарамайды.","Значение поля \"Раздел\" имеет недопустимое значение.",0,null,null,"Значение поля \"Раздел\" имеет недопустимое значение."]
["err_n2",null,"Тип данных вводимой Вами информации должен иметь числовой тип. Максимальное количество знаков после разделителя дробной части - 2.","Сіз енгізетін ақпараттың мәліметтерінің типі сандық болуға тиіс. Бөлшек бөлігінің бөлгішінен кейінгі белгілердің максималды саны - 2.","Тип данных вводимой Вами информации должен иметь числовой тип. Максимальное количество знаков после разделителя дробной части - 2.",0,null,null,"Тип данных вводимой Вами информации должен иметь числовой тип. Максимальное количество знаков после разделителя дробной части - 2."]
["err_n",null,"Тип данных вводимой Вами информации должен иметь числовой тип.","Сіз енгізетін ақпараттың мәліметтерінің типі сандық болуға тиіс.","Тип данных вводимой Вами информации должен иметь числовой тип.",0,null,null,"Тип данных вводимой Вами информации должен иметь числовой тип."]
["part",null,"Раздел","Бөлім","Раздел",0,null,null,"Раздел"]
["count",null,"Количество строк","Количество строк","Количество строк",0,null,null,"Количество строк"]
["password",null,"Пароль","Паролі","Пароль",0,null,null,{"$f":"CONCATENATE(A129,\"|\",C129,\"|\",D129)","v":"password|Пароль|Паролі"}]
["err_password",null,"Неверный пароль","Паролі дұрыс емес","Неверный пароль",1,null,null,"err_password|Неверный пароль|Паролі дұрыс емес"]
["Data entry in account",null,"Ввод данных в отчет","Ввод данных в отчет","Ввод данных в отчет",0,null,null,"Data entry in account|Ввод данных в отчет|Ввод данных в отчет"]
["Data edit on sheet",null,"Изменение данных на листах","Изменение данных на листах",{"$f":"CONCATENATE(IF(B132<>\"\",CONCATENATE(B132,\" \"),\"\"),IF(p_language_current_id=1,C132,IF(p_language_current_id=2,D132,IF(C132=D132,C132,CONCATENATE(D132,IF(F132=0,\" / \",CHAR(10)),C132)))),IF(G132<>\"\",CONCATENATE(\" \",G132),\"\"))","v":"Изменение данных на листах"},0,null,null,"Data edit on sheet|Изменение данных на листах|Изменение данных на листах"]
["Data edit on sheet with deposit",null,"Вклады","Салымдар","Вклады",0,null,null,"Data edit on sheet with deposit|Вклады|Салымдар"]
["Add deposit",null,"Добавить вклад","Добавить вклад","Добавить вклад",0,null,null,"Add deposit|Добавить вклад|Добавить вклад"]
["Delete deposit",null,"Удалить вклад","Удалить вклад","Удалить вклад",0,null,null,"Delete deposit|Удалить вклад|Удалить вклад"]
["Data edit on sheet with agent",null,"Инвесторы","Инвесторлар","Инвесторы",0,null,null,"Data edit on sheet with agent|Инвесторы|Инвесторлар"]
["Add agent",null,"Добавить инвестора","Добавить инвестора","Добавить инвестора",0,null,null,"Add agent|Добавить инвестора|Добавить инвестора"]
["Delete agent",null,"Удалить инвестора","Удалить инвестора","Удалить инвестора",0,null,null,"Delete agent|Удалить инвестора|Удалить инвестора"]
["Edit agent",null,"Изменить инвестора","Изменить инвестора","Изменить инвестора",0,null,null,"Edit agent|Изменить инвестора|Изменить инвестора"]
["Sort agent",null,"Сортировать инвесторов","Сортировать инвесторов","Сортировать инвесторов",0,null,null,"Sort agent|Сортировать инвесторов|Сортировать инвесторов"]
["Data edit on sheet with str",null,"Отправители","Жөнелтуші","Отправители",0,null,null,"Data edit on sheet with str|Отправители|Жөнелтуші"]
["Add str",null,"Добавить отправителя","Добавить отправителя","Добавить отправителя",0,null,null,"Add str|Добавить отправителя|Добавить отправителя"]
["Delete str",null,"Удалить отправителя","Удалить отправителя","Удалить отправителя",0,null,null,"Delete str|Удалить отправителя|Удалить отправителя"]
["Str opb",null,"Строки для разделов 2 листа","Строки для разделов 2 листа","Строки для разделов 2 листа",0,null,null,"Str opb|Строки для разделов 2 листа|Строки для разделов 2 листа"]
["Add opb",null,"Добавить строку","Жолды қосу","Добавить строку",0,null,null,{"$f":"IF(p_language_current_id=2,CONCATENATE(D145),CONCATENATE(C145))","v":"Добавить строку"}]
["Delete opb",null,"Удалить строку","Жолды алып тастау","Удалить строку",0,null,null,"Удалить строку"]
["Str pr",null,"Отправители","Жөнелтуші",{"$f":"CONCATENATE(IF(B147<>\"\",CONCATENATE(B147,\" \"),\"\"),IF(p_language_current_id=1,C147,IF(p_language_current_id=2,D147,IF(C147=D147,C147,CONCATENATE(D147,IF(F147=0,\" / \",CHAR(10)),C147)))),IF(G147<>\"\",CONCATENATE(\" \",G147),\"\"))","v":"Отправители"},0,null,null,"Отправители"]
["Add pr",null,"Добавить отправителя","Добавить отправителя","Добавить отправителя",0,null,null,"Добавить отправителя"]
["Delete pr",null,"Удалить отправителя","Удалить отправителя","Удалить отправителя",0,null,null,"Удалить отправителя"]
["Data edit on sheet with pb 01",null,"Показатели 1-ПБ для разделов 5 и 6 листа","Показатели 1-ПБ для разделов 5 и 6 листа","Показатели 1-ПБ для разделов 5 и 6 листа",0,null,null,"Показатели 1-ПБ для разделов 5 и 6 листа"]
["Add Pb 01",null,"Добавить показатель 1-ПБ","Добавить показатель 1-ПБ","Добавить показатель 1-ПБ",0,null,null,"Добавить показатель 1-ПБ"]
["Delete Pb 01",null,"Удалить показатель 1-ПБ","Удалить показатель 1-ПБ","Удалить показатель 1-ПБ",0,null,null,"Удалить показатель 1-ПБ"]
["Additional sheets",null,"Дополнительные листы","Дополнительные листы","Дополнительные листы",0,null,null,{"$f":"CONCATENATE(A153,\"|\",C153,\"|\",D153)","v":"Additional sheets|Дополнительные листы|Дополнительные листы"}]
["Additional sheets hint",null,"Действия доступные для дополнительных листов","Действия доступные для дополнительных листов","Действия доступные для дополнительных листов",1,null,null,{"$f":"CONCATENATE(A154,\"|\",C154,\"|\",D154)","v":"Additional sheets hint|Действия доступные для дополнительных листов|Действия доступные для дополнительных листов"}]
["Additional sheets show",null,"Показать листы с дополнительными данными","Показать листы с дополнительными данными","Показать листы с дополнительными данными",0,null,null,{"$f":"CONCATENATE(A155,\"|\",C155,\"|\",D155)","v":"Additional sheets show|Показать листы с дополнительными данными|Показать листы с дополнительными данными"}]
["Additional sheets hide",null,"Скрыть листы с дополнительными данными","Скрыть листы с дополнительными данными","Скрыть листы с дополнительными данными",0,null,null,{"$f":"CONCATENATE(A156,\"|\",C156,\"|\",D156)","v":"Additional sheets hide|Скрыть листы с дополнительными данными|Скрыть листы с дополнительными данными"}]
["Additional sheets show/hide hint",null,"Скрытие/показ всех листов с дополнительными данными","Скрытие/показ всех листов с дополнительными данными","Скрытие/показ всех листов с дополнительными данными",1,null,null,{"$f":"CONCATENATE(A157,\"|\",C157,\"|\",D157)","v":"Additional sheets show/hide hint|Скрытие/показ всех листов с дополнительными данными|Скрытие/показ всех листов с дополнительными данными"}]
[null,null,null,null,"",1,null,null,{"$f":"IF(p_language_current_id=2,CONCATENATE(D158),CONCATENATE(C158))","v":""}]
[]
["Справочник месяцов"]
["ID","Код слева","Наименование на русском языке","Наименование на казахском языке","Наименование","Перенос текста","Код справа"]
[1,null,"Январь","Қаңтар",{"$f":"CONCATENATE(IF(B162<>\"\",CONCATENATE(B162,\" \"),\"\"),IF(p_language_current_id=1,C162,IF(p_language_current_id=2,D162,IF(C162=D162,C162,CONCATENATE(D162,IF(F162=0,\" / \",CHAR(10)),C162)))),IF(G162<>\"\",CONCATENATE(\" \",G162),\"\"))","v":"Январь"},1]
[2,null,"Февраль","Ақпан","Февраль",1]
[3,null,"Март","Наурыз","Март",1]
[4,null,"Апрель","Сәуір","Апрель",1]
[5,null,"Май","Май","Май",1]
[6,null,"Июнь","Маусым","Июнь",1]
[7,null,"Июль","Шілде","Июль",1]
[8,null,"Август","Тамыз","Август",1]
[9,null,"Сентябрь","Қыркүйек","Сентябрь",1]
[10,null,"Октябрь","Қазан","Октябрь",1]
[11,null,"Ноябрь","Қараша","Ноябрь",1]
[12,null,"Декабрь","Желтоқсан","Декабрь",1]
[]
["Справочник типов разделов"]
["ID","Код слева","Наименование на русском языке","Наименование на казахском языке","Наименование","Перенос текста","Код справа","Код","Подтип"]
[1,null,"С разбивкой по графам","Бағандар бойынша бөле отырып",{"$f":"CONCATENATE(IF(B177<>\"\",CONCATENATE(B177,\" \"),\"\"),IF(p_language_current_id=1,C177,IF(p_language_current_id=2,D177,IF(C177=D177,C177,CONCATENATE(D177,IF(F177=0,\" / \",CHAR(10)),C177)))),IF(G177<>\"\",CONCATENATE(\" \",G177),\"\"))","v":"С разбивкой по графам"},1,null,"NotCountry"]
[2,null,"С разбивкой по странам","Елдер бойынша бөле отырып","С разбивкой по странам",1,null,"Country"]
[3,null,"С разбивкой по странам и объектам инвестирования","Инвестициялау объектісі және елдер бойынша бөле отырып","С разбивкой по странам и объектам инвестирования",1,null,"InvObj"]
[4,null,"С разбивкой по предприятиям","Кәсіпорындар бойынша бөле отырып","С разбивкой по предприятиям",1,null,"Enterprise"]
[5,null,"Без показателей","Без показателей","Без показателей",1,null,"Empty"]
[6,null,"С разбивкой по вкладам","С разбивкой по вкладам","С разбивкой по вкладам",1,null,"Deposit"]
[7,null,"Специальный","Специальный","Специальный",1]
[8,null,"С разбивкой по инвесторам","С разбивкой по инвесторам","С разбивкой по инвесторам",1,null,"Investor"]
[9,null,"С разбивкой по периодам","С разбивкой по периодам","С разбивкой по периодам",1]
[10,null,"С разбивкой по агентам","С разбивкой по агентам","С разбивкой по агентам",1,null,"Agent","1 - резидент; 2 - нерезидент."]
[11,null,"С разбивкой по столбцам","С разбивкой по столбцам","С разбивкой по столбцам",1,null,"ByStrAsCol"]
[12,null,"С разбивкой по показателям","С разбивкой по показателям","С разбивкой по показателям",1,null,"ByPbStr"]
[]
["Справочник отчетов"]
["ID","Код слева","Наименование на русском языке","Наименование на казахском языке","Наименование","Перенос текста или вставка символов \" / \"","Код справа","Код","Индекс","RC mask","Тип раздела","Подтип раздела","№ приложения",null,"Код слева","Наименование на русском языке","Наименование на казахском языке","Наименование","Перенос текста","Код справа","Код слева","Наименование на русском языке","Наименование на казахском языке","Наименование","Перенос текста","Код справа","Валюта"]
[9,null,"Отчет об освоении и обслуживании финансового займа","Қаржылай қарызды игеру және қызмет көрсету туралы есеп",{"$f":"CONCATENATE(IF(B192<>\"\",CONCATENATE(B192,\" \"),\"\"),IF(p_language_current_id=1,C192,IF(p_language_current_id=2,D192,IF(C192=D192,C192,CONCATENATE(D192,IF(F192=0,\" / \",CHAR(10)),C192)))),IF(G192<>\"\",CONCATENATE(\" \",G192),\"\"))","v":"Отчет об освоении и обслуживании финансового займа"},1,null,"pr_k_2023","ПР-К/Э-3","00.00.000.КЭ",4,1,3,null,null,"ПР-К","ПР-К",{"$f":"CONCATENATE(IF(O192<>\"\",CONCATENATE(O192,\" \"),\"\"),IF(p_language_current_id=1,P192,IF(p_language_current_id=2,Q192,IF(P192=Q192,P192,CONCATENATE(Q192,IF(S192=0,\" / \",CHAR(10)),P192)))),IF(T192<>\"\",CONCATENATE(\" \",T192),\"\"))","v":"ПР-К"},1,null,null,"Отчет об освоении и обслуживании финансового займа","Қаржылай қарызды игеру және қызмет көрсету туралы есеп",{"$f":"CONCATENATE(IF(U192<>\"\",CONCATENATE(U192,\" \"),\"\"),IF(p_language_current_id=1,V192,IF(p_language_current_id=2,W192,IF(V192=W192,V192,CONCATENATE(W192,IF(Y192=0,\" / \",CHAR(10)),V192)))),IF(Z192<>\"\",CONCATENATE(\" \",Z192),\"\"))","v":"Отчет об освоении и обслуживании финансового займа"},1]
[13,null,"Отчет об участии в капитале объекта инвестирования","Инвестициялау объектісінің капиталына қатысу туралы есеп",{"$f":"CONCATENATE(IF(B193<>\"\",CONCATENATE(B193,\" \"),\"\"),IF(p_language_current_id=1,C193,IF(p_language_current_id=2,D193,IF(C193=D193,C193,CONCATENATE(D193,IF(F193=0,\" / \",CHAR(10)),C193)))),IF(G193<>\"\",CONCATENATE(\" \",G193),\"\"))","v":"Отчет об участии в капитале объекта инвестирования"},1,null,"pr_i_2023","ПР-И/Г-4","00.00.000.И",4,1,4,null,null,"ПР-И","ПР-И",{"$f":"CONCATENATE(IF(O193<>\"\",CONCATENATE(O193,\" \"),\"\"),IF(p_language_current_id=1,P193,IF(p_language_current_id=2,Q193,IF(P193=Q193,P193,CONCATENATE(Q193,IF(S193=0,\" / \",CHAR(10)),P193)))),IF(T193<>\"\",CONCATENATE(\" \",T193),\"\"))","v":"ПР-И"},1,null,null,"Отчет об участии в капитале объекта инвестирования","Инвестициялау объектісінің капиталына қатысу туралы есеп",{"$f":"CONCATENATE(IF(U193<>\"\",CONCATENATE(U193,\" \"),\"\"),IF(p_language_current_id=1,V193,IF(p_language_current_id=2,W193,IF(V193=W193,V193,CONCATENATE(W193,IF(Y193=0,\" / \",CHAR(10)),V193)))),IF(Z193<>\"\",CONCATENATE(\" \",Z193),\"\"))","v":"Отчет об участии в капитале объекта инвестирования"},1,null,{"$f":"VLOOKUP(162,p_currency,COLUMN(p_currency_name),FALSE)","v":"ДОЛЛАР США"}]
[31,null,"Отчет об участии в капитале объекта инвестирования","Инвестициялау объектісінің капиталына қатысу туралы есеп",{"$f":"CONCATENATE(IF(B194<>\"\",CONCATENATE(B194,\" \"),\"\"),IF(p_language_current_id=1,C194,IF(p_language_current_id=2,D194,IF(C194=D194,C194,CONCATENATE(D194,IF(F194=0,\" / \",CHAR(10)),C194)))),IF(G194<>\"\",CONCATENATE(\" \",G194),\"\"))","v":"Отчет об участии в капитале объекта инвестирования"},1,null,"pr_g_2023","ПР-И/Г-4","00.00.000.Г",4,1,4,null,null,"ПР-Г","ПР-Г",{"$f":"CONCATENATE(IF(O194<>\"\",CONCATENATE(O194,\" \"),\"\"),IF(p_language_current_id=1,P194,IF(p_language_current_id=2,Q194,IF(P194=Q194,P194,CONCATENATE(Q194,IF(S194=0,\" / \",CHAR(10)),P194)))),IF(T194<>\"\",CONCATENATE(\" \",T194),\"\"))","v":"ПР-Г"},1,null,null,"Отчет об участии в капитале объекта инвестирования","Инвестициялау объектісінің капиталына қатысу туралы есеп",{"$f":"CONCATENATE(IF(U194<>\"\",CONCATENATE(U194,\" \"),\"\"),IF(p_language_current_id=1,V194,IF(p_language_current_id=2,W194,IF(V194=W194,V194,CONCATENATE(W194,IF(Y194=0,\" / \",CHAR(10)),V194)))),IF(Z194<>\"\",CONCATENATE(\" \",Z194),\"\"))","v":"Отчет об участии в капитале объекта инвестирования"},1,null,{"$f":"VLOOKUP(162,p_currency,COLUMN(p_currency_name),FALSE)","v":"ДОЛЛАР США"}]
[14,null,"Отчет об исполнении обязательств","Міндеттемелердің орындалуы туралы есеп",{"$f":"CONCATENATE(IF(B195<>\"\",CONCATENATE(B195,\" \"),\"\"),IF(p_language_current_id=1,C195,IF(p_language_current_id=2,D195,IF(C195=D195,C195,CONCATENATE(D195,IF(F195=0,\" / \",CHAR(10)),C195)))),IF(G195<>\"\",CONCATENATE(\" \",G195),\"\"))","v":"Отчет об исполнении обязательств"},1,null,"pr_d_2023","ПР-Д-5","00.00.000.КЭИГДФ",4,1,5,null,null,"ПР-Д","ПР-Д",{"$f":"CONCATENATE(IF(O195<>\"\",CONCATENATE(O195,\" \"),\"\"),IF(p_language_current_id=1,P195,IF(p_language_current_id=2,Q195,IF(P195=Q195,P195,CONCATENATE(Q195,IF(S195=0,\" / \",CHAR(10)),P195)))),IF(T195<>\"\",CONCATENATE(\" \",T195),\"\"))","v":"ПР-Д"},1,null,null,"Отчет об исполнении обязательств","Міндеттемелердің орындалуы туралы есеп",{"$f":"CONCATENATE(IF(U195<>\"\",CONCATENATE(U195,\" \"),\"\"),IF(p_language_current_id=1,V195,IF(p_language_current_id=2,W195,IF(V195=W195,V195,CONCATENATE(W195,IF(Y195=0,\" / \",CHAR(10)),V195)))),IF(Z195<>\"\",CONCATENATE(\" \",Z195),\"\"))","v":"Отчет об исполнении обязательств"},1,null,{"$f":"VLOOKUP(162,p_currency,COLUMN(p_currency_name),FALSE)","v":"ДОЛЛАР США"}]
[32,null,"Отчет о движении денег на счете в иностранном банке","Шетелдік банктегі шоттағы ақша қозғалысы туралы есеп",{"$f":"CONCATENATE(IF(B196<>\"\",CONCATENATE(B196,\" \"),\"\"),IF(p_language_current_id=1,C196,IF(p_language_current_id=2,D196,IF(C196=D196,C196,CONCATENATE(D196,IF(F196=0,\" / \",CHAR(10)),C196)))),IF(G196<>\"\",CONCATENATE(\" \",G196),\"\"))","v":"Отчет о движении денег на счете в иностранном банке"},1,null,"pr_f_2023","ПР-Ф-6","00.00.000.Ф",4,2,6,null,null,"ПР-Ф","ПР-Ф",{"$f":"CONCATENATE(IF(O196<>\"\",CONCATENATE(O196,\" \"),\"\"),IF(p_language_current_id=1,P196,IF(p_language_current_id=2,Q196,IF(P196=Q196,P196,CONCATENATE(Q196,IF(S196=0,\" / \",CHAR(10)),P196)))),IF(T196<>\"\",CONCATENATE(\" \",T196),\"\"))","v":"ПР-Ф"},1,null,null,"Отчет о движении денег на счете в иностранном банке","Шетелдік банктегі шоттағы ақша қозғалысы туралы есеп",{"$f":"CONCATENATE(IF(U196<>\"\",CONCATENATE(U196,\" \"),\"\"),IF(p_language_current_id=1,V196,IF(p_language_current_id=2,W196,IF(V196=W196,V196,CONCATENATE(W196,IF(Y196=0,\" / \",CHAR(10)),V196)))),IF(Z196<>\"\",CONCATENATE(\" \",Z196),\"\"))","v":"Отчет о движении денег на счете в иностранном банке"},1]
[]
["Справочник разделов",null,null,null,null,null,null,null,null,null,null,null,null,null,null,null,null,null,null,null,null,null,null,null,"select p.id_pb_part, h.name_ru, h.name_kz, h.short_name_ru, h.short_name_kz, p.id_pb_part_type from s_pb_part p join s_pb_part_his h on p.id_pb_part = h.id_pb_part where id_report = 32 and h.is_last = 1 and h.date_end is null order by num_order;","select p.id_pb_part, h.name_ru, h.name_kz, h.short_name_ru, h.short_name_kz, p.id_pb_part_type, id_report from s_pb_part p join s_pb_part_his h on p.id_pb_part = h.id_pb_part where ID_REPORT != 31 and ID_REPORT in (select id_report from s_report where FORM_GROUP = 4) and h.is_last = 1 and h.date_end is null order by ID_REPORT, num_order;"]
["ID","Код слева","Наименование на русском языке","Наименование на казахском языке","Наименование","Перенос текста","Код справа","Код","Раздел","Тип раздела","Подтип раздела","Галочка содержания","Уровень содержания","Лист","Код слева","Наименование на русском языке","Наименование на казахском языке","Наименование","Перенос текста","Код справа","Код слева","Наименование на русском языке","Наименование на казахском языке","Наименование","Перенос текста","Код справа","Примечание","Валюта раздела (ID из справочника переводов)","1 графа раздела","2 графа раздела","3 графа раздела","Показывать заголовки","1 название столбца","2 название столбца","Отчет","Ширина Num","Ширина Code","Ширина Name","Ширина Col 1","Ширина Col 2","Ширина Col 3","Ширина Col 4","Ширина Col 5","Ширина Col 6","Ширина Col 7","Ширина Col 8","Ширина Col 9","Ширина Col 10","Ширина Col 11","Ширина Col 12"]
[1001,null,null,null,{"$f":"CONCATENATE(IF(B200<>\"\",CONCATENATE(B200,\" \"),\"\"),IF(p_language_current_id=1,C200,IF(p_language_current_id=2,D200,IF(C200=D200,C200,CONCATENATE(D200,IF(F200=0,\" / \",CHAR(10)),C200)))),IF(G200<>\"\",CONCATENATE(\" \",G200),\"\"))","v":""},1,null,"1",0,1,1,1,1,5,null,"Отчет","Есеп",{"$f":"CONCATENATE(IF(O200<>\"\",CONCATENATE(O200,\" \"),\"\"),IF(p_language_current_id=1,P200,IF(p_language_current_id=2,Q200,IF(P200=Q200,P200,CONCATENATE(Q200,IF(S200=0,\" / \",CHAR(10)),P200)))),IF(T200<>\"\",CONCATENATE(\" \",T200),\"\"))","v":"Отчет"},1,null,null,"Отчет (тысяч единиц валюты валютного договора)","Есеп (валюталық шарт валютасының мың бірлігі)",{"$f":"CONCATENATE(IF(U200<>\"\",CONCATENATE(U200,\" \"),\"\"),IF(p_language_current_id=1,V200,IF(p_language_current_id=2,W200,IF(V200=W200,V200,CONCATENATE(W200,IF(Y200=0,\" / \",CHAR(10)),V200)))),IF(Z200<>\"\",CONCATENATE(\" \",Z200),\"\"))","v":"Отчет (тысяч единиц валюты валютного договора)"},1,null,null,{"$f":"$A$82","v":"currency_7"},{"$f":"$A$65","v":"cols_num"},{"$f":"$A$71","v":"indicator_code"},{"$f":"$A$70","v":"indicator_name"},2,null,null,9,8.5,8.5,60,12.5]
[1011,null,null,null,"",1,null,"1",0,10,2,1,1,5,null,"Часть 1","1 бөлік","Часть 1",1,null,null,"Участие инвесторов в капитале объекта инвестирования","Инвесторлардың инвестициялау объектісінің капиталына қатысуы","Участие инвесторов в капитале объекта инвестирования",1,null,null,{"$f":"$A$83","v":"currency_4"},{"$f":"$A$72","v":"indicator_num"},"indicator_code","indicator_name",2,null,null,13,8.5,8.5,60,12.5]
[1014,null,"Информация о расчетах по покупке (продаже) акций, долей участия объекта инвестирования","Инвестициялау объектісінің акцияларды, қатысу үлестерін сатып алу (сату) бойынша есеп айырысулары туралы ақпарат","Информация о расчетах по покупке (продаже) акций, долей участия объекта инвестирования",1,null,"2",0,1,1,1,1,5,null,"Часть 2","2 бөлік","Часть 2",1,null,null,"Информация о расчетах по покупке (продаже) акций, долей участия объекта инвестирования","Инвестициялау объектісінің акцияларды, қатысу үлестерін сатып алу (сату) бойынша есеп айырысулары туралы ақпарат","Информация о расчетах по покупке (продаже) акций, долей участия объекта инвестирования",1,null,null,{"$f":"$A$84","v":"currency_5"},"indicator_num","indicator_code","indicator_name",0,null,null,13,8.5,8.5,60,12.5]
[1011,null,null,null,"",1,null,"1",0,10,1,1,1,5,null,"Часть 1","1 бөлік","Часть 1",1,null,null,"Участие инвесторов в капитале объекта инвестирования","Инвесторлардың инвестициялау объектісінің капиталына қатысуы","Участие инвесторов в капитале объекта инвестирования",1,null,null,{"$f":"$A$83","v":"currency_4"},"indicator_num","indicator_code","indicator_name",2,null,null,31,8.5,8.5,60,12.5]
[1014,null,"Информация о расчетах по покупке (продаже) акций, долей участия объекта инвестирования","Инвестициялау объектісінің акцияларды, қатысу үлестерін сатып алу (сату) бойынша есеп айырысулары туралы ақпарат","Информация о расчетах по покупке (продаже) акций, долей участия объекта инвестирования",1,null,"2",0,1,1,1,1,5,null,"Часть 2","2 бөлік","Часть 2",1,null,null,"Информация о расчетах по покупке (продаже) акций, долей участия объекта инвестирования","Инвестициялау объектісінің акцияларды, қатысу үлестерін сатып алу (сату) бойынша есеп айырысулары туралы ақпарат","Информация о расчетах по покупке (продаже) акций, долей участия объекта инвестирования",1,null,null,{"$f":"$A$84","v":"currency_5"},"indicator_num","indicator_code","indicator_name",0,null,null,31,8.5,8.5,60,12.5]
[1031,null,"Раздел 1. Сведения об исполнении обязательств","1-бөлім. Міндеттемелердің орындалуы туралы есеп","Раздел 1. Сведения об исполнении обязательств",1,null,"1",0,11,1,1,1,5,null,"Раздел 1","1-бөлім","Раздел 1",1,null,null,"Сведения об исполнении обязательств","Міндеттемелердің орындалуы туралы есеп","Сведения об исполнении обязательств",1,null,null,null,"indicator_num","indicator_code","indicator_name",1,null,null,14,8.5,8.5,37,8.5,37,12.5,16.329999999999998,13,27.83,13,27.83,9.33,14.83,14,33.83]
[1032,null,"Раздел 2. Сведения о накопленной стоимости и доходах","2-бөлім. Жинақталған күн мен кіріс туралы мәліметтер","Раздел 2. Сведения о накопленной стоимости и доходах",1,null,"2",0,1,1,1,1,5,null,"Раздел 2","2-бөлім","Раздел 2",1,null,null,"Сведения о накопленной стоимости и доходах","Жинақталған күн мен кіріс туралы мәліметтер","Сведения о накопленной стоимости и доходах",1,null,null,{"$f":"$A$85","v":"currency_6"},"indicator_num","indicator_code","indicator_name",2,null,null,14,8.5,8.5,37,12.5]
[1041,null,null,null,"",1,null,"1",0,6,1,1,1,5,null,"Отчет","Есеп","Отчет",1,null,null,"Отчет","Есеп","Отчет",1,null,null,{"$f":"$A$81","v":"currency_3"},"indicator_num","indicator_code","indicator_name",2,null,null,32,8.5,8.5,72.5,12.5]
[1043,null,"Информация об овердрафте","Овердрафт туралы ақпарат","Информация об овердрафте",1,null,"2",0,1,1,1,1,5,null,"Раздел 2","2-бөлім","Раздел 2",1,null,null,"Информация об овердрафте","Овердрафт туралы ақпарат","Информация об овердрафте",1,null,null,{"$f":"$A$81","v":"currency_3"},"indicator_num","indicator_code","indicator_name",0,null,null,32,8.5,8.5,72.5,12.5]
[]
["Справочник строк"]
["ID","Код слева","Наименование на русском языке","Наименование на казахском языке","Наименование","Перенос текста","Код справа","Код","Раздел","Стиль заголовков","Стиль данных","Тип данных","Примечание","Строка родитель",null,"select t.id_pb_str, h.id_pb_part, h.code, h.name, h.name_kz, t.id_index_type_measure, decode(h.is_editable, 1, 0, 2), h.id_pb_str_parent \nfrom s_pb_str t join s_pb_str_his h on t.id_pb_str = h.id_pb_str and is_last = 1 \nwhere id_report in (9, 13, 31, 14, 32) and is_in = 1 and date_end is null order by id_report, num_order;"]
[{"$f":"P212","v":4776},null,{"$f":"S212","v":"Ставка, по которой начисляется вознаграждение по кредиту в отчетном периоде (% годовых)"},{"$f":"T212","v":"Есепті кезеңде   кредит бойынша сыйақы есептелетін мөлшерлеме (жылдық %)"},{"$f":"CONCATENATE(IF(B212<>\"\",CONCATENATE(B212,\" \"),\"\"),IF(p_language_current_id=1,C212,IF(p_language_current_id=2,D212,IF(C212=D212,C212,CONCATENATE(D212,IF(F212=0,\" / \",CHAR(10)),C212)))),IF(G212<>\"\",CONCATENATE(\" \",G212),\"\"))","v":"Ставка, по которой начисляется вознаграждение по кредиту в отчетном периоде (% годовых)"},1,null,{"$f":"CONCATENATE(R212)","v":"10"},{"$f":"Q212","v":1001},null,{"$f":"IF(V212<>\"\",IF(AND(V212=2,TRIM(R212)=\"\"),3,V212),\"\")","v":0},{"$f":"U212","v":3},null,{"$f":"W212","v":0},null,4776,1001,"10","Ставка, по которой начисляется вознаграждение по кредиту в отчетном периоде (% годовых)","Есепті кезеңде   кредит бойынша сыйақы есептелетін мөлшерлеме (жылдық %)",3,0]
[{"$f":"P213","v":4777},null,{"$f":"S213","v":"Раздел 1. Сведения по основному долгу"},{"$f":"T213","v":"1-бөлім. Негізгі борыш бойынша мәліметтер"},"Раздел 1. Сведения по основному долгу",1,null,{"$f":"CONCATENATE(R213)","v":" "},{"$f":"Q213","v":1001},null,{"$f":"IF(V213<>\"\",IF(AND(V213=2,TRIM(R213)=\"\"),3,V213),\"\")","v":3},{"$f":"U213","v":0},null,{"$f":"W213","v":0},null,4777,1001," ","Раздел 1. Сведения по основному долгу","1-бөлім. Негізгі борыш бойынша мәліметтер",null,2]
[4778,null,"Часть 1. Требования заемщика к кредитору – авансы выданные (предоплата)","1-бөлік. Қарыз алушының  кредиторға талаптары – берілген аванстар (алдын ала ақы төлеу)","Часть 1. Требования заемщика к кредитору – авансы выданные (предоплата)",1,null," ",1001,null,3,0,null,0,null,4778,1001," ","Часть 1. Требования заемщика к кредитору – авансы выданные (предоплата)","1-бөлік. Қарыз алушының  кредиторға талаптары – берілген аванстар (алдын ала ақы төлеу)",null,2]
[4680,null,"Авансы, выданные (предоплата) на начало отчетного периода","Берілген аванстар (алдын ала ақы төлеу) есепті кезеңнің басында","Авансы, выданные (предоплата) на начало отчетного периода",1,null,"11",1001,null,0,1,null,0,null,4680,1001,"11","Авансы, выданные (предоплата) на начало отчетного периода","Берілген аванстар (алдын ала ақы төлеу) есепті кезеңнің басында",1,0]
[4628,null,"Авансы, выданные заемщиком кредитору в отчетном периоде (предоплата)","Есепті кезеңде қарыз алушы кредиторға берген аванстар (алдын ала ақы)","Авансы, выданные заемщиком кредитору в отчетном периоде (предоплата)",1,null,"12",1001,null,0,1,null,0,null,4628,1001,"12","Авансы, выданные заемщиком кредитору в отчетном периоде (предоплата)","Есепті кезеңде қарыз алушы кредиторға берген аванстар (алдын ала ақы)",1,0]
[4681,null,"Авансы, погашенные кредитором заемщику (предоставлено средств по кредиту кредитором заемщику) в отчетном периоде","Есепті кезеңде кредитордың қарыз алушыға өтеген аванстары (кредитордың кредит бойынша қаражатты қарыз алушыға ұсынуы)","Авансы, погашенные кредитором заемщику (предоставлено средств по кредиту кредитором заемщику) в отчетном периоде",1,null,"13",1001,null,0,1,null,0,null,4681,1001,"13","Авансы, погашенные кредитором заемщику (предоставлено средств по кредиту кредитором заемщику) в отчетном периоде","Есепті кезеңде кредитордың қарыз алушыға өтеген аванстары (кредитордың кредит бойынша қаражатты қарыз алушыға ұсынуы)",1,0]
[4831,null,"Прочие (+)/(-) изменения по авансу","Аванс бойынша басқа да өзгерістер (+)/(-)","Прочие (+)/(-) изменения по авансу",1,null,"14",1001,null,0,0,null,0,null,4831,1001,"14","Прочие (+)/(-) изменения по авансу","Аванс бойынша басқа да өзгерістер (+)/(-)",null,0]
[4682,null,"Авансы, выданные (предоплата) на конец отчетного периода (=(11)+(12)-(13)+(14))","Есепті кезеңнің соңында берілген аванстар (алдын ала ақы) (=(11)+(12)-(13)+(14))","Авансы, выданные (предоплата) на конец отчетного периода (=(11)+(12)-(13)+(14))",1,null,"15",1001,null,2,1,null,0,null,4682,1001,"15","Авансы, выданные (предоплата) на конец отчетного периода (=(11)+(12)-(13)+(14))","Есепті кезеңнің соңында берілген аванстар (алдын ала ақы) (=(11)+(12)-(13)+(14))",1,2]
[4779,null,"Часть 2. Обязательства заемщика перед кредитором","2-бөлік. Қарыз алушының кредитор алдындағы міндеттемелері","Часть 2. Обязательства заемщика перед кредитором",1,null," ",1001,null,3,0,null,0,null,4779,1001," ","Часть 2. Обязательства заемщика перед кредитором","2-бөлік. Қарыз алушының кредитор алдындағы міндеттемелері",null,2]
[4608,null,"Задолженность по основному долгу на начало отчетного периода","Есепті кезеңнің басындағы негізгі борыш бойынша берешек","Задолженность по основному долгу на начало отчетного периода",1,null,"16",1001,null,0,1,null,0,null,4608,1001,"16","Задолженность по основному долгу на начало отчетного периода","Есепті кезеңнің басындағы негізгі борыш бойынша берешек",1,0]
[4609,null,"    в том числе просроченная задолженность","    оның ішінде мерзімі өткен берешек","    в том числе просроченная задолженность",1,null,"17",1001,null,0,1,null,0,null,4609,1001,"17","    в том числе просроченная задолженность","    оның ішінде мерзімі өткен берешек",1,0]
[4614,null,"Изменения за отчетный период:","Есепті кезеңдегі өзгерістер:","Изменения за отчетный период:",1,null," ",1001,null,3,0,null,0,null,4614,1001," ","Изменения за отчетный период:","Есепті кезеңдегі өзгерістер:",null,2]
[4780,null,"Увеличение долга за счет изменения резидента на другого резидента (нерезидента на другого нерезидента)","Резидентті басқа резидентке (бейрезидентті басқа бейрезидентке) ауыстыру арқылы борыштың ұлғаюы","Увеличение долга за счет изменения резидента на другого резидента (нерезидента на другого нерезидента)",1,null,"18",1001,null,0,1,null,0,null,4780,1001,"18","Увеличение долга за счет изменения резидента на другого резидента (нерезидента на другого нерезидента)","Резидентті басқа резидентке (бейрезидентті басқа бейрезидентке) ауыстыру арқылы борыштың ұлғаюы",1,0]
[4781,null,"Увеличение долга за счет изменения резидента на нерезидента (нерезидента на резидента)","Резидентті бейрезидентке (бейрезидентті резидентке) ауыстыру арқылы борыштың ұлғаюы","Увеличение долга за счет изменения резидента на нерезидента (нерезидента на резидента)",1,null,"19",1001,null,0,1,null,0,null,4781,1001,"19","Увеличение долга за счет изменения резидента на нерезидента (нерезидента на резидента)","Резидентті бейрезидентке (бейрезидентті резидентке) ауыстыру арқылы борыштың ұлғаюы",1,0]
[4615,null,"Предоставлено средств по кредиту заемщику кредитором","Кредитордың кредит бойынша қаражатты қарыз алушыға ұсынуы","Предоставлено средств по кредиту заемщику кредитором",1,null,"20",1001,null,0,1,null,0,null,4615,1001,"20","Предоставлено средств по кредиту заемщику кредитором","Кредитордың кредит бойынша қаражатты қарыз алушыға ұсынуы",1,0]
[4620,null,"Капитализировано вознаграждения (=51)","Сыйақы капиталдандырылды (=51)","Капитализировано вознаграждения (=51)",1,null,"21",1001,null,2,1,null,0,null,4620,1001,"21","Капитализировано вознаграждения (=51)","Сыйақы капиталдандырылды (=51)",1,2]
[4623,null,"Погашено долга заемщиком кредитору","Қарыз алушының кредиторға қарызы өтелді","Погашено долга заемщиком кредитору",1,null,"22",1001,null,0,1,null,0,null,4623,1001,"22","Погашено долга заемщиком кредитору","Қарыз алушының кредиторға қарызы өтелді",1,0]
[4782,null,"     в том числе досрочно","     оның ішінде мерзімінен бұрын","     в том числе досрочно",1,null,"22а",1001,null,0,1,null,0,null,4782,1001,"22а","     в том числе досрочно","     оның ішінде мерзімінен бұрын",1,0]
[4832,null,"Взаимозачет долга с требованиями заемщика к кредитору по иным договорам","Борышты қарыз алушының өзге де шарттар бойынша кредиторға қойылатын талаптарымен өзара есепке алуы","Взаимозачет долга с требованиями заемщика к кредитору по иным договорам",1,null,"23",1001,null,0,1,null,0,null,4832,1001,"23","Взаимозачет долга с требованиями заемщика к кредитору по иным договорам","Борышты қарыз алушының өзге де шарттар бойынша кредиторға қойылатын талаптарымен өзара есепке алуы",1,0]
[4629,null,"Прощено долга кредитором заемщику","Кредитордың қарыз алушының борышын кешіруі","Прощено долга кредитором заемщику",1,null,"24",1001,null,0,1,null,0,null,4629,1001,"24","Прощено долга кредитором заемщику","Кредитордың қарыз алушының борышын кешіруі",1,0]
[4783,null,"Обменено долга на инструменты участия в капитале (заемщика и (или) третьих лиц), недвижимость и иной актив заемщика","Борыш капиталға қатысу құралдарына (қарыз алушы және (немесе) үшінші тұлғалардың), қарыз алушының жылжымайтын мүлкіне және өзге активіне ауыстырылды","Обменено долга на инструменты участия в капитале (заемщика и (или) третьих лиц), недвижимость и иной актив заемщика",1,null,"25",1001,null,0,1,null,0,null,4783,1001,"25","Обменено долга на инструменты участия в капитале (заемщика и (или) третьих лиц), недвижимость и иной актив заемщика","Борыш капиталға қатысу құралдарына (қарыз алушы және (немесе) үшінші тұлғалардың), қарыз алушының жылжымайтын мүлкіне және өзге активіне ауыстырылды",1,0]
[4784,null,"Обменено долга на долговые ценные бумаги заемщика, поставки товара и иные долговые обязательства заемщика","Борыш қарыз алушының борыштық бағалы қағаздарына, қарыз алушының тауарды жеткізуіне және өзге де борыштық міндеттемелеріне ауыстырылды","Обменено долга на долговые ценные бумаги заемщика, поставки товара и иные долговые обязательства заемщика",1,null,"26",1001,null,0,1,null,0,null,4784,1001,"26","Обменено долга на долговые ценные бумаги заемщика, поставки товара и иные долговые обязательства заемщика","Борыш қарыз алушының борыштық бағалы қағаздарына, қарыз алушының тауарды жеткізуіне және өзге де борыштық міндеттемелеріне ауыстырылды",1,0]
[4785,null,"Уменьшение долга за счет изменения резидента на другого резидента (нерезидента на другого нерезидента)","Резидентті басқа резидентке (бейрезидентті басқа бейрезидентке) ауыстыру арқылы борыштың азаюы","Уменьшение долга за счет изменения резидента на другого резидента (нерезидента на другого нерезидента)",1,null,"27",1001,null,0,1,null,0,null,4785,1001,"27","Уменьшение долга за счет изменения резидента на другого резидента (нерезидента на другого нерезидента)","Резидентті басқа резидентке (бейрезидентті басқа бейрезидентке) ауыстыру арқылы борыштың азаюы",1,0]
[4786,null,"Уменьшение долга за счет изменения резидента на нерезидента (нерезидента на резидента)","Резидентті бейрезидентке (бейрезидентті резидентке) ауыстыру арқылы борыштың азаюы","Уменьшение долга за счет изменения резидента на нерезидента (нерезидента на резидента)",1,null,"28",1001,null,0,1,null,0,null,4786,1001,"28","Уменьшение долга за счет изменения резидента на нерезидента (нерезидента на резидента)","Резидентті бейрезидентке (бейрезидентті резидентке) ауыстыру арқылы борыштың азаюы",1,0]
[4787,null,"Перенос (+)/(-) долга в виду получения нового учетного номера по прочим основаниям","Басқа негіздемелер бойынша жаңа есептік нөмір алғандықтан борышты тасымалдау (+)/(-)","Перенос (+)/(-) долга в виду получения нового учетного номера по прочим основаниям",1,null,"29",1001,null,0,1,null,0,null,4787,1001,"29","Перенос (+)/(-) долга в виду получения нового учетного номера по прочим основаниям","Басқа негіздемелер бойынша жаңа есептік нөмір алғандықтан борышты тасымалдау (+)/(-)",1,0]
[4694,null,"Списано долга","Борыш есептен шығарылды","Списано долга",1,null,"30",1001,null,0,1,null,0,null,4694,1001,"30","Списано долга","Борыш есептен шығарылды",1,0]
[4788,null,"Прочие (+)/(-) изменения по долгу (расшифровать)","Борыш бойынша басқа өзгерістер (+)/(-) (толық жазу)","Прочие (+)/(-) изменения по долгу (расшифровать)",1,null,"31",1001,null,0,1,null,0,null,4788,1001,"31","Прочие (+)/(-) изменения по долгу (расшифровать)","Борыш бойынша басқа өзгерістер (+)/(-) (толық жазу)",1,0]
[4630,null,"Аннулировано неосвоенной части кредита","Кредиттің игерілмеген бөлігі жойылды","Аннулировано неосвоенной части кредита",1,null,"32",1001,null,0,1,null,0,null,4630,1001,"32","Аннулировано неосвоенной части кредита","Кредиттің игерілмеген бөлігі жойылды",1,0]
[4634,null,"Задолженность по основному долгу на конец отчетного периода (=(16) + (18) + (19) + (20) + (21) – (22) – (24) – (25) – (26) – (27) – (28) + (29) – (30) + (31))","Есепті кезеңнің соңындағы негізгі борыш бойынша берешек (=(16) + (18) + (19) + (20) + (21) – (22) – (24) – (25) – (26) – (27) – (28) + (29) – (30) + (31))","Задолженность по основному долгу на конец отчетного периода (=(16) + (18) + (19) + (20) + (21) – (22) – (24) – (25) – (26) – (27) – (28) + (29) – (30) + (31))",1,null,"33",1001,null,2,1,null,0,null,4634,1001,"33","Задолженность по основному долгу на конец отчетного периода (=(16) + (18) + (19) + (20) + (21) – (22) – (24) – (25) – (26) – (27) – (28) + (29) – (30) + (31))","Есепті кезеңнің соңындағы негізгі борыш бойынша берешек (=(16) + (18) + (19) + (20) + (21) – (22) – (24) – (25) – (26) – (27) – (28) + (29) – (30) + (31))",1,2]
[4635,null,"    в том числе просроченная задолженность","    оның ішінде мерзімі өткен берешек","    в том числе просроченная задолженность",1,null,"34",1001,null,0,1,null,0,null,4635,1001,"34","    в том числе просроченная задолженность","    оның ішінде мерзімі өткен берешек",1,0]
[4789,null,"Раздел 2. Сведения по вознаграждению","2-бөлім. Сыйақы бойынша мәліметтер","Раздел 2. Сведения по вознаграждению",1,null," ",1001,null,3,0,null,0,null,4789,1001," ","Раздел 2. Сведения по вознаграждению","2-бөлім. Сыйақы бойынша мәліметтер",null,2]
[4790,null,"Часть 1. Требования заемщика к кредитору – авансы выданные (предоплата)","1-бөлік. Қарыз алушының кредиторға талаптары – берілген аванстар (алдын ала ақы төлеу)","Часть 1. Требования заемщика к кредитору – авансы выданные (предоплата)",1,null," ",1001,null,3,0,null,0,null,4790,1001," ","Часть 1. Требования заемщика к кредитору – авансы выданные (предоплата)","1-бөлік. Қарыз алушының кредиторға талаптары – берілген аванстар (алдын ала ақы төлеу)",null,2]
[4791,null,"Требования заемщика к кредитору на начало отчетного периода","Есепті кезеңнің басындағы қарыз алушының кредиторға талаптары ","Требования заемщика к кредитору на начало отчетного периода",1,null,"41",1001,null,0,1,null,0,null,4791,1001,"41","Требования заемщика к кредитору на начало отчетного периода","Есепті кезеңнің басындағы қарыз алушының кредиторға талаптары ",1,0]
[4792,null,"Авансы, выданные заемщиком кредитору в отчетном периоде (предоплата)","Есепті кезеңде қарыз алушы кредиторға берген аванстар (алдын ала ақы)","Авансы, выданные заемщиком кредитору в отчетном периоде (предоплата)",1,null,"42",1001,null,0,1,null,0,null,4792,1001,"42","Авансы, выданные заемщиком кредитору в отчетном периоде (предоплата)","Есепті кезеңде қарыз алушы кредиторға берген аванстар (алдын ала ақы)",1,0]
[4793,null,"Авансы, погашенные (начислено вознаграждения) в отчетном периоде ","Есепті кезеңде өтелген аванстар (сыйақы есептелді)","Авансы, погашенные (начислено вознаграждения) в отчетном периоде ",1,null,"43",1001,null,0,1,null,0,null,4793,1001,"43","Авансы, погашенные (начислено вознаграждения) в отчетном периоде ","Есепті кезеңде өтелген аванстар (сыйақы есептелді)",1,0]
[4833,null,"Прочие (+)/(-) изменения по авансу","Аванс бойынша басқа өзгерістер (+)/(-)","Прочие (+)/(-) изменения по авансу",1,null,"44",1001,null,0,1,null,0,null,4833,1001,"44","Прочие (+)/(-) изменения по авансу","Аванс бойынша басқа өзгерістер (+)/(-)",1,0]
[4794,null,"Требования заемщика к кредитору на конец отчетного периода (=(41)+(42)-(43)+(44))","Есепті кезеңнің соңындағы қарыз алушының кредиторға талаптары (=(41)+(42)-(43)+(44))","Требования заемщика к кредитору на конец отчетного периода (=(41)+(42)-(43)+(44))",1,null,"45",1001,null,2,1,null,0,null,4794,1001,"45","Требования заемщика к кредитору на конец отчетного периода (=(41)+(42)-(43)+(44))","Есепті кезеңнің соңындағы қарыз алушының кредиторға талаптары (=(41)+(42)-(43)+(44))",1,2]
[4795,null,"Часть 2. Обязательства заемщика перед кредитором","2-бөлік. Қарыз алушының кредитор алдындағы міндеттемелері","Часть 2. Обязательства заемщика перед кредитором",1,null," ",1001,null,3,0,null,0,null,4795,1001," ","Часть 2. Обязательства заемщика перед кредитором","2-бөлік. Қарыз алушының кредитор алдындағы міндеттемелері",null,2]
[4691,null,"Задолженность по вознаграждению на начало отчетного периода","Есепті кезеңнің басындағы сыйақы бойынша берешек ","Задолженность по вознаграждению на начало отчетного периода",1,null,"46",1001,null,0,1,null,0,null,4691,1001,"46","Задолженность по вознаграждению на начало отчетного периода","Есепті кезеңнің басындағы сыйақы бойынша берешек ",1,0]
[4610,null,"     в том числе просроченная задолженность","     оның ішінде мерзімі өткен берешек","     в том числе просроченная задолженность",1,null,"47",1001,null,0,1,null,0,null,4610,1001,"47","     в том числе просроченная задолженность","     оның ішінде мерзімі өткен берешек",1,0]
[4796,null,"Изменения за отчетный период:","Есепті кезеңдегі өзгерістер:","Изменения за отчетный период:",1,null," ",1001,null,3,0,null,0,null,4796,1001," ","Изменения за отчетный период:","Есепті кезеңдегі өзгерістер:",null,2]
[4797,null,"Увеличение вознаграждения за счет изменения резидента на другого резидента (нерезидента на другого нерезидента)","Сыйақының резидентті басқа резидентке (бейрезидентті басқа бейрезидентке) ауыстыру арқылы ұлғаюы","Увеличение вознаграждения за счет изменения резидента на другого резидента (нерезидента на другого нерезидента)",1,null,"48",1001,null,0,1,null,0,null,4797,1001,"48","Увеличение вознаграждения за счет изменения резидента на другого резидента (нерезидента на другого нерезидента)","Сыйақының резидентті басқа резидентке (бейрезидентті басқа бейрезидентке) ауыстыру арқылы ұлғаюы",1,0]
[4798,null,"Увеличение вознаграждения за счет изменения резидента на нерезидента (нерезидента на резидента)","Сыйақының резидентті бейрезидентке (бейрезидентті резидентке) ауыстыру арқылы ұлғаюы","Увеличение вознаграждения за счет изменения резидента на нерезидента (нерезидента на резидента)",1,null,"49",1001,null,0,1,null,0,null,4798,1001,"49","Увеличение вознаграждения за счет изменения резидента на нерезидента (нерезидента на резидента)","Сыйақының резидентті бейрезидентке (бейрезидентті резидентке) ауыстыру арқылы ұлғаюы",1,0]
[4619,null,"Начислено в отчетном периоде вознаграждения","Есепті кезеңде сыйақы есептелді","Начислено в отчетном периоде вознаграждения",1,null,"50",1001,null,0,1,null,0,null,4619,1001,"50","Начислено в отчетном периоде вознаграждения","Есепті кезеңде сыйақы есептелді",1,0]
[4799,null,"Капитализировано в отчетном периоде вознаграждения","Есепті кезеңде сыйақы  капиталдандырылды","Капитализировано в отчетном периоде вознаграждения",1,null,"51",1001,null,0,1,null,0,null,4799,1001,"51","Капитализировано в отчетном периоде вознаграждения","Есепті кезеңде сыйақы  капиталдандырылды",1,0]
[4625,null,"Оплачено вознаграждения, взаимозачет вознаграждения с требованиями заемщика к кредитору по иным договорам","Төленген сыйақы, басқа шарттар бойынша қарыз алушының кредиторға қойған талаптарымен сыйақыны өзара есепке алуы","Оплачено вознаграждения, взаимозачет вознаграждения с требованиями заемщика к кредитору по иным договорам",1,null,"52",1001,null,0,1,null,0,null,4625,1001,"52","Оплачено вознаграждения, взаимозачет вознаграждения с требованиями заемщика к кредитору по иным договорам","Төленген сыйақы, басқа шарттар бойынша қарыз алушының кредиторға қойған талаптарымен сыйақыны өзара есепке алуы",1,0]
[4800,null,"     в том числе досрочно","     оның ішінде мерзімінен бұрын","     в том числе досрочно",1,null,"53",1001,null,0,1,null,0,null,4800,1001,"53","     в том числе досрочно","     оның ішінде мерзімінен бұрын",1,0]
[4801,null,"Прощено вознаграждения кредитором заемщику, в том числе за счет уменьшения ставки вознаграждения","Кредитордың қарыз алушыға сыйақысын кешіруі, оның ішінде сыйақы мөлшерлемесін төмендету арқылы","Прощено вознаграждения кредитором заемщику, в том числе за счет уменьшения ставки вознаграждения",1,null,"54",1001,null,0,1,null,0,null,4801,1001,"54","Прощено вознаграждения кредитором заемщику, в том числе за счет уменьшения ставки вознаграждения","Кредитордың қарыз алушыға сыйақысын кешіруі, оның ішінде сыйақы мөлшерлемесін төмендету арқылы",1,0]
[4802,null,"Обменено вознаграждение на инструменты участия в капитале (заемщика и (или) третьих лиц), недвижимость и иной актив заемщика","Сыйақы капиталға қатысу құралдарына  (қарыз алушы және (немесе) үшінші тұлғалардың), қарыз алушының жылжымайтын мүлкіне және өзге активіне ауыстырылды","Обменено вознаграждение на инструменты участия в капитале (заемщика и (или) третьих лиц), недвижимость и иной актив заемщика",1,null,"55",1001,null,0,1,null,0,null,4802,1001,"55","Обменено вознаграждение на инструменты участия в капитале (заемщика и (или) третьих лиц), недвижимость и иной актив заемщика","Сыйақы капиталға қатысу құралдарына  (қарыз алушы және (немесе) үшінші тұлғалардың), қарыз алушының жылжымайтын мүлкіне және өзге активіне ауыстырылды",1,0]
[4803,null,"Обменено вознаграждения на долговые ценные бумаги заемщика, поставки товара и иные долговые обязательства заемщика","Сыйақы қарыз алушының борыштық бағалы қағаздарына, қарыз алушының тауарды жеткізуіне және өзге де борыштық міндеттемелеріне ауыстырылды","Обменено вознаграждения на долговые ценные бумаги заемщика, поставки товара и иные долговые обязательства заемщика",1,null,"56",1001,null,0,1,null,0,null,4803,1001,"56","Обменено вознаграждения на долговые ценные бумаги заемщика, поставки товара и иные долговые обязательства заемщика","Сыйақы қарыз алушының борыштық бағалы қағаздарына, қарыз алушының тауарды жеткізуіне және өзге де борыштық міндеттемелеріне ауыстырылды",1,0]
[4804,null,"Уменьшение вознаграждения за счет изменения резидента на другого резидента (нерезидента на другого нерезидента)","Сыйақының резидентті басқа резидентке (бейрезидентті басқа бейрезидентке) ауыстыру арқылы азаюы","Уменьшение вознаграждения за счет изменения резидента на другого резидента (нерезидента на другого нерезидента)",1,null,"57",1001,null,0,1,null,0,null,4804,1001,"57","Уменьшение вознаграждения за счет изменения резидента на другого резидента (нерезидента на другого нерезидента)","Сыйақының резидентті басқа резидентке (бейрезидентті басқа бейрезидентке) ауыстыру арқылы азаюы",1,0]
[4805,null,"Уменьшение вознаграждения за счет изменения резидента на нерезидента (нерезидента на резидента)","Сыйақының резидентті бейрезидентке (бейрезидентті резидентке) ауыстыру арқылы азаюы","Уменьшение вознаграждения за счет изменения резидента на нерезидента (нерезидента на резидента)",1,null,"58",1001,null,0,1,null,0,null,4805,1001,"58","Уменьшение вознаграждения за счет изменения резидента на нерезидента (нерезидента на резидента)","Сыйақының резидентті бейрезидентке (бейрезидентті резидентке) ауыстыру арқылы азаюы",1,0]
[4806,null,"Перенос (+)/(-) вознаграждения в виду получения нового учетного номера по прочим основаниям","Басқа негіздемелер бойынша жаңа есептік нөмір алғандықтан сыйақыны тасымалдау (+)/(-)","Перенос (+)/(-) вознаграждения в виду получения нового учетного номера по прочим основаниям",1,null,"59",1001,null,0,1,null,0,null,4806,1001,"59","Перенос (+)/(-) вознаграждения в виду получения нового учетного номера по прочим основаниям","Басқа негіздемелер бойынша жаңа есептік нөмір алғандықтан сыйақыны тасымалдау (+)/(-)",1,0]
[4807,null,"Списано вознаграждения","Сыйақы есептен шығарылды","Списано вознаграждения",1,null,"60",1001,null,0,1,null,0,null,4807,1001,"60","Списано вознаграждения","Сыйақы есептен шығарылды",1,0]
[4808,null,"Прочие (+)/(-) изменения по вознаграждению (расшифровать)","Сыйақы бойынша басқа өзгерістер (+)/(-) (толық жазу)","Прочие (+)/(-) изменения по вознаграждению (расшифровать)",1,null,"61",1001,null,0,1,null,0,null,4808,1001,"61","Прочие (+)/(-) изменения по вознаграждению (расшифровать)","Сыйақы бойынша басқа өзгерістер (+)/(-) (толық жазу)",1,0]
[4693,null,"Задолженность по вознаграждению на конец отчетного периода (=(46) + (48) + (49) + (50) – (51) – (52) – (54) – (55) – (56) – (57) – (58) + (59) – (60) + (61)), в том числе:","Есепті кезеңнің соңындағы сыйақы бойынша берешек (=(46) + (48) + (49) + (50) – (51) – (52) – (54) – (55) – (56) – (57) – (58) + (59) – (60) + (61), оның ішінде:","Задолженность по вознаграждению на конец отчетного периода (=(46) + (48) + (49) + (50) – (51) – (52) – (54) – (55) – (56) – (57) – (58) + (59) – (60) + (61)), в том числе:",1,null,"62",1001,null,2,1,null,0,null,4693,1001,"62","Задолженность по вознаграждению на конец отчетного периода (=(46) + (48) + (49) + (50) – (51) – (52) – (54) – (55) – (56) – (57) – (58) + (59) – (60) + (61)), в том числе:","Есепті кезеңнің соңындағы сыйақы бойынша берешек (=(46) + (48) + (49) + (50) – (51) – (52) – (54) – (55) – (56) – (57) – (58) + (59) – (60) + (61), оның ішінде:",1,2]
[4636,null,"     просроченная задолженность","     мерзімі өткен берешек","     просроченная задолженность",1,null,"63",1001,null,0,1,null,0,null,4636,1001,"63","     просроченная задолженность","     мерзімі өткен берешек",1,0]
[4829,null,"     задолженность по налогам","     салықтар бойынша берешек","     задолженность по налогам",1,null,"64",1001,null,0,1,null,0,null,4829,1001,"64","     задолженность по налогам","     салықтар бойынша берешек",1,0]
[4809,null,"Раздел 3. Сведения по сопутствующим платежам к оплате заемщиком","3-бөлім. Қарыз алушы төлейтін ілеспе төлемдер бойынша мәліметтер","Раздел 3. Сведения по сопутствующим платежам к оплате заемщиком",1,null," ",1001,null,3,0,null,0,null,4809,1001," ","Раздел 3. Сведения по сопутствующим платежам к оплате заемщиком","3-бөлім. Қарыз алушы төлейтін ілеспе төлемдер бойынша мәліметтер",null,2]
[4834,null,"Неоплаченные комиссионные, штрафы и другие платежи к оплате заемщиком, на начало отчетного периода","Есепті кезеңнің басындағы төленбеген комиссиялық төлемдер, айыппұлдар және қарыз алушы төлейтін басқа да төлемдер","Неоплаченные комиссионные, штрафы и другие платежи к оплате заемщиком, на начало отчетного периода",1,null,"69",1001,null,0,1,null,0,null,4834,1001,"69","Неоплаченные комиссионные, штрафы и другие платежи к оплате заемщиком, на начало отчетного периода","Есепті кезеңнің басындағы төленбеген комиссиялық төлемдер, айыппұлдар және қарыз алушы төлейтін басқа да төлемдер",1,0]
[4810,null,"Оплачено заемщиком в отчетном периоде комиссионных, штрафов и других платежей, предусмотренных условиями договора к оплате заемщиком","Қарыз алушы есепті кезеңде комиссиялар, айыппұлдар және шарттың талаптарында қарыз алушының төлеуі көзделген басқа да төлемдер төледі","Оплачено заемщиком в отчетном периоде комиссионных, штрафов и других платежей, предусмотренных условиями договора к оплате заемщиком",1,null,"70",1001,null,0,1,null,0,null,4810,1001,"70","Оплачено заемщиком в отчетном периоде комиссионных, штрафов и других платежей, предусмотренных условиями договора к оплате заемщиком","Қарыз алушы есепті кезеңде комиссиялар, айыппұлдар және шарттың талаптарында қарыз алушының төлеуі көзделген басқа да төлемдер төледі",1,0]
[4811,null,"Прощено заемщику в отчетном периоде комиссионных, штрафов и других платежей, предусмотренных условиями договора к оплате заемщиком","Қарыз алушыға есепті кезеңде комиссиялар, айыппұлдар және шарттың талаптарында қарыз алушының төлеуі көзделген басқа да төлемдер кешірілді ","Прощено заемщику в отчетном периоде комиссионных, штрафов и других платежей, предусмотренных условиями договора к оплате заемщиком",1,null,"71",1001,null,0,1,null,0,null,4811,1001,"71","Прощено заемщику в отчетном периоде комиссионных, штрафов и других платежей, предусмотренных условиями договора к оплате заемщиком","Қарыз алушыға есепті кезеңде комиссиялар, айыппұлдар және шарттың талаптарында қарыз алушының төлеуі көзделген басқа да төлемдер кешірілді ",1,0]
[4812,null,"Списано в отчетном периоде комиссионных, штрафов и других платежей, предусмотренных условиями договора к оплате заемщиком","Есепті кезеңде комиссиялар, айыппұлдар және шарттың талаптарында қарыз алушының төлеуі көзделген басқа да төлемдер есептен шығарылды","Списано в отчетном периоде комиссионных, штрафов и других платежей, предусмотренных условиями договора к оплате заемщиком",1,null,"72",1001,null,0,1,null,0,null,4812,1001,"72","Списано в отчетном периоде комиссионных, штрафов и других платежей, предусмотренных условиями договора к оплате заемщиком","Есепті кезеңде комиссиялар, айыппұлдар және шарттың талаптарында қарыз алушының төлеуі көзделген басқа да төлемдер есептен шығарылды",1,0]
[4813,null,"Оплачено заемщиком в отчетном периоде штрафов и других платежей, налагаемых на заемщика судами и другими государственными учреждениями","Қарыз алушы есепті кезеңде айыппұлдарды және қарыз алушыға соттар мен басқа да мемлекеттік мекемелер салған басқа да төлемдерді төледі","Оплачено заемщиком в отчетном периоде штрафов и других платежей, налагаемых на заемщика судами и другими государственными учреждениями",1,null,"73",1001,null,0,1,null,0,null,4813,1001,"73","Оплачено заемщиком в отчетном периоде штрафов и других платежей, налагаемых на заемщика судами и другими государственными учреждениями","Қарыз алушы есепті кезеңде айыппұлдарды және қарыз алушыға соттар мен басқа да мемлекеттік мекемелер салған басқа да төлемдерді төледі",1,0]
[4814,null,"Прочие платежи заемщика (расшифровать)","Қарыз алушының басқа да төлемдері (талдап көрсетілсін)",{"$f":"CONCATENATE(IF(B276<>\"\",CONCATENATE(B276,\" \"),\"\"),IF(p_language_current_id=1,C276,IF(p_language_current_id=2,D276,IF(C276=D276,C276,CONCATENATE(D276,IF(F276=0,\" / \",CHAR(10)),C276)))),IF(G276<>\"\",CONCATENATE(\" \",G276),\"\"))","v":"Прочие платежи заемщика (расшифровать)"},1,null,"74",1001,null,0,1,null,0,null,4814,1001,"74","Прочие платежи заемщика (расшифровать)","Қарыз алушының басқа да төлемдері (талдап көрсетілсін)",1,0]
[{"$f":"P277","v":4815},null,{"$f":"S277","v":"Прочие операции заемщика, прочие изменения (расшифровать)"},{"$f":"T277","v":"Қарыз алушының басқа да операциялары, басқа да өзгерістер (толық жазу)"},"Прочие операции заемщика, прочие изменения (расшифровать)",1,null,{"$f":"CONCATENATE(R277)","v":"75"},{"$f":"Q277","v":1001},null,{"$f":"IF(V277<>\"\",IF(AND(V277=2,TRIM(R277)=\"\"),3,V277),\"\")","v":0},{"$f":"U277","v":1},null,{"$f":"W277","v":0},null,4815,1001,"75","Прочие операции заемщика, прочие изменения (расшифровать)","Қарыз алушының басқа да операциялары, басқа да өзгерістер (толық жазу)",1,0]
[4637,null,"Неоплаченные комиссионные, штрафы и другие платежи к оплате заемщиком, на конец отчетного периода","Есепті кезеңнің соңындағы төленбеген комиссиялар, айыппұлдар, қарыз алушы төлейтін басқа да төлемдер","Неоплаченные комиссионные, штрафы и другие платежи к оплате заемщиком, на конец отчетного периода",1,null,"76",1001,null,0,1,null,0,null,4637,1001,"76","Неоплаченные комиссионные, штрафы и другие платежи к оплате заемщиком, на конец отчетного периода","Есепті кезеңнің соңындағы төленбеген комиссиялар, айыппұлдар, қарыз алушы төлейтін басқа да төлемдер",1,0]
[4816,null,"Раздел 4. Сведения по сопутствующим платежам к оплате заемщику","4-бөлім. Қарыз алушыға төленетін ілеспе төлемдер бойынша мәліметтер","Раздел 4. Сведения по сопутствующим платежам к оплате заемщику",1,null," ",1001,null,3,0,null,0,null,4816,1001," ","Раздел 4. Сведения по сопутствующим платежам к оплате заемщику","4-бөлім. Қарыз алушыға төленетін ілеспе төлемдер бойынша мәліметтер",null,2]
[4835,null,"Неоплаченные комиссионные, штрафы и другие платежи к получению заемщиком, на начало отчетного периода","Есепті кезеңнің соңындағы төленбеген комиссиялар, айыппұлдар, қарыз алушы төлейтін басқа да төлемдер","Неоплаченные комиссионные, штрафы и другие платежи к получению заемщиком, на начало отчетного периода",1,null,"79",1001,null,0,1,null,0,null,4835,1001,"79","Неоплаченные комиссионные, штрафы и другие платежи к получению заемщиком, на начало отчетного периода","Есепті кезеңнің соңындағы төленбеген комиссиялар, айыппұлдар, қарыз алушы төлейтін басқа да төлемдер",1,0]
[4817,null,"Оплачено заемщику в отчетном периоде комиссионных, штрафов и других платежей, предусмотренных условиями договора к получению заемщиком","Есепті кезеңде комиссиялар, айыппұлдар, шарттың талаптарында қарыз алушыға төленуі көзделген басқа да төлемдер қарыз алушыға төленді","Оплачено заемщику в отчетном периоде комиссионных, штрафов и других платежей, предусмотренных условиями договора к получению заемщиком",1,null,"80",1001,null,0,1,null,0,null,4817,1001,"80","Оплачено заемщику в отчетном периоде комиссионных, штрафов и других платежей, предусмотренных условиями договора к получению заемщиком","Есепті кезеңде комиссиялар, айыппұлдар, шарттың талаптарында қарыз алушыға төленуі көзделген басқа да төлемдер қарыз алушыға төленді",1,0]
[4818,null,"Прощено заемщиком в отчетном периоде комиссионных, штрафов и других платежей, предусмотренных условиями договора к получению заемщиком","Қарыз алушы есепті кезеңде комиссияларды, айыппұлдарды, шарттың талаптарында қарыз алушыға төленуі көзделген басқа да төлемдерді кешірді  ","Прощено заемщиком в отчетном периоде комиссионных, штрафов и других платежей, предусмотренных условиями договора к получению заемщиком",1,null,"81",1001,null,0,1,null,0,null,4818,1001,"81","Прощено заемщиком в отчетном периоде комиссионных, штрафов и других платежей, предусмотренных условиями договора к получению заемщиком","Қарыз алушы есепті кезеңде комиссияларды, айыппұлдарды, шарттың талаптарында қарыз алушыға төленуі көзделген басқа да төлемдерді кешірді  ",1,0]
[4819,null,"Списано в отчетном периоде комиссионных, штрафов и других платежей, предусмотренных условиями договора к получению заемщиком","Есепті кезеңде комиссиялар, айыппұлдар, шарттың талаптарында қарыз алушыға төленуі көзделген басқа да төлемдер есептен шығарылды","Списано в отчетном периоде комиссионных, штрафов и других платежей, предусмотренных условиями договора к получению заемщиком",1,null,"82",1001,null,0,1,null,0,null,4819,1001,"82","Списано в отчетном периоде комиссионных, штрафов и других платежей, предусмотренных условиями договора к получению заемщиком","Есепті кезеңде комиссиялар, айыппұлдар, шарттың талаптарында қарыз алушыға төленуі көзделген басқа да төлемдер есептен шығарылды",1,0]
[4820,null,"Оплачено заемщику в отчетном периоде штрафов и других платежей, налагаемых на кредитора судами и другими государственными учреждениями","Қарыз алушыға есепті кезеңде айыппұлдар және қарыз берушіге соттар мен басқа да мемлекеттік мекемелер салған басқа да төлемдер  төленді ","Оплачено заемщику в отчетном периоде штрафов и других платежей, налагаемых на кредитора судами и другими государственными учреждениями",1,null,"83",1001,null,0,1,null,0,null,4820,1001,"83","Оплачено заемщику в отчетном периоде штрафов и других платежей, налагаемых на кредитора судами и другими государственными учреждениями","Қарыз алушыға есепті кезеңде айыппұлдар және қарыз берушіге соттар мен басқа да мемлекеттік мекемелер салған басқа да төлемдер  төленді ",1,0]
[4821,null,"Прочие платежи заемщику (расшифровать)","Қарыз алушыға басқа төлемдер (талдап көрсетілсін)","Прочие платежи заемщику (расшифровать)",1,null,"84",1001,null,0,1,null,0,null,4821,1001,"84","Прочие платежи заемщику (расшифровать)","Қарыз алушыға басқа төлемдер (талдап көрсетілсін)",1,0]
[4822,null,"Прочие операции в пользу заемщика, прочие изменения (расшифровать)","Қарыз алушының пайдасына басқа да операциялар, басқа да өзгерістер (толық жазу)","Прочие операции в пользу заемщика, прочие изменения (расшифровать)",1,null,"85",1001,null,0,1,null,0,null,4822,1001,"85","Прочие операции в пользу заемщика, прочие изменения (расшифровать)","Қарыз алушының пайдасына басқа да операциялар, басқа да өзгерістер (толық жазу)",1,0]
[4823,null,"Неоплаченные комиссионные, штрафы и другие платежи к получению заемщиком, на конец отчетного периода","Есепті кезеңнің соңында төленбеген комиссиялар, айыппұлдар, қарыз алушы алуға арналған басқа да төлемдер","Неоплаченные комиссионные, штрафы и другие платежи к получению заемщиком, на конец отчетного периода",1,null,"86",1001,null,0,1,null,0,null,4823,1001,"86","Неоплаченные комиссионные, штрафы и другие платежи к получению заемщиком, на конец отчетного периода","Есепті кезеңнің соңында төленбеген комиссиялар, айыппұлдар, қарыз алушы алуға арналған басқа да төлемдер",1,0]
[4855,null,"                         Часть 1. Участие инвесторов в капитале объекта инвестирования","                         1-бөлік. Инвесторлардың инвестициялау объектісінің капиталына қатысуы","                         Часть 1. Участие инвесторов в капитале объекта инвестирования",1,null," ",1011,null,3,0,null,0,null,4855,1011," ","                         Часть 1. Участие инвесторов в капитале объекта инвестирования","                         1-бөлік. Инвесторлардың инвестициялау объектісінің капиталына қатысуы",null,2]
[4598,null,"Накопленная стоимость на начало отчетного периода","Есептi кезеңнiң басындағы жинақталған құн","Накопленная стоимость на начало отчетного периода",1,null,"10",1011,null,0,1,null,0,null,4598,1011,"10","Накопленная стоимость на начало отчетного периода","Есептi кезеңнiң басындағы жинақталған құн",1,0]
[4599,null,"Изменения (+увеличение/-уменьшение) за отчетный период ((21) + (22) + (23) + (24) + (25) + (26) + (27) + (28) + (29) + (30) + (31) + (32) + (33) + (34) + (36) + (37) + (38))","Есепті кезеңде өзгеруі (+ұлғаю/-азаю) ((21) + (22) + (23) + (24) + (25) + (26) + (27) + (28) + (29) + (30) + (31) + (32) + (33) + (34) + (36) + (37) + (38))","Изменения (+увеличение/-уменьшение) за отчетный период ((21) + (22) + (23) + (24) + (25) + (26) + (27) + (28) + (29) + (30) + (31) + (32) + (33) + (34) + (36) + (37) + (38))",1,null,"20",1011,null,2,1,null,0,null,4599,1011,"20","Изменения (+увеличение/-уменьшение) за отчетный период ((21) + (22) + (23) + (24) + (25) + (26) + (27) + (28) + (29) + (30) + (31) + (32) + (33) + (34) + (36) + (37) + (38))","Есепті кезеңде өзгеруі (+ұлғаю/-азаю) ((21) + (22) + (23) + (24) + (25) + (26) + (27) + (28) + (29) + (30) + (31) + (32) + (33) + (34) + (36) + (37) + (38))",1,2]
[4642,null,"   в том числе за счет:","   оның ішінде мыналардың есебінен:","   в том числе за счет:",1,null," ",1011,null,3,0,null,0,null,4642,1011," ","   в том числе за счет:","   оның ішінде мыналардың есебінен:",null,2]
[4643,null,"          поступления (+)/изъятия (-) денег","          ақша түсiмi (+)/ алу (-)","          поступления (+)/изъятия (-) денег",1,null,"21",1011,null,0,1,null,0,null,4643,1011,"21","          поступления (+)/изъятия (-) денег","          ақша түсiмi (+)/ алу (-)",1,0]
[4644,null,"          поступления (+)/изъятия (-) оборудования, товаров и иного имущества","          жабдықтың, тауардың және өзге мүлiктiң түсуi (+)/алынуы (-)","          поступления (+)/изъятия (-) оборудования, товаров и иного имущества",1,null,"22",1011,null,0,1,null,0,null,4644,1011,"22","          поступления (+)/изъятия (-) оборудования, товаров и иного имущества","          жабдықтың, тауардың және өзге мүлiктiң түсуi (+)/алынуы (-)",1,0]
[4645,null,"          поступления (+)/изъятия (-) нематериальных активов","          материалдық емес активтердiң түсуi (+)/алынуы (-)","          поступления (+)/изъятия (-) нематериальных активов",1,null,"23",1011,null,0,1,null,0,null,4645,1011,"23","          поступления (+)/изъятия (-) нематериальных активов","          материалдық емес активтердiң түсуi (+)/алынуы (-)",1,0]
[4646,null,"          увеличения (+)/уменьшения (-) уставного капитала за счет задолженности по коммерческим кредитам и финансовым займам","          коммерциялық кредиттер және қаржы қарыздары бойынша берешек есебінен жарғылық капиталдың ұлғаюы (+)/азаюы(-)","          увеличения (+)/уменьшения (-) уставного капитала за счет задолженности по коммерческим кредитам и финансовым займам",1,null,"24",1011,null,0,1,null,0,null,4646,1011,"24","          увеличения (+)/уменьшения (-) уставного капитала за счет задолженности по коммерческим кредитам и финансовым займам","          коммерциялық кредиттер және қаржы қарыздары бойынша берешек есебінен жарғылық капиталдың ұлғаюы (+)/азаюы(-)",1,0]
[4647,null,"          зачисления дивидендов в уставный капитал (выплата дивидендов акциями) (+)","          жарғылық капиталға дивидендтер есептеу (дивидендтердi акциялармен төлеу) (+)","          зачисления дивидендов в уставный капитал (выплата дивидендов акциями) (+)",1,null,"25",1011,null,0,1,null,0,null,4647,1011,"25","          зачисления дивидендов в уставный капитал (выплата дивидендов акциями) (+)","          жарғылық капиталға дивидендтер есептеу (дивидендтердi акциялармен төлеу) (+)",1,0]
[4748,null,"          увеличения (+)/уменьшения (-) уставного капитала за счет нераспределенного дохода прошлых лет, резервного капитала или других статей капитала","          өткен жылдардың бөлінбеген кірісі есебінен жарғылық капиталдың, резервтік капиталдың немесе капиталдың басқа баптарының +ұлғаюы/-азаюы","          увеличения (+)/уменьшения (-) уставного капитала за счет нераспределенного дохода прошлых лет, резервного капитала или других статей капитала",1,null,"26",1011,null,0,1,null,0,null,4748,1011,"26","          увеличения (+)/уменьшения (-) уставного капитала за счет нераспределенного дохода прошлых лет, резервного капитала или других статей капитала","          өткен жылдардың бөлінбеген кірісі есебінен жарғылық капиталдың, резервтік капиталдың немесе капиталдың басқа баптарының +ұлғаюы/-азаюы",1,0]
[4824,null,"          внесения (+)/изъятия (-) недвижимости","          жылжымайтын мүлікті енгізу(+)/алуы (-)","          внесения (+)/изъятия (-) недвижимости",1,null,"27",1011,null,0,0,null,0,null,4824,1011,"27","          внесения (+)/изъятия (-) недвижимости","          жылжымайтын мүлікті енгізу(+)/алуы (-)",null,0]
[4749,null,"          внесения (+)/изъятия (-) ценных бумаг эмитентов-нерезидентов (включая векселя)","          бейрезидент-эмитенттердің бағалы қағаздарын (вексельді қоса) енгізу (+)/ алу (-)","          внесения (+)/изъятия (-) ценных бумаг эмитентов-нерезидентов (включая векселя)",1,null,"28",1011,null,0,1,null,0,null,4749,1011,"28","          внесения (+)/изъятия (-) ценных бумаг эмитентов-нерезидентов (включая векселя)","          бейрезидент-эмитенттердің бағалы қағаздарын (вексельді қоса) енгізу (+)/ алу (-)",1,0]
[4750,null,"          внесения (+)/изъятия (-) ценных бумаг эмитентов-резидентов","          резидент эмитенттердің бағалы қағаздарын енгізу (+)/алу (-)","          внесения (+)/изъятия (-) ценных бумаг эмитентов-резидентов",1,null,"29",1011,null,0,1,null,0,null,4750,1011,"29","          внесения (+)/изъятия (-) ценных бумаг эмитентов-резидентов","          резидент эмитенттердің бағалы қағаздарын енгізу (+)/алу (-)",1,0]
[4825,null,"          покупки (+)/продажи (-)/дарения (+/-) долей участия резидентом резиденту (нерезидентом нерезиденту)","         резиденттің резидентке (бейрезиденттің бейрезидентке) қатысу үлесін сатып алу (+)/сату (-)/сыйға тарту (+/-)","          покупки (+)/продажи (-)/дарения (+/-) долей участия резидентом резиденту (нерезидентом нерезиденту)",1,null,"30",1011,null,0,1,null,0,null,4825,1011,"30","          покупки (+)/продажи (-)/дарения (+/-) долей участия резидентом резиденту (нерезидентом нерезиденту)","         резиденттің резидентке (бейрезиденттің бейрезидентке) қатысу үлесін сатып алу (+)/сату (-)/сыйға тарту (+/-)",1,0]
[4826,null,"          присвоение нового учетного номера (+)/(-)","        жаңа есептік нөмір алу (+)/(-)","          присвоение нового учетного номера (+)/(-)",1,null,"31",1011,null,0,1,null,0,null,4826,1011,"31","          присвоение нового учетного номера (+)/(-)","        жаңа есептік нөмір алу (+)/(-)",1,0]
[4747,null,"          курсовой разницы (+)/(-)","          бағамдық айырма (+)/(-)","          курсовой разницы (+)/(-)",1,null,"32",1011,null,0,1,null,0,null,4747,1011,"32","          курсовой разницы (+)/(-)","          бағамдық айырма (+)/(-)",1,0]
[4753,null,"          ценовых изменений (+)/(-)","          баға өзгерістері (+)/(-)","          ценовых изменений (+)/(-)",1,null,"33",1011,null,0,1,null,0,null,4753,1011,"33","          ценовых изменений (+)/(-)","          баға өзгерістері (+)/(-)",1,0]
[4828,null,"          списания при ликвидации (-), реорганизации объекта инвестирования (+/-)","          инвестициялау объектісін жою (-), қайта ұйымдастыру (+/-) кезінде есептен шығару","          списания при ликвидации (-), реорганизации объекта инвестирования (+/-)",1,null,"34",1011,null,0,1,null,0,null,4828,1011,"34","          списания при ликвидации (-), реорганизации объекта инвестирования (+/-)","          инвестициялау объектісін жою (-), қайта ұйымдастыру (+/-) кезінде есептен шығару",1,0]
[4830,null,"          дарения (+)/(-) долей участия резидентом нерезиденту (нерезидентом резиденту)","          резиденттің бейрезидентке (бейрезиденттің резидентке) қатысу үлесін сыйға тарту (+/-)","          дарения (+)/(-) долей участия резидентом нерезиденту (нерезидентом резиденту)",1,null,"36",1011,null,0,0,null,0,null,4830,1011,"36","          дарения (+)/(-) долей участия резидентом нерезиденту (нерезидентом резиденту)","          резиденттің бейрезидентке (бейрезиденттің резидентке) қатысу үлесін сыйға тарту (+/-)",null,0]
[4854,null,"          покупки (+)/продажи (-) долей участия резидентом нерезиденту (нерезидентом резиденту)","          резиденттің бейрезидентке (бейрезиденттің резидентке) қатысу үлесін сатып алу (+)/сату (-)","          покупки (+)/продажи (-) долей участия резидентом нерезиденту (нерезидентом резиденту)",1,null,"37",1011,null,0,0,null,0,null,4854,1011,"37","          покупки (+)/продажи (-) долей участия резидентом нерезиденту (нерезидентом резиденту)","          резиденттің бейрезидентке (бейрезиденттің резидентке) қатысу үлесін сатып алу (+)/сату (-)",null,0]
[4932,null,"          прочее (расшифровать)","          басқалар (толық жазу)","          прочее (расшифровать)",1,null,"38",1011,null,0,0,null,0,null,4932,1011,"38","          прочее (расшифровать)","          басқалар (толық жазу)",null,0]
[4601,null,"Накопленная стоимость на конец отчетного периода ((10) + (20))","Есепті кезеңнің соңындағы жинақталған құн (10) + (20)","Накопленная стоимость на конец отчетного периода ((10) + (20))",1,null,"39",1011,null,2,1,null,0,null,4601,1011,"39","Накопленная стоимость на конец отчетного периода ((10) + (20))","Есепті кезеңнің соңындағы жинақталған құн (10) + (20)",1,2]
[4602,null,"Доля инвестора в уставном капитале на конец отчетного периода, %","Инвестордың есепті кезеңнің соңындағы жарғылық капиталға үлесі, %","Доля инвестора в уставном капитале на конец отчетного периода, %",1,null,"40",1011,null,0,3,null,0,null,4602,1011,"40","Доля инвестора в уставном капитале на конец отчетного периода, %","Инвестордың есепті кезеңнің соңындағы жарғылық капиталға үлесі, %",3,0]
[4827,null,"Дивиденды, объявленные в отчетном периоде","Есепті кезеңде жарияланған дивидендтер","Дивиденды, объявленные в отчетном периоде",1,null,"41",1011,null,0,1,null,0,null,4827,1011,"41","Дивиденды, объявленные в отчетном периоде","Есепті кезеңде жарияланған дивидендтер",1,0]
[4604,null,"Дивиденды, выплаченные (полученные) за отчетный период, включая выплаченный (подлежащий к выплате) налог: ((51)+(52)+(53)), в том числе","Есепті кезең үшін төленген (алынған) дивидендтер, төленген (төлеуге жататын) салықты қоса: (51)+(52)+(53), оның ішінде","Дивиденды, выплаченные (полученные) за отчетный период, включая выплаченный (подлежащий к выплате) налог: ((51)+(52)+(53)), в том числе",1,null,"50",1011,null,2,1,null,0,null,4604,1011,"50","Дивиденды, выплаченные (полученные) за отчетный период, включая выплаченный (подлежащий к выплате) налог: ((51)+(52)+(53)), в том числе","Есепті кезең үшін төленген (алынған) дивидендтер, төленген (төлеуге жататын) салықты қоса: (51)+(52)+(53), оның ішінде",1,2]
[4755,null,"             в виде денег","             ақша түрінде","             в виде денег",1,null,"51",1011,null,0,1,null,0,null,4755,1011,"51","             в виде денег","             ақша түрінде",1,0]
[4756,null,"             в виде акций (долей участия)","             акциялар түрінде (қатысу үлесімен)","             в виде акций (долей участия)",1,null,"52",1011,null,0,1,null,0,null,4756,1011,"52","             в виде акций (долей участия)","             акциялар түрінде (қатысу үлесімен)",1,0]
[4757,null,"             иное (расшифровать)","             өзге (толық жазу)","             иное (расшифровать)",1,null,"53",1011,null,0,1,null,0,null,4757,1011,"53","             иное (расшифровать)","             өзге (толық жазу)",1,0]
[4840,null,"Задолженность на конец отчетного периода по оплате подоходного налога с дохода инвестора, удерживаемого у источника выплаты","Төлем көзінен ұсталатын инвестордың табысынан табыс салығын төлеу бойынша есепті кезеңнің аяғындағы берешек","Задолженность на конец отчетного периода по оплате подоходного налога с дохода инвестора, удерживаемого у источника выплаты",1,null,"54",1011,null,0,1,null,0,null,4840,1011,"54","Задолженность на конец отчетного периода по оплате подоходного налога с дохода инвестора, удерживаемого у источника выплаты","Төлем көзінен ұсталатын инвестордың табысынан табыс салығын төлеу бойынша есепті кезеңнің аяғындағы берешек",1,0]
[4841,null,"Информация о расчетах по покупке (продаже) акций, долей участия объекта инвестирования","Инвестициялау объектісінің акцияларды, қатысу үлестерін сатып алу (сату) бойынша есеп айырысулары туралы ақпарат","Информация о расчетах по покупке (продаже) акций, долей участия объекта инвестирования",1,null," ",0,null,3,0,null,0,null,4841,0," ","Информация о расчетах по покупке (продаже) акций, долей участия объекта инвестирования","Инвестициялау объектісінің акцияларды, қатысу үлестерін сатып алу (сату) бойынша есеп айырысулары туралы ақпарат",null,2]
[4842,null,"                         Часть 2. Требования резидента к нерезиденту","                         2 бөлік. Резиденттің бейрезидентке қоятын талаптары","                         Часть 2. Требования резидента к нерезиденту",1,null,"  ",1014,null,3,0,null,0,null,4842,1014,"  ","                         Часть 2. Требования резидента к нерезиденту","                         2 бөлік. Резиденттің бейрезидентке қоятын талаптары",null,2]
[4843,null,"Задолженность нерезидента перед резидентом на начало отчетного периода","Есепті кезеңнің басындағы бейрезиденттің резидент алдындағы берешегі","Задолженность нерезидента перед резидентом на начало отчетного периода",1,null,"60",1014,null,0,1,null,0,null,4843,1014,"60","Задолженность нерезидента перед резидентом на начало отчетного периода","Есепті кезеңнің басындағы бейрезиденттің резидент алдындағы берешегі",1,0]
[4844,null,"Увеличение задолженности в отчетном периоде, в том числе:","Есепті кезеңде берешектің ұлғаюы, оның ішінде:","Увеличение задолженности в отчетном периоде, в том числе:",1,null,"61",1014,null,2,1,null,0,null,4844,1014,"61","Увеличение задолженности в отчетном периоде, в том числе:","Есепті кезеңде берешектің ұлғаюы, оның ішінде:",1,2]
[4933,null,"предварительная оплата резидентом","резиденттің алдын ала ақы төлеуі ","предварительная оплата резидентом",1,null,"61.1",1014,null,0,1,null,0,null,4933,1014,"61.1","предварительная оплата резидентом","резиденттің алдын ала ақы төлеуі ",1,0]
[4934,null,"передача права собственности на объект инвестирования нерезиденту с отсрочкой платежа)","төлем мерзімін кейінге қалдыра отырып инвестициялау объектісіне меншік құқығын бейрезидентке беру","передача права собственности на объект инвестирования нерезиденту с отсрочкой платежа)",1,null,"61.2",1014,null,0,1,null,0,null,4934,1014,"61.2","передача права собственности на объект инвестирования нерезиденту с отсрочкой платежа)","төлем мерзімін кейінге қалдыра отырып инвестициялау объектісіне меншік құқығын бейрезидентке беру",1,0]
[4845,null,"Погашение задолженности в отчетном периоде, в том числе:","Есепті кезеңде берешекті өтеу, оның ішінде:","Погашение задолженности в отчетном периоде, в том числе:",1,null,"62",1014,null,2,1,null,0,null,4845,1014,"62","Погашение задолженности в отчетном периоде, в том числе:","Есепті кезеңде берешекті өтеу, оның ішінде:",1,2]
[4935,null,"переход права собственности резиденту на объект инвестирования","инвестициялау объектісіне меншік құқығының резидентке өтуі","переход права собственности резиденту на объект инвестирования",1,null,"62.1",1014,null,0,1,null,0,null,4935,1014,"62.1","переход права собственности резиденту на объект инвестирования","инвестициялау объектісіне меншік құқығының резидентке өтуі",1,0]
[4936,null,"оплата нерезидентом","бейрезиденттің ақы төлеуі","оплата нерезидентом",1,null,"62.2",1014,null,0,1,null,0,null,4936,1014,"62.2","оплата нерезидентом","бейрезиденттің ақы төлеуі",1,0]
[4846,null,"Прочие изменения по задолженности в отчетном периоде (расшифровать)","Есепті кезеңдегі берешек бойынша басқа да өзгерістер (толық жазу)","Прочие изменения по задолженности в отчетном периоде (расшифровать)",1,null,"63",1014,null,0,1,null,0,null,4846,1014,"63","Прочие изменения по задолженности в отчетном периоде (расшифровать)","Есепті кезеңдегі берешек бойынша басқа да өзгерістер (толық жазу)",1,0]
[4847,null,"Задолженность нерезидента перед резидентом на конец отчетного периода (= (60) + (61) – (62) + (63))","Есепті кезеңнің аяғындағы бейрезиденттің резидент алдындағы берешегі (= (60) + (61) – (62) + (63))","Задолженность нерезидента перед резидентом на конец отчетного периода (= (60) + (61) – (62) + (63))",1,null,"64",1014,null,2,1,null,0,null,4847,1014,"64","Задолженность нерезидента перед резидентом на конец отчетного периода (= (60) + (61) – (62) + (63))","Есепті кезеңнің аяғындағы бейрезиденттің резидент алдындағы берешегі (= (60) + (61) – (62) + (63))",1,2]
[4848,null,"                         Часть 3. Обязательства резидента перед нерезидентом ","                         3 бөлік. Резиденттің бейрезидент алдындағы міндеттемелері","                         Часть 3. Обязательства резидента перед нерезидентом ",1,null,"   ",1014,null,3,0,null,0,null,4848,1014,"   ","                         Часть 3. Обязательства резидента перед нерезидентом ","                         3 бөлік. Резиденттің бейрезидент алдындағы міндеттемелері",null,2]
[4849,null,"Задолженность резидента перед нерезидентом на начало отчетного периода","Есепті кезеңнің басындағы резиденттің бейрезидент алдындағы берешегі","Задолженность резидента перед нерезидентом на начало отчетного периода",1,null,"70",1014,null,0,1,null,0,null,4849,1014,"70","Задолженность резидента перед нерезидентом на начало отчетного периода","Есепті кезеңнің басындағы резиденттің бейрезидент алдындағы берешегі",1,0]
[4850,null,"Увеличение задолженности в отчетном периоде, в том числе:","Есепті кезеңде берешектің ұлғаюы, оның ішінде:","Увеличение задолженности в отчетном периоде, в том числе:",1,null,"71",1014,null,2,1,null,0,null,4850,1014,"71","Увеличение задолженности в отчетном периоде, в том числе:","Есепті кезеңде берешектің ұлғаюы, оның ішінде:",1,2]
[4937,null,"предварительная оплата нерезидентом","бейрезиденттің алдын ала ақы төлеуі","предварительная оплата нерезидентом",1,null,"71.1",1014,null,0,1,null,0,null,4937,1014,"71.1","предварительная оплата нерезидентом","бейрезиденттің алдын ала ақы төлеуі",1,0]
[4938,null,"передача права собственности на объект инвестирования резиденту с отсрочкой платежа","төлем мерзімін кейінге қалдыра отырып инвестициялау объектісіне меншік құқығын резидентке беру","передача права собственности на объект инвестирования резиденту с отсрочкой платежа",1,null,"71.2",1014,null,0,1,null,0,null,4938,1014,"71.2","передача права собственности на объект инвестирования резиденту с отсрочкой платежа","төлем мерзімін кейінге қалдыра отырып инвестициялау объектісіне меншік құқығын резидентке беру",1,0]
[4851,null,"Погашение задолженности в отчетном периоде, в том числе:","Есепті кезеңде берешекті өтеу, оның ішінде:","Погашение задолженности в отчетном периоде, в том числе:",1,null,"72",1014,null,2,1,null,0,null,4851,1014,"72","Погашение задолженности в отчетном периоде, в том числе:","Есепті кезеңде берешекті өтеу, оның ішінде:",1,2]
[4939,null,"переход права собственности нерезиденту на объект инвестирования","инвестициялау объектісіне меншік құқығының бейрезидентке өтуі","переход права собственности нерезиденту на объект инвестирования",1,null,"72.1",1014,null,0,1,null,0,null,4939,1014,"72.1","переход права собственности нерезиденту на объект инвестирования","инвестициялау объектісіне меншік құқығының бейрезидентке өтуі",1,0]
[4940,null,"оплата резидентом","резиденттің ақы төлеуі","оплата резидентом",1,null,"72.2",1014,null,0,1,null,0,null,4940,1014,"72.2","оплата резидентом","резиденттің ақы төлеуі",1,0]
[4852,null,"Прочие изменения по задолженности в отчетном периоде (расшифровать)","Есепті кезеңдегі берешек бойынша басқа да өзгерістер (толық жазу)","Прочие изменения по задолженности в отчетном периоде (расшифровать)",1,null,"73",1014,null,0,1,null,0,null,4852,1014,"73","Прочие изменения по задолженности в отчетном периоде (расшифровать)","Есепті кезеңдегі берешек бойынша басқа да өзгерістер (толық жазу)",1,0]
[4853,null,"Задолженность резидента перед нерезидентом на конец отчетного периода (= (70) + (71) – (72) + (73))","Есепті кезеңнің аяғындағы резиденттің бейрезидент алдындағы берешегі (= (70) + (71) – (72) + (73))","Задолженность резидента перед нерезидентом на конец отчетного периода (= (70) + (71) – (72) + (73))",1,null,"74",1014,null,2,1,null,0,null,4853,1014,"74","Задолженность резидента перед нерезидентом на конец отчетного периода (= (70) + (71) – (72) + (73))","Есепті кезеңнің аяғындағы резиденттің бейрезидент алдындағы берешегі (= (70) + (71) – (72) + (73))",1,2]
[4875,null,"Вид исполнения обязательства","Міндеттемелерді орындау түрі","Вид исполнения обязательства",1,null,"1002",1031,null,0,7,null,0,null,4875,1031,"1002","Вид исполнения обязательства","Міндеттемелерді орындау түрі",7,0]
[4876,null,"Код назначения платежа","Төлем белгілеу коды","Код назначения платежа",1,null,"1003",1031,null,0,6,null,0,null,4876,1031,"1003","Код назначения платежа","Төлем белгілеу коды",6,0]
[4877,null,"Название актива","Активтің аты",{"$f":"CONCATENATE(IF(B340<>\"\",CONCATENATE(B340,\" \"),\"\"),IF(p_language_current_id=1,C340,IF(p_language_current_id=2,D340,IF(C340=D340,C340,CONCATENATE(D340,IF(F340=0,\" / \",CHAR(10)),C340)))),IF(G340<>\"\",CONCATENATE(\" \",G340),\"\"))","v":"Название актива"},1,null,"1004",1031,null,0,6,null,0,null,4877,1031,"1004","Название актива","Активтің аты",6,0]
[{"$f":"P341","v":4880},null,{"$f":"S341","v":"Отправитель"},{"$f":"T341","v":"Жөнелтуші"},"Отправитель",1,null,{"$f":"CONCATENATE(R341)","v":""},{"$f":"Q341","v":0},null,{"$f":"IF(V341<>\"\",IF(AND(V341=2,TRIM(R341)=\"\"),3,V341),\"\")","v":3},{"$f":"U341","v":0},null,{"$f":"W341","v":0},null,4880,0,null,"Отправитель","Жөнелтуші",null,2]
[4878,null,"Признак резидентства","Резиденттік белгісі","Признак резидентства",1,null,"1005",1031,null,0,4,null,4880,null,4878,1031,"1005","Признак резидентства","Резиденттік белгісі",4,0,4880]
[4879,null,"Наименование/ фамилия, имя, отчество (при наличии)","Атауы, тегі, аты, әкесінің аты (бар болса)","Наименование/ фамилия, имя, отчество (при наличии)",1,null,"1006",1031,null,0,6,null,4880,null,4879,1031,"1006","Наименование/ фамилия, имя, отчество (при наличии)","Атауы, тегі, аты, әкесінің аты (бар болса)",6,0,4880]
[4881,null,"Бенефициар","Бенефициар","Бенефициар",1,null,"",0,null,3,0,null,0,null,4881,0,null,"Бенефициар","Бенефициар",null,2]
[4882,null,"Признак резидентства","Резиденттік белгісі","Признак резидентства",1,null,"1007",1031,null,0,4,null,4881,null,4882,1031,"1007","Признак резидентства","Резиденттік белгісі",4,0,4881]
[4883,null,"Наименование/ фамилия, имя, отчество (при наличии)","Атауы, тегі, аты, әкесінің аты (бар болса )","Наименование/ фамилия, имя, отчество (при наличии)",1,null,"1008",1031,null,0,6,null,4881,null,4883,1031,"1008","Наименование/ фамилия, имя, отчество (при наличии)","Атауы, тегі, аты, әкесінің аты (бар болса )",6,0,4881]
[4884,null,"Дата","Күні","Дата",1,null,"1009",1031,null,0,5,null,0,null,4884,1031,"1009","Дата","Күні",5,0]
[4885,null,"Валюта","Валютасы","Валюта",1,null,"1010",1031,null,0,7,null,0,null,4885,1031,"1010","Валюта","Валютасы",7,0]
[4886,null,"Сумма, тысяч единиц валюты","Сомасы, валютаның мың бірлігі","Сумма, тысяч единиц валюты",1,null,"1011",1031,null,0,1,null,0,null,4886,1031,"1011","Сумма, тысяч единиц валюты","Сомасы, валютаның мың бірлігі",1,0]
[4887,null,"Примечание","Ескертпе","Примечание",1,null,"1012",1031,null,0,6,null,0,null,4887,1031,"1012","Примечание","Ескертпе",6,0]
[4868,null,"Накопленная стоимость на конец отчетного периода, в том числе в виде:","Есепті кезеңнің соңындағы жинақталған құн, оның ішінде мыналар түрінде:","Накопленная стоимость на конец отчетного периода, в том числе в виде:",1,null,"10",1032,null,2,0,null,0,null,4868,1032,"10","Накопленная стоимость на конец отчетного периода, в том числе в виде:","Есепті кезеңнің соңындағы жинақталған құн, оның ішінде мыналар түрінде:",null,2]
[4869,null,"     денег","     ақша","     денег",1,null,"11",1032,null,0,1,null,4868,null,4869,1032,"11","     денег","     ақша",1,0,4868]
[4870,null,"     ценных бумаг, долей участия, в том числе:","     бағалы қағаздар, қатысу үлестері, оның ішінде:","     ценных бумаг, долей участия, в том числе:",1,null,"12",1032,null,0,1,null,4868,null,4870,1032,"12","     ценных бумаг, долей участия, в том числе:","     бағалы қағаздар, қатысу үлестері, оның ішінде:",1,0,4868]
[{"$f":"P354","v":4941},null,{"$f":"S354","v":"         акций, паев инвестиционных фондов, фондов денежного рынка"},{"$f":"T354","v":"         акциялар, инвестициялық қорлардың пайлары, ақша нарығының қорлары"},{"$f":"CONCATENATE(IF(B354<>\"\",CONCATENATE(B354,\" \"),\"\"),IF(p_language_current_id=1,C354,IF(p_language_current_id=2,D354,IF(C354=D354,C354,CONCATENATE(D354,IF(F354=0,\" / \",CHAR(10)),C354)))),IF(G354<>\"\",CONCATENATE(\" \",G354),\"\"))","v":"         акций, паев инвестиционных фондов, фондов денежного рынка"},1,null,"12.1",{"$f":"Q354","v":1032},null,{"$f":"IF(V354<>\"\",IF(AND(V354=2,TRIM(R354)=\"\"),3,V354),\"\")","v":0},{"$f":"U354","v":1},null,{"$f":"W354","v":4868},null,4941,1032,"12.1","         акций, паев инвестиционных фондов, фондов денежного рынка","         акциялар, инвестициялық қорлардың пайлары, ақша нарығының қорлары",1,0,4868]
[4871,null,"     недвижимости","     жылжымайтын мүлік","     недвижимости",1,null,"13",1032,null,0,1,null,4868,null,4871,1032,"13","     недвижимости","     жылжымайтын мүлік",1,0,4868]
[4872,null,"     прочее (расшифровать)","     басқа да (толық жазылсын)","     прочее (расшифровать)",1,null,"14",1032,null,0,1,null,4868,null,4872,1032,"14","     прочее (расшифровать)","     басқа да (толық жазылсын)",1,0,4868]
[4873,null,"Доход резидента в отчетном периоде","Резиденттің есепті кезеңдегі кірісі","Доход резидента в отчетном периоде",1,null,"20",1032,null,0,1,null,0,null,4873,1032,"20","Доход резидента в отчетном периоде","Резиденттің есепті кезеңдегі кірісі",1,0]
[4874,null,"Доход нерезидента в отчетном периоде","Бейрезиденттің есепті кезеңдегі кірісі","Доход нерезидента в отчетном периоде",1,null,"21",1032,null,0,1,null,0,null,4874,1032,"21","Доход нерезидента в отчетном периоде","Бейрезиденттің есепті кезеңдегі кірісі",1,0]
[4758,null,"Ставка, по которой начисляется вознаграждение по счету в отчетном периоде (% годовых)","Есепті кезеңде шот бойынша сыйақы есептелетін мөлшерлеме (жылдық %)","Ставка, по которой начисляется вознаграждение по счету в отчетном периоде (% годовых)",1,null,"10",1041,null,0,2,null,0,null,4758,1041,"10","Ставка, по которой начисляется вознаграждение по счету в отчетном периоде (% годовых)","Есепті кезеңде шот бойынша сыйақы есептелетін мөлшерлеме (жылдық %)",2,0]
[4702,null,"Остатки на начало отчетного периода","Есептi кезеңнiң басындағы қалдық","Остатки на начало отчетного периода",1,null,"11",1041,null,0,1,null,0,null,4702,1041,"11","Остатки на начало отчетного периода","Есептi кезеңнiң басындағы қалдық",1,0]
[4703,null,"Всего поступило денег за период ((21) + (31) + (32))","Кезең iшiнде түскен барлық қаражат ((21) + (31) + (32))","Всего поступило денег за период ((21) + (31) + (32))",1,null,"20",1041,null,2,1,null,0,null,4703,1041,"20","Всего поступило денег за период ((21) + (31) + (32))","Кезең iшiнде түскен барлық қаражат ((21) + (31) + (32))",1,2]
[4704,null,"       в том числе:","       оның iшiнде:","       в том числе:",1,null," ",1041,null,3,0,null,0,null,4704,1041," ","       в том числе:","       оның iшiнде:",null,2]
[4731,null,"  от нерезидентов ((22) + (23) + (24) + (25) + (26) + (27) + (28) + (29) + (30)):","  бейрезиденттерден ((22) + (23) + (24) + (25) + (26) + (27) + (28) + (29) + (30)):","  от нерезидентов ((22) + (23) + (24) + (25) + (26) + (27) + (28) + (29) + (30)):",1,null,"21",1041,null,2,1,null,0,null,4731,1041,"21","  от нерезидентов ((22) + (23) + (24) + (25) + (26) + (27) + (28) + (29) + (30)):","  бейрезиденттерден ((22) + (23) + (24) + (25) + (26) + (27) + (28) + (29) + (30)):",1,2]
[4705,null,"    выручки от экспорта товаров (работ, услуг)","    тауарлар (жұмыстар, қызметтер) экспортынан түсiм ","    выручки от экспорта товаров (работ, услуг)",1,null,"22",1041,null,0,1,null,0,null,4705,1041,"22","    выручки от экспорта товаров (работ, услуг)","    тауарлар (жұмыстар, қызметтер) экспортынан түсiм ",1,0]
[4706,null,"    по привлеченным финансовым займам","    тартылған қаржылай қарыздар бойынша","    по привлеченным финансовым займам",1,null,"23",1041,null,0,1,null,0,null,4706,1041,"23","    по привлеченным финансовым займам","    тартылған қаржылай қарыздар бойынша",1,0]
[4732,null,"    от погашения выданных финансовых займов","    берiлген қаржылай қарыздарды өтеуден","    от погашения выданных финансовых займов",1,null,"24",1041,null,0,1,null,0,null,4732,1041,"24","    от погашения выданных финансовых займов","    берiлген қаржылай қарыздарды өтеуден",1,0]
[4733,null,"    по участию в уставном капитале (включая акции), в том числе через брокера-нерезидента","    жарғылық капиталға қатысу (акцияларды қоса алғанда) бойынша, оның ішінде бейрезидент-брокер арқылы","    по участию в уставном капитале (включая акции), в том числе через брокера-нерезидента",1,null,"25",1041,null,0,1,null,0,null,4733,1041,"25","    по участию в уставном капитале (включая акции), в том числе через брокера-нерезидента","    жарғылық капиталға қатысу (акцияларды қоса алғанда) бойынша, оның ішінде бейрезидент-брокер арқылы",1,0]
[4734,null,"    по операциям с ценными бумагами (кроме акций) и производными финансовыми инструментами, в том числе через брокера-нерезидента","    бағалы қағаздармен (акциялардан басқа) және туынды қаржы құралдарымен операциялар бойынша, оның ішінде бейрезидент-брокер арқылы","    по операциям с ценными бумагами (кроме акций) и производными финансовыми инструментами, в том числе через брокера-нерезидента",1,null,"26",1041,null,0,1,null,0,null,4734,1041,"26","    по операциям с ценными бумагами (кроме акций) и производными финансовыми инструментами, в том числе через брокера-нерезидента","    бағалы қағаздармен (акциялардан басқа) және туынды қаржы құралдарымен операциялар бойынша, оның ішінде бейрезидент-брокер арқылы",1,0]
[4735,null,"    от продажи недвижимости","    жылжымайтын мүлiктi сатудан","    от продажи недвижимости",1,null,"27",1041,null,0,1,null,0,null,4735,1041,"27","    от продажи недвижимости","    жылжымайтын мүлiктi сатудан",1,0]
[4736,null,"    от совместной деятельности","    бiрлескен қызметтен","    от совместной деятельности",1,null,"28",1041,null,0,1,null,0,null,4736,1041,"28","    от совместной деятельности","    бiрлескен қызметтен",1,0]
[4737,null,"    вознаграждения и дивиденды","    сыйақы және дивидендтер","    вознаграждения и дивиденды",1,null,"29",1041,null,0,1,null,0,null,4737,1041,"29","    вознаграждения и дивиденды","    сыйақы және дивидендтер",1,0]
[4838,null,"          в том числе вознаграждение по данному счету","          оның ішінде осы шот бойынша сыйақы","          в том числе вознаграждение по данному счету",1,null,"29а",1041,null,0,1,null,0,null,4838,1041,"29а","          в том числе вознаграждение по данному счету","          оның ішінде осы шот бойынша сыйақы",1,0]
[4713,null,"    иное (расшифровать)","    өзге де (толық жазылсын)","    иное (расшифровать)",1,null,"30",1041,null,0,1,null,0,null,4713,1041,"30","    иное (расшифровать)","    өзге де (толық жазылсын)",1,0]
[4738,null,"  от резидентов","  резиденттерден","  от резидентов",1,null,"31",1041,null,0,1,null,0,null,4738,1041,"31","  от резидентов","  резиденттерден",1,0]
[4707,null,"  в порядке перевода с других собственных банковских счетов, включая конвертацию валют ((33)+(34)):","  валютаны айырбастауды қоса алғанда басқа меншiктi банк шоттардан аудару тәртiбiмен ((33)+(34)):","  в порядке перевода с других собственных банковских счетов, включая конвертацию валют ((33)+(34)):",1,null,"32",1041,null,2,1,null,0,null,4707,1041,"32","  в порядке перевода с других собственных банковских счетов, включая конвертацию валют ((33)+(34)):","  валютаны айырбастауды қоса алғанда басқа меншiктi банк шоттардан аудару тәртiбiмен ((33)+(34)):",1,2]
[4708,null,"     с банковских счетов в уполномоченных банках-резидентах","     уәкiлеттi резидент-банктердегi банк шоттарынан","     с банковских счетов в уполномоченных банках-резидентах",1,null,"33",1041,null,0,1,null,0,null,4708,1041,"33","     с банковских счетов в уполномоченных банках-резидентах","     уәкiлеттi резидент-банктердегi банк шоттарынан",1,0]
[4739,null,"     со счетов в иностранных банках","     шетел банктерiндегi шоттардан ","     со счетов в иностранных банках",1,null,"34",1041,null,0,1,null,0,null,4739,1041,"34","     со счетов в иностранных банках","     шетел банктерiндегi шоттардан ",1,0]
[4714,null,"Всего израсходовано денег за период ((41) + (42) + (52) + (53))","Кезең iшiнде жұмсалған барлық қаражат ((41) + (42) + (52) + (53))","Всего израсходовано денег за период ((41) + (42) + (52) + (53))",1,null,"40",1041,null,2,1,null,0,null,4714,1041,"40","Всего израсходовано денег за период ((41) + (42) + (52) + (53))","Кезең iшiнде жұмсалған барлық қаражат ((41) + (42) + (52) + (53))",1,2]
[4715,null,"       в том числе:","       оның iшiнде:","       в том числе:",1,null," ",1041,null,3,0,null,0,null,4715,1041," ","       в том числе:","       оның iшiнде:",null,2]
[4719,null,"  на содержание своих филиалов и представительств","  өз филиалдары мен өкiлдіктерiн ұстауға","  на содержание своих филиалов и представительств",1,null,"41",1041,null,0,1,null,0,null,4719,1041,"41","  на содержание своих филиалов и представительств","  өз филиалдары мен өкiлдіктерiн ұстауға",1,0]
[4740,null,"  иное израсходование на нерезидентов ((43)+(44) +(45) + (46) + (47) + (48) + (49) + (50) + (51)):","  бейрезиденттерге басқа шығын ((43)+(44) +(45) + (46) + (47) + (48) + (49) + (50) + (51)):","  иное израсходование на нерезидентов ((43)+(44) +(45) + (46) + (47) + (48) + (49) + (50) + (51)):",1,null,"42",1041,null,2,1,null,0,null,4740,1041,"42","  иное израсходование на нерезидентов ((43)+(44) +(45) + (46) + (47) + (48) + (49) + (50) + (51)):","  бейрезиденттерге басқа шығын ((43)+(44) +(45) + (46) + (47) + (48) + (49) + (50) + (51)):",1,2]
[4717,null,"      на импорт товаров (работ, услуг)","      тауарлар (жұмыстар, қызметтер) импортына","      на импорт товаров (работ, услуг)",1,null,"43",1041,null,0,1,null,0,null,4717,1041,"43","      на импорт товаров (работ, услуг)","      тауарлар (жұмыстар, қызметтер) импортына",1,0]
[4720,null,"      на погашение привлеченных финансовых займов","      тартылған қаржылай қарыздарды өтеуге","      на погашение привлеченных финансовых займов",1,null,"44",1041,null,0,1,null,0,null,4720,1041,"44","      на погашение привлеченных финансовых займов","      тартылған қаржылай қарыздарды өтеуге",1,0]
[4741,null,"      на выдачу финансовых займов","      қаржылай қарыздарды беруге","      на выдачу финансовых займов",1,null,"45",1041,null,0,1,null,0,null,4741,1041,"45","      на выдачу финансовых займов","      қаржылай қарыздарды беруге",1,0]
[4718,null,"      по участию в уставном капитале (включая акции), в том числе через брокера-нерезидента","      жарғылық капиталға қатысу бойынша (акцияларды қоса алғанда), оның ішінде бейрезидент-брокер арқылы","      по участию в уставном капитале (включая акции), в том числе через брокера-нерезидента",1,null,"46",1041,null,0,1,null,0,null,4718,1041,"46","      по участию в уставном капитале (включая акции), в том числе через брокера-нерезидента","      жарғылық капиталға қатысу бойынша (акцияларды қоса алғанда), оның ішінде бейрезидент-брокер арқылы",1,0]
[4742,null,"      по операциям с ценными бумагами (кроме акций) и производными финансовыми инструментами, в том числе через брокера-нерезидента","      бағалы қағаздармен (акциялардан басқа) және туынды қаржы құралдарымен операциялар бойынша, оның ішінде бейрезидент-брокер арқылы","      по операциям с ценными бумагами (кроме акций) и производными финансовыми инструментами, в том числе через брокера-нерезидента",1,null,"47",1041,null,0,1,null,0,null,4742,1041,"47","      по операциям с ценными бумагами (кроме акций) и производными финансовыми инструментами, в том числе через брокера-нерезидента","      бағалы қағаздармен (акциялардан басқа) және туынды қаржы құралдарымен операциялар бойынша, оның ішінде бейрезидент-брокер арқылы",1,0]
[4716,null,"      на покупку недвижимости","      жылжымайтын мүлiкті сатып алуға","      на покупку недвижимости",1,null,"48",1041,null,0,1,null,0,null,4716,1041,"48","      на покупку недвижимости","      жылжымайтын мүлiкті сатып алуға",1,0]
[4743,null,"      на совместную деятельность","      бiрлескен қызметке","      на совместную деятельность",1,null,"49",1041,null,0,1,null,0,null,4743,1041,"49","      на совместную деятельность","      бiрлескен қызметке",1,0]
[4744,null,"      на выплату вознаграждения и дивидендов","      сыйақы және дивиденд төлеуге","      на выплату вознаграждения и дивидендов",1,null,"50",1041,null,0,1,null,0,null,4744,1041,"50","      на выплату вознаграждения и дивидендов","      сыйақы және дивиденд төлеуге",1,0]
[4723,null,"      иное (расшифровать)","      өзге де (толық жазылсын)","      иное (расшифровать)",1,null,"51",1041,null,0,1,null,0,null,4723,1041,"51","      иное (расшифровать)","      өзге де (толық жазылсын)",1,0]
[4942,null,"      в том числе: ","      оның ішінде:","      в том числе: ",1,null,"",1041,null,3,0,null,0,null,4942,1041,null,"      в том числе: ","      оның ішінде:",null,2]
[4943,null,"          комиссия иностранного банка","          шетелдік банк комиссиясы","          комиссия иностранного банка",1,null,"51.1",1041,null,0,1,null,0,null,4943,1041,"51.1","          комиссия иностранного банка","          шетелдік банк комиссиясы",1,0]
[4745,null,"  иное израсходование на резидентов","  резиденттерге өзге де шығын","  иное израсходование на резидентов",1,null,"52",1041,null,0,1,null,0,null,4745,1041,"52","  иное израсходование на резидентов","  резиденттерге өзге де шығын",1,0]
[4721,null,"  в порядке перевода на другие собственные банковские счета, включая конвертацию валют ((54) + (55)):","  валютаны айырбастауды қоса алғанда басқа меншiктi банк шоттарына аудару тәртiбiмен ((54) + (55)):","  в порядке перевода на другие собственные банковские счета, включая конвертацию валют ((54) + (55)):",1,null,"53",1041,null,2,1,null,0,null,4721,1041,"53","  в порядке перевода на другие собственные банковские счета, включая конвертацию валют ((54) + (55)):","  валютаны айырбастауды қоса алғанда басқа меншiктi банк шоттарына аудару тәртiбiмен ((54) + (55)):",1,2]
[4722,null,"      на банковские счета в уполномоченных банках-резидентах","      резидент уәкiлеттi банктердегi банк шоттарына","      на банковские счета в уполномоченных банках-резидентах",1,null,"54",1041,null,0,1,null,0,null,4722,1041,"54","      на банковские счета в уполномоченных банках-резидентах","      резидент уәкiлеттi банктердегi банк шоттарына",1,0]
[4746,null,"      на счета в иностранных банках","      шетел банктерiндегi банк шоттарына","      на счета в иностранных банках",1,null,"55",1041,null,0,1,null,0,null,4746,1041,"55","      на счета в иностранных банках","      шетел банктерiндегi банк шоттарына",1,0]
[4839,null,"Изменения за счет курсовой разницы (+)/(-)","Бағам айырмасы есебінен өзгерістер (+)/(-)","Изменения за счет курсовой разницы (+)/(-)",1,null,"56",1041,null,0,1,null,0,null,4839,1041,"56","Изменения за счет курсовой разницы (+)/(-)","Бағам айырмасы есебінен өзгерістер (+)/(-)",1,0]
[4724,null,"Остатки на конец отчетного периода ((11) + (20) – (40)+ (56))","Есептi кезеңнiң соңындағы қалдық ((11) + (20) – (40)+ (56))","Остатки на конец отчетного периода ((11) + (20) – (40)+ (56))",1,null,"60",1041,null,2,1,null,0,null,4724,1041,"60","Остатки на конец отчетного периода ((11) + (20) – (40)+ (56))","Есептi кезеңнiң соңындағы қалдық ((11) + (20) – (40)+ (56))",1,2]
[4725,null,"Вознаграждение, начисленное в отчетном периоде иностранным банком по данному банковскому счету","Шетел банкi осы банк шот бойынша есептi кезеңде есептеген сыйақы","Вознаграждение, начисленное в отчетном периоде иностранным банком по данному банковскому счету",1,null,"70",1041,null,0,1,null,0,null,4725,1041,"70","Вознаграждение, начисленное в отчетном периоде иностранным банком по данному банковскому счету","Шетел банкi осы банк шот бойынша есептi кезеңде есептеген сыйақы",1,0]
[4759,null,"Информация об овердрафте","Овердрафт туралы ақпарат","Информация об овердрафте",1,null," ",1043,null,3,0,null,0,null,4759,1043," ","Информация об овердрафте","Овердрафт туралы ақпарат",null,2]
[4760,null,"Ставка, по которой начисляется вознаграждение за овердрафт в отчетном периоде (% годовых)","Есепті кезеңде овердрафт үшін сыйақы есептелетін мөлшерлеме (жылдық %-бен)","Ставка, по которой начисляется вознаграждение за овердрафт в отчетном периоде (% годовых)",1,null,"80",1043,null,0,2,null,0,null,4760,1043,"80","Ставка, по которой начисляется вознаграждение за овердрафт в отчетном периоде (% годовых)","Есепті кезеңде овердрафт үшін сыйақы есептелетін мөлшерлеме (жылдық %-бен)",2,0]
[4761,null,"Остатки на начало отчетного периода","Есепті кезеңнің басындағы қалдық","Остатки на начало отчетного периода",1,null,"81",1043,null,0,1,null,0,null,4761,1043,"81","Остатки на начало отчетного периода","Есепті кезеңнің басындағы қалдық",1,0]
[4762,null,"       в том числе остатки по вознаграждению за овердрафт","       оның ішінде овердрафт үшін сыйақы бойынша қалдық","       в том числе остатки по вознаграждению за овердрафт",1,null,"82",1043,null,0,1,null,0,null,4762,1043,"82","       в том числе остатки по вознаграждению за овердрафт","       оның ішінде овердрафт үшін сыйақы бойынша қалдық",1,0]
[4763,null,"Предоставление банком овердрафта ((84) + (85) + (86) + (87))","Банктің овердрафты ұсынуы ((84) + (85) + (86) + (87))","Предоставление банком овердрафта ((84) + (85) + (86) + (87))",1,null,"83",1043,null,2,1,null,0,null,4763,1043,"83","Предоставление банком овердрафта ((84) + (85) + (86) + (87))","Банктің овердрафты ұсынуы ((84) + (85) + (86) + (87))",1,2]
[4764,null,"в том числе:","оның ішінде:",{"$f":"CONCATENATE(IF(B405<>\"\",CONCATENATE(B405,\" \"),\"\"),IF(p_language_current_id=1,C405,IF(p_language_current_id=2,D405,IF(C405=D405,C405,CONCATENATE(D405,IF(F405=0,\" / \",CHAR(10)),C405)))),IF(G405<>\"\",CONCATENATE(\" \",G405),\"\"))","v":"в том числе:"},1,null," ",1043,null,3,0,null,0,null,4764,1043," ","в том числе:","оның ішінде:",null,2]
[{"$f":"P406","v":4765},null,{"$f":"S406","v":"       на содержание своих филиалов и представительств"},{"$f":"T406","v":"       өзінің филиалдары мен өкілдіктерін ұстап тұруға "},"       на содержание своих филиалов и представительств",1,null,{"$f":"CONCATENATE(R406)","v":"84"},{"$f":"Q406","v":1043},null,{"$f":"IF(V406<>\"\",IF(AND(V406=2,TRIM(R406)=\"\"),3,V406),\"\")","v":0},{"$f":"U406","v":1},null,{"$f":"W406","v":4764},null,4765,1043,"84","       на содержание своих филиалов и представительств","       өзінің филиалдары мен өкілдіктерін ұстап тұруға ",1,0,4764]
[4766,null,"       иное израсходование на нерезидентов","       бейрезиденттерге өзге де шығын","       иное израсходование на нерезидентов",1,null,"85",1043,null,0,1,null,4764,null,4766,1043,"85","       иное израсходование на нерезидентов","       бейрезиденттерге өзге де шығын",1,0,4764]
[4767,null,"       иное израсходование на резидентов","       резиденттерге өзге де шығын","       иное израсходование на резидентов",1,null,"86",1043,null,0,1,null,4764,null,4767,1043,"86","       иное израсходование на резидентов","       резиденттерге өзге де шығын",1,0,4764]
[4768,null,"       в порядке перевода на другие собственные банковские счета, включая конвертацию валют","       валютаны айырбастауды қоса алғанда басқа меншiктi банк шоттарына аудару тәртібімен","       в порядке перевода на другие собственные банковские счета, включая конвертацию валют",1,null,"87",1043,null,0,1,null,4764,null,4768,1043,"87","       в порядке перевода на другие собственные банковские счета, включая конвертацию валют","       валютаны айырбастауды қоса алғанда басқа меншiктi банк шоттарына аудару тәртібімен",1,0,4764]
[4769,null,"Вознаграждение, начисленное в отчетном периоде банком за овердрафт","Банк овердрафт үшін есепті кезеңде есептеген сыйақы","Вознаграждение, начисленное в отчетном периоде банком за овердрафт",1,null,"88",1043,null,0,1,null,0,null,4769,1043,"88","Вознаграждение, начисленное в отчетном периоде банком за овердрафт","Банк овердрафт үшін есепті кезеңде есептеген сыйақы",1,0]
[4770,null,"Погашение овердрафта банку","Банкке овердрафты өтеу","Погашение овердрафта банку",1,null,"89",1043,null,0,1,null,0,null,4770,1043,"89","Погашение овердрафта банку","Банкке овердрафты өтеу",1,0]
[4771,null,"Выплата банку вознаграждения за овердрафт","Банкке овердрафт үшін сыйақы төлеу","Выплата банку вознаграждения за овердрафт",1,null,"90",1043,null,0,1,null,0,null,4771,1043,"90","Выплата банку вознаграждения за овердрафт","Банкке овердрафт үшін сыйақы төлеу",1,0]
[4772,null,"Иные изменения за отчетный период по овердрафту (расшифровать)","Есепті кезеңдегі овердрафт бойынша өзге де өзгерістер (толық жазылсын)","Иные изменения за отчетный период по овердрафту (расшифровать)",1,null,"91",1043,null,0,1,null,0,null,4772,1043,"91","Иные изменения за отчетный период по овердрафту (расшифровать)","Есепті кезеңдегі овердрафт бойынша өзге де өзгерістер (толық жазылсын)",1,0]
[4773,null,"Иные изменения за отчетный период по вознаграждению (расшифровать)","Есепті кезеңдегі сыйақы бойынша өзге де өзгерістер (толық жазылсын)","Иные изменения за отчетный период по вознаграждению (расшифровать)",1,null,"92",1043,null,0,1,null,0,null,4773,1043,"92","Иные изменения за отчетный период по вознаграждению (расшифровать)","Есепті кезеңдегі сыйақы бойынша өзге де өзгерістер (толық жазылсын)",1,0]
[4774,null,"Остатки на конец отчетного периода ((81) + (83) + (88) – (89) – (90) + (91) + (92))","Есепті кезеңнің соңындағы қалдық ((81) + (83) + (88) – (89) – (90) + (91) + (92))","Остатки на конец отчетного периода ((81) + (83) + (88) – (89) – (90) + (91) + (92))",1,null,"93",1043,null,2,1,null,0,null,4774,1043,"93","Остатки на конец отчетного периода ((81) + (83) + (88) – (89) – (90) + (91) + (92))","Есепті кезеңнің соңындағы қалдық ((81) + (83) + (88) – (89) – (90) + (91) + (92))",1,2]
[4775,null,"       в том числе остатки по вознаграждению по овердрафту ((82) + (88) – (90) + (92))","       оның ішінде овердрафт сыйақысы бойынша қалдық ((82) + (88) – (90) + (92))","       в том числе остатки по вознаграждению по овердрафту ((82) + (88) – (90) + (92))",1,null,"94",1043,null,2,1,null,0,null,4775,1043,"94","       в том числе остатки по вознаграждению по овердрафту ((82) + (88) – (90) + (92))","       оның ішінде овердрафт сыйақысы бойынша қалдық ((82) + (88) – (90) + (92))",1,2]
[]
["Справочник графов"]
["ID","Код слева","Наименование на русском языке","Наименование на казахском языке","Наименование","Перенос текста","Код справа","Код","Раздел","Стиль заголовков","Стиль данных","Тип данных","Примечание","Строка родитель","Запрос","select t.id_pb_col, th.name, th.name_kz, th.code, t.id_index_type_measure, th.id_pb_part \nfrom s_pb_col t join s_pb_col_his th on t.id_pb_col = th.id_pb_col where id_report in (9, 13, 31, 14, 32) and th.is_last = 1 and date_end is null order by id_report, num_order;"]
[{"$f":"P420","v":164},null,{"$f":"Q420","v":"Всего"},{"$f":"R420","v":"Барлығы"},{"$f":"CONCATENATE(IF(B420<>\"\",CONCATENATE(B420,\" \"),\"\"),IF(p_language_current_id=1,C420,IF(p_language_current_id=2,D420,IF(C420=D420,C420,CONCATENATE(D420,IF(F420=0,\" / \",CHAR(10)),C420)))),IF(G420<>\"\",CONCATENATE(\" \",G420),\"\"))","v":"Всего"},1,null,{"$f":"S420","v":"1"},{"$f":"U420","v":1001},null,null,null,null,null,null,164,"Всего","Барлығы","1",null,1001]
[{"$f":"P421","v":165},null,{"$f":"Q421","v":"в том числе в виде денег"},{"$f":"R421","v":"оның ішінде ақша түрінде"},"в том числе в виде денег",2,null,{"$f":"S421","v":"2"},{"$f":"U421","v":1001},null,null,null,null,null,null,165,"в том числе в виде денег","оның ішінде ақша түрінде","2",null,1001]
[169,null,"Наименование/фамилия, имя, отчество (при наличии) инвестора","Инвестордың атауы, тегі, аты, әкесінің аты (бар болса)","Наименование/фамилия, имя, отчество (при наличии) инвестора",3,null,"1001",1011,null,null,null,null,null,null,169,"Наименование/фамилия, имя, отчество (при наличии) инвестора","Инвестордың атауы, тегі, аты, әкесінің аты (бар болса)","1001",null,1011]
[170,null,"Значение","Мәні","Значение",4,null,"2001",1014,null,null,null,null,null,null,170,"Значение","Мәні","2001",null,1014]
[166,null,"№ п/п","Р/с №","№ п/п",5,null,"1001",1031,null,null,null,null,null,null,166,"№ п/п","Р/с №","1001",null,1031]
[167,null,"Всего","Барлығы","Всего",6,null,"1",1032,null,null,null,null,null,null,167,"Всего","Барлығы","1",null,1032]
[171,null,"Текущий счет","Ағымдағы шот","Текущий счет",7,null,"1001",1041,null,null,null,null,null,null,171,"Текущий счет","Ағымдағы шот","1001",null,1041]
[172,null,"Вклад/вклад, открытый в рамках данного текущего счета","Салым, осы ағымдағы шот шегінде ашылған салым","Вклад/вклад, открытый в рамках данного текущего счета",8,null,"1002",1041,null,null,null,null,null,null,172,"Вклад/вклад, открытый в рамках данного текущего счета","Салым, осы ағымдағы шот шегінде ашылған салым","1002",null,1041]
[173,null,"Значение","Мәні","Значение",9,null,"2001",1043,null,null,null,null,null,null,173,"Значение","Мәні","2001",null,1043]
[]
["Справочник индексов"]
["ID STR","ID COL","Стиль данных",null,"select id_pb_str, id_pb_col, decode(IS_EDITABLE, 0, 2, 1) from S_PB_INDEX where DATE_END is null and id_report in (9, 13, 31, 14, 32) order by id_report, ID_PB_STR;"]
[{"$f":"E432","v":4608},{"$f":"F432","v":165},{"$f":"G432","v":2},null,4608,165,2]
[{"$f":"E433","v":4609},{"$f":"F433","v":165},{"$f":"G433","v":2},null,4609,165,2]
[4610,165,2,null,4610,165,2]
[4619,165,2,null,4619,165,2]
[4620,165,2,null,4620,165,2]
[4629,165,2,null,4629,165,2]
[4630,165,2,null,4630,165,2]
[4634,165,2,null,4634,165,2]
[4635,165,2,null,4635,165,2]
[4636,165,2,null,4636,165,2]
[4637,165,2,null,4637,165,2]
[4680,165,2,null,4680,165,2]
[4682,165,2,null,4682,165,2]
[4691,165,2,null,4691,165,2]
[4693,165,2,null,4693,165,2]
[4694,165,2,null,4694,165,2]
[4776,165,2,null,4776,165,2]
[4780,165,2,null,4780,165,2]
[4781,165,2,null,4781,165,2]
[4783,165,2,null,4783,165,2]
[4784,165,2,null,4784,165,2]
[4785,165,2,null,4785,165,2]
[4786,165,2,null,4786,165,2]
[4787,165,2,null,4787,165,2]
[{"$f":"E456","v":4791},{"$f":"F456","v":165},{"$f":"G456","v":2},null,4791,165,2]
[4793,165,2,null,4793,165,2]
[4794,165,2,null,4794,165,2]
[4797,165,2,null,4797,165,2]
[4798,165,2,null,4798,165,2]
[4799,165,2,null,4799,165,2]
[4801,165,2,null,4801,165,2]
[4802,165,2,null,4802,165,2]
[4803,165,2,null,4803,165,2]
[4804,165,2,null,4804,165,2]
[4805,165,2,null,4805,165,2]
[4806,165,2,null,4806,165,2]
[4807,165,2,null,4807,165,2]
[4811,165,2,null,4811,165,2]
[4812,165,2,null,4812,165,2]
[4818,165,2,null,4818,165,2]
[4819,165,2,null,4819,165,2]
[4823,165,2,null,4823,165,2]
[4829,165,2,null,4829,165,2]
[4832,165,2,null,4832,165,2]
[4834,165,2,null,4834,165,2]
[4835,165,2,null,4835,165,2]
[4760,164,2,null,4760,164,2]
[4761,164,2,null,4761,164,2]
[4762,164,2,null,4762,164,2]
[4763,164,2,null,4763,164,2]
[4764,164,2,null,4764,164,2]
[4765,164,2,null,4765,164,2]
[4766,164,2,null,4766,164,2]
[4767,164,2,null,4767,164,2]
[4768,164,2,null,4768,164,2]
[4769,164,2,null,4769,164,2]
[4770,164,2,null,4770,164,2]
[4771,164,2,null,4771,164,2]
[{"$f":"E490","v":4772},{"$f":"F490","v":164},{"$f":"G490","v":2},null,4772,164,2]
[{"$f":"E491","v":4773},{"$f":"F491","v":164},{"$f":"G491","v":2},null,4773,164,2]
[{"$f":"E492","v":4774},{"$f":"F492","v":164},{"$f":"G492","v":2},null,4774,164,2]
[4775,164,2,null,4775,164,2]
[]
["Справочник справочников"]
["ID","ID меню","Справочник"]
[4875,100056,"p_receiptsrepaytype_name",null,1008]
[1,100025,"p_country_name"]
[4885,100024,"p_currency_name",null,1018]
[]
["Формулы",null,null,"select f.id_pb_str || decode(f.id_pb_formula_type, 3, ','||to_char(f.id_pb_col), '') id, \nlistagg(p.sign ||'['|| to_char(p.id_pb_str) || decode(f.id_pb_formula_type, 3, ','||to_char(p.id_pb_col), '') ||']', '') WITHIN GROUP(order by p.id_part_type, p.num_order, p.id_pb_str, p.id_pb_col) ids, f.id_pb_formula_type, f.id_report, f.id_formula_type\nfrom s_pb_formula f join s_pb_formula_part p on f.id_pb_formula = p.id_pb_formula\nwhere f.id_report in (9, 13, 31, 14, 32) and f.date_end is null group by f.id_pb_formula_type, f.id_pb_str, f.id_pb_col, f.id_report, f.id_formula_type order by id_report, f.id_pb_str;"]
["Левая часть формулы","Правая часть формулы","Тип"]
[{"$f":"D503","v":4620},{"$f":"E503","v":"+[4799]"},{"$f":"F503","v":1},4620,"+[4799]",1,9,10001]
[{"$f":"D504","v":4634.1639999999998},{"$f":"E504","v":"+[4608,164]+[4615,164]+[4620,164]-[4623,164]-[4629,164]-[4694,164]+[4780,164]+[4781,164]-[4783,164]-[4784,164]-[4785,164]-[4786,164]+[4787,164]+[4788,164]-[4832,164]"},{"$f":"F504","v":3},4634.1639999999998,"+[4608,164]+[4615,164]+[4620,164]-[4623,164]-[4629,164]-[4694,164]+[4780,164]+[4781,164]-[4783,164]-[4784,164]-[4785,164]-[4786,164]+[4787,164]+[4788,164]-[4832,164]",3,9,10001]
[4682.1639999999998,"+[4628,164]+[4680,164]-[4681,164]+[4831,164]",3,4682.1639999999998,"+[4628,164]+[4680,164]-[4681,164]+[4831,164]",3,9,10001]
[4683,"+[4615]+[4620]+[4681]+[4780]+[4781]+[4788]",1,4683,"+[4615]+[4620]+[4681]+[4780]+[4781]+[4788]",1,9,10001]
[4685,"+[4683]+[4684]",1,4685,"+[4683]+[4684]",1,9,10001]
[4687.1639999999998,"+[4623,164]+[4628,164]+[4629,164]+[4694,164]+[4783,164]+[4784,164]+[4785,164]+[4786,164]+[4832,164]",3,4687.1639999999998,"+[4623,164]+[4628,164]+[4629,164]+[4694,164]+[4783,164]+[4784,164]+[4785,164]+[4786,164]+[4832,164]",3,9,10001]
[4688.1639999999998,"+[4686,164]+[4687,164]",3,4688.1639999999998,"+[4686,164]+[4687,164]",3,9,10001]
[4690.1639999999998,"+[4685,164]-[4688,164]",3,4690.1639999999998,"+[4685,164]-[4688,164]",3,9,10001]
[4693.1639999999998,"+[4619,164]-[4625,164]+[4691,164]+[4797,164]+[4798,164]-[4799,164]-[4801,164]-[4802,164]-[4803,164]-[4804,164]-[4805,164]+[4806,164]-[4807,164]+[4808,164]",3,4693.1639999999998,"+[4619,164]-[4625,164]+[4691,164]+[4797,164]+[4798,164]-[4799,164]-[4801,164]-[4802,164]-[4803,164]-[4804,164]-[4805,164]+[4806,164]-[4807,164]+[4808,164]",3,9,10001]
[4794.1639999999998,"+[4791,164]+[4792,164]-[4793,164]+[4833,164]",3,4794.1639999999998,"+[4791,164]+[4792,164]-[4793,164]+[4833,164]",3,9,10001]
[4599,"+[4643]+[4644]+[4645]+[4646]+[4647]+[4747]+[4748]+[4749]+[4750]+[4753]+[4824]+[4825]+[4826]+[4828]+[4830]+[4854]+[4932]",1,4599,"+[4643]+[4644]+[4645]+[4646]+[4647]+[4747]+[4748]+[4749]+[4750]+[4753]+[4824]+[4825]+[4826]+[4828]+[4830]+[4854]+[4932]",1,13,10001]
[4601,"+[4598]+[4599]",1,4601,"+[4598]+[4599]",1,13,10001]
[4604,"+[4755]+[4756]+[4757]",1,4604,"+[4755]+[4756]+[4757]",1,13,10001]
[{"$f":"D516","v":4844},{"$f":"E516","v":"+[4933]+[4934]"},{"$f":"F516","v":1},4844,"+[4933]+[4934]",1,13,10001]
[4845,"+[4935]+[4936]",1,4845,"+[4935]+[4936]",1,13,10001]
[4847,"+[4843]+[4844]-[4845]+[4846]",1,4847,"+[4843]+[4844]-[4845]+[4846]",1,13,10001]
[4850,"+[4937]+[4938]",1,4850,"+[4937]+[4938]",1,13,10001]
[4851,"+[4939]+[4940]",1,4851,"+[4939]+[4940]",1,13,10001]
[4853,"+[4849]+[4850]-[4851]+[4852]",1,4853,"+[4849]+[4850]-[4851]+[4852]",1,13,10001]
[4891,"+[4843]+[4844]-[4845]+[4846]-[4847]",1,4891,"+[4843]+[4844]-[4845]+[4846]-[4847]",1,13,10001]
[4892,"+[4849]+[4850]-[4851]+[4852]-[4853]",1,4892,"+[4849]+[4850]-[4851]+[4852]-[4853]",1,13,10001]
[4868,"+[4869]+[4870]+[4871]+[4872]",1,4868,"+[4869]+[4870]+[4871]+[4872]",1,14,10001]
[{"$f":"D525","v":4703},{"$f":"E525","v":"+[4707]+[4731]+[4738]"},{"$f":"F525","v":1},4703,"+[4707]+[4731]+[4738]",1,32,10001]
[4707,"+[4708]+[4739]",1,4707,"+[4708]+[4739]",1,32,10001]
[4714,"+[4719]+[4721]+[4740]+[4745]",1,4714,"+[4719]+[4721]+[4740]+[4745]",1,32,10001]
[4721,"+[4722]+[4746]",1,4721,"+[4722]+[4746]",1,32,10001]
[{"$f":"D529","v":4724},{"$f":"E529","v":"+[4702]+[4703]-[4714]+[4839]"},{"$f":"F529","v":1},4724,"+[4702]+[4703]-[4714]+[4839]",1,32,10001]
[4731,"+[4705]+[4706]+[4713]+[4732]+[4733]+[4734]+[4735]+[4736]+[4737]",1,4731,"+[4705]+[4706]+[4713]+[4732]+[4733]+[4734]+[4735]+[4736]+[4737]",1,32,10001]
[{"$f":"D531","v":4740},"+[4716]+[4717]+[4718]+[4720]+[4723]+[4741]+[4742]+[4743]+[4744]",1,4740,"+[4716]+[4717]+[4718]+[4720]+[4723]+[4741]+[4742]+[4743]+[4744]",1,32,10001]
[4763,"+[4765]+[4766]+[4767]+[4768]",1,4763,"+[4765]+[4766]+[4767]+[4768]",1,32,10001]
[4774,"+[4761]+[4763]+[4769]-[4770]-[4771]+[4772]+[4773]",1,4774,"+[4761]+[4763]+[4769]-[4770]-[4771]+[4772]+[4773]",1,32,10001]
[4775,"+[4762]+[4769]-[4771]+[4773]",1,4775,"+[4762]+[4769]-[4771]+[4773]",1,32,10001]
[]
["Справочник \"Вид исполнения обязательства\""]
["ID","Код слева","Наименование на русском языке","Наименование на казахском языке","Наименование","Перенос текста","Код справа",null,"select * from s_receipts_repay_type order by 2;"]
[{"$f":"I538","v":104},null,{"$f":"J538","v":"возникновение требования"},{"$f":"K538","v":"талаптардың туындауы"},{"$f":"CONCATENATE(IF(B538<>\"\",CONCATENATE(B538,\" \"),\"\"),IF(p_language_current_id=1,C538,IF(p_language_current_id=2,D538,IF(C538=D538,C538,CONCATENATE(D538,IF(F538=0,\" / \",CHAR(10)),C538)))),IF(G538<>\"\",CONCATENATE(\" \",G538),\"\"))","v":"возникновение требования"},1,null,null,104,"возникновение требования","талаптардың туындауы"]
[{"$f":"I539","v":93},null,{"$f":"J539","v":"денежная"},{"$f":"K539","v":"ақшалық"},"денежная",1,null,null,93,"денежная","ақшалық"]
[100,null,"деньги и товары","ақша және тауарлар","деньги и товары",1,null,null,100,"деньги и товары","ақша және тауарлар"]
[101,null,"деньги и услуги","ақша және қызметтер","деньги и услуги",1,null,null,101,"деньги и услуги","ақша және қызметтер"]
[107,null,"недвижимость","жылжымайтын мүлік","недвижимость",1,null,null,107,"недвижимость","жылжымайтын мүлік"]
[97,null,"нематериальные активы","материалдық емес активтер","нематериальные активы",1,null,null,97,"нематериальные активы","материалдық емес активтер"]
[96,null,"обмен","айырбастау","обмен",1,null,null,96,"обмен","айырбастау"]
[106,null,"переуступка требований/обязательств","талаптарды/міндеттемелерді қайта табыстау","переуступка требований/обязательств",1,null,null,106,"переуступка требований/обязательств","талаптарды/міндеттемелерді қайта табыстау"]
[98,null,"смешанная","аралас","смешанная",1,null,null,98,"смешанная","аралас"]
[94,null,"товары","тауарлар","товары",1,null,null,94,"товары","тауарлар"]
[103,null,"товары и услуги","тауарлар және қызметтер","товары и услуги",1,null,null,103,"товары и услуги","тауарлар және қызметтер"]
[95,null,"услуги","қызметтер","услуги",1,null,null,95,"услуги","қызметтер"]
[105,null,"ценные бумаги","бағалы қағаздар","ценные бумаги",1,null,null,105,"ценные бумаги","бағалы қағаздар"]
[]
["Инвесторы"]
["Наименование","Код","ИИН/БИН","Юр. Лицо","Резидент","Раздел"]

{"sheet":"Справочник валют","index":11,"n_rows":187,"n_cols":13,"rows_kept":187,"cut":false,"hidden":true,"merged":[[0,0,0,7]]}
["Справочник валют",null,null,null,null,null,null,null,null,"select c.id_currency, h.name, h.name_kz, h.code_3n from s_currency c join s_currency_his h on c.id_currency = h.id_currency where h.is_last = 1 and (h.date_end is null or h.date_end >= to_date('20190101', 'yyyymmdd')) and h.code_3n not in ('947', '948') order by h.name;"]
["ID","Код слева","Наименование на русском языке","Наименование на казахском языке","Наименование","Перенос текста","Код справа","Код",null,"c.id_currency","h.name","h.name_kz","h.code_3n"]
[{"$f":"J3","v":8},null,{"$f":"K3","v":"Австралийский доллар"},{"$f":"L3","v":"Австралия доллары"},{"$f":"CONCATENATE(IF(B3<>\"\",CONCATENATE(B3,\" \"),\"\"),IF(p_language_current_id=1,C3,IF(p_language_current_id=2,D3,IF(C3=D3,C3,CONCATENATE(D3,IF(F3=0,\" / \",CHAR(10)),C3)))),IF(G3<>\"\",CONCATENATE(\" \",G3),\"\"))","v":"Австралийский доллар"},2,null,{"$f":"CONCATENATE(M3)","v":"036"},null,8,"Австралийский доллар","Австралия доллары","036"]
[6,null,"Азербайджанский манат","Јзербайжан манаты","Азербайджанский манат",3,null,"944",null,6,"Азербайджанский манат","Јзербайжан манаты","944"]
[3,null,"АЛЖИРСКИЙ ДИНАР","АЛЖИР ДИНАРЫ","АЛЖИРСКИЙ ДИНАР",4,null,"012",null,3,"АЛЖИРСКИЙ ДИНАР","АЛЖИР ДИНАРЫ","012"]
[160,null,"АНГЛИЙСКИЕ ФУHТЫ СТЕРЛИНГОВ.","СТЕРЛИНГТЕР ФУНТЫ","АНГЛИЙСКИЕ ФУHТЫ СТЕРЛИНГОВ.",5,null,"826",null,160,"АНГЛИЙСКИЕ ФУHТЫ СТЕРЛИНГОВ.","СТЕРЛИНГТЕР ФУНТЫ","826"]
[4,null,"АНДОРРСКАЯ ПЕСЕТА","АНДОРРА ПЕСЕТАСЫ","АНДОРРСКАЯ ПЕСЕТА",6,null,"020",null,4,"АНДОРРСКАЯ ПЕСЕТА","АНДОРРА ПЕСЕТАСЫ","020"]
[7,null,"Аргентинское песо","Аргентина песосы","Аргентинское песо",7,null,"032",null,7,"Аргентинское песо","Аргентина песосы","032"]
[13,null,"Армянский  драм","Армян  драмы","Армянский  драм",8,null,"051",null,13,"Армянский  драм","Армян  драмы","051"]
[110,null,"Арубский гульден","Аруб гульдені","Арубский гульден",9,null,"533",null,110,"Арубский гульден","Аруб гульдені","533"]
[1,null,"АФГАHСКИЙ АФГАНИ","АФГАHСКИЙ АФГАНИ","АФГАHСКИЙ АФГАНИ",10,null,"004",null,1,"АФГАHСКИЙ АФГАНИ","АФГАHСКИЙ АФГАНИ","004"]
[10,null,"Багамский доллар","Багам доллары","Багамский доллар",11,null,"044",null,10,"Багамский доллар","Багам доллары","044"]
[117,null,"Бальбоа","Бальбоа","Бальбоа",12,null,"590",null,117,"Бальбоа","Бальбоа","590"]
[14,null,"Барбадосский доллар","Барбадос доллары","Барбадосский доллар",13,null,"052",null,14,"Барбадосский доллар","Барбадос доллары","052"]
[149,null,"Бат","Бат","Бат",14,null,"764",null,149,"Бат","Бат","764"]
[11,null,"Бахрейнский динар","Бахрейн динары","Бахрейнский динар",15,null,"048",null,11,"Бахрейнский динар","Бахрейн динары","048"]
[186,null,"Белорусский рубль","Белорусь рублі","Белорусский рубль",16,null,"933",null,186,"Белорусский рубль","Белорусь рублі","933"]
[189,null,"Белорусский рубль","Белорусь рублі","Белорусский рубль",17,null,"974",null,189,"Белорусский рубль","Белорусь рублі","974"]
[15,null,"БЕЛЬГИЙСКИЙ ФРАНК","БЕЛЬГИЯЛЫҚ ФРАНК","БЕЛЬГИЙСКИЙ ФРАНК",18,null,"056",null,15,"БЕЛЬГИЙСКИЙ ФРАНК","БЕЛЬГИЯЛЫҚ ФРАНК","056"]
[16,null,"Бермудский доллар","Бермуд доллары","Бермудский доллар",19,null,"060",null,16,"Бермудский доллар","Бермуд доллары","060"]
[187,null,"Болгарский лев","Болгар леві","Болгарский лев",20,null,"975",null,187,"Болгарский лев","Болгар леві","975"]
[165,null,"Боливар","Боливар","Боливар",21,null,"937",null,165,"Боливар","Боливар","937"]
[18,null,"Боливиано","Боливиано","Боливиано",22,null,"068",null,18,"Боливиано","Боливиано","068"]
[178,null,"Бразильский реал","Бразилия реалі","Бразильский реал",23,null,"986",null,178,"Бразильский реал","Бразилия реалі","986"]
[22,null,"БРУНЕЙСКИЙ ДОЛЛАР","БРУНЕЙ ДОЛЛАРЫ","БРУНЕЙСКИЙ ДОЛЛАР",24,null,"096",null,22,"БРУНЕЙСКИЙ ДОЛЛАР","БРУНЕЙ ДОЛЛАРЫ","096"]
[25,null,"БУРУНДИЙСКИЙ ФРАНК","БУРУНДИ ФРАНКІ","БУРУНДИЙСКИЙ ФРАНК",25,null,"108",null,25,"БУРУНДИЙСКИЙ ФРАНК","БУРУНДИ ФРАНКІ","108"]
[111,null,"ВАТУ","ВАТУ","ВАТУ",26,null,"548",null,111,"ВАТУ","ВАТУ","548"]
[81,null,"Вона","Вона","Вона",27,null,"410",null,81,"Вона","Вона","410"]
[172,null,"ВОСТОЧНО-КАРИБСКИЙ ДОЛЛАР","ШЫҒЫСКАРИБ ДОЛЛАРЫ","ВОСТОЧНО-КАРИБСКИЙ ДОЛЛАР",28,null,"951",null,172,"ВОСТОЧНО-КАРИБСКИЙ ДОЛЛАР","ШЫҒЫСКАРИБ ДОЛЛАРЫ","951"]
[62,null,"ГАЙАHСKИЙ ДОЛЛАР","ГАЙАНА ДОЛЛАРЫ","ГАЙАHСKИЙ ДОЛЛАР",29,null,"328",null,62,"ГАЙАHСKИЙ ДОЛЛАР","ГАЙАНА ДОЛЛАРЫ","328"]
[55,null,"ГАМБИЙСКИЙ ДАЛАСИ","ДАЛАСИ","ГАМБИЙСКИЙ ДАЛАСИ",30,null,"270",null,55,"ГАМБИЙСКИЙ ДАЛАСИ","ДАЛАСИ","270"]
[61,null,"ГВИНЕЙСКИЙ ФРАНК","ГВИНЕЯ ФРАНКІ","ГВИНЕЙСКИЙ ФРАНК",31,null,"324",null,61,"ГВИНЕЙСКИЙ ФРАНК","ГВИНЕЯ ФРАНКІ","324"]
[58,null,"ГИБРАЛТАРСКИЙ ФУНТ","ГИБРАЛТАР ФУНТЫ",{"$f":"CONCATENATE(IF(B33<>\"\",CONCATENATE(B33,\" \"),\"\"),IF(p_language_current_id=1,C33,IF(p_language_current_id=2,D33,IF(C33=D33,C33,CONCATENATE(D33,IF(F33=0,\" / \",CHAR(10)),C33)))),IF(G33<>\"\",CONCATENATE(\" \",G33),\"\"))","v":"ГИБРАЛТАРСКИЙ ФУНТ"},32,null,"292",null,58,"ГИБРАЛТАРСКИЙ ФУНТ","ГИБРАЛТАР ФУНТЫ","292"]
[65,null,"Гонконгский доллар","Гонконг доллары","Гонконгский доллар",33,null,"344",null,65,"Гонконгский доллар","Гонконг доллары","344"]
[59,null,"ГРЕЧЕСКАЯ ДРАХМА","ГРЕЧЕСКАЯ ДРАХМА","ГРЕЧЕСКАЯ ДРАХМА",34,null,"300",null,59,"ГРЕЧЕСКАЯ ДРАХМА","ГРЕЧЕСКАЯ ДРАХМА","300"]
[177,null,"Гривна","Гривна","Гривна",35,null,"980",null,177,"Гривна","Гривна","980"]
[119,null,"Гуарани","Гуарани","Гуарани",36,null,"600",null,119,"Гуарани","Гуарани","600"]
[63,null,"ГУРД","ГУРД","ГУРД",37,null,"332",null,63,"ГУРД","ГУРД","332"]
[43,null,"Датская крона","Дат кронасы","Датская крона",38,null,"208",null,43,"Датская крона","Дат кронасы","208"]
[157,null,"Динар","Динар","Динар",39,null,"807",null,157,"Динар","Динар","807"]
[152,null,"Дирхам","Дирхам","Дирхам",40,null,"784",null,152,"Дирхам","Дирхам","784"]
[130,null,"ДОБРА","ДОБРА","ДОБРА",41,null,"678",null,130,"ДОБРА","ДОБРА","678"]
[20,null,"Доллар Белиза","Белиза доллары","Доллар Белиза",42,null,"084",null,20,"Доллар Белиза","Белиза доллары","084"]
[140,null,"ДОЛЛАР ЗИМБАБВЕ","ЗИМБАБВЕ ДОЛЛАРЫ","ДОЛЛАР ЗИМБАБВЕ",43,null,"716",null,140,"ДОЛЛАР ЗИМБАБВЕ","ЗИМБАБВЕ ДОЛЛАРЫ","716"]
[30,null,"Доллар Островов Кайман","Кайман аралдары доллары","Доллар Островов Кайман",44,null,"136",null,30,"Доллар Островов Кайман","Кайман аралдары доллары","136"]
[21,null,"ДОЛЛАР СОЛОМОНОВЫХ ОСТРОВОВ","СОЛОМОН АРАЛДАРЫ ДОЛЛАРЫ","ДОЛЛАР СОЛОМОНОВЫХ ОСТРОВОВ",45,null,"090",null,21,"ДОЛЛАР СОЛОМОНОВЫХ ОСТРОВОВ","СОЛОМОН АРАЛДАРЫ ДОЛЛАРЫ","090"]
[162,null,"ДОЛЛАР США","АҚШ ДОЛЛАРЫ","ДОЛЛАР США",46,null,"840",null,162,"ДОЛЛАР США","АҚШ ДОЛЛАРЫ","840"]
[151,null,"ДОЛЛАР ТРИНИДАДА И ТОБАГО","ТРИНИДАДА МЕН ТОБОГО ДОЛЛАРЫ","ДОЛЛАР ТРИНИДАДА И ТОБАГО",47,null,"780",null,151,"ДОЛЛАР ТРИНИДАДА И ТОБАГО","ТРИНИДАДА МЕН ТОБОГО ДОЛЛАРЫ","780"]
[50,null,"Доллар Фиджи","Фиджи доллары","Доллар Фиджи",48,null,"242",null,50,"Доллар Фиджи","Фиджи доллары","242"]
[44,null,"Доминиканское песо","Доминикан песосы","Доминиканское песо",49,null,"214",null,44,"Доминиканское песо","Доминикан песосы","214"]
[136,null,"Донг","Донг","Донг",50,null,"704",null,136,"Донг","Донг","704"]
[175,null,"ЕВРО","ЕУРО","ЕВРО",51,null,"978",null,175,"ЕВРО","ЕУРО","978"]
[159,null,"Египетский фунт","Египет фунты","Египетский фунт",52,null,"818",null,159,"Египетский фунт","Египет фунты","818"]
[94,null,"Замбийская квача","Квача","Замбийская квача",53,null,"967",null,94,"Замбийская квача","Квача","967"]
[122,null,"Злотый","Злотый","Злотый",54,null,"985",null,122,"Злотый","Злотый","985"]
[68,null,"Индийская рупия","Индия рупиясы","Индийская рупия",55,null,"356",null,68,"Индийская рупия","Индия рупиясы","356"]
[78,null,"Иорданский динар","Иордан динары","Иорданский динар",56,null,"400",null,78,"Иорданский динар","Иордан динары","400"]
[71,null,"ИРАКСКИЙ ДИНАР","ИРАК ДИНАРЫ","ИРАКСКИЙ ДИНАР",57,null,"368",null,71,"ИРАКСКИЙ ДИНАР","ИРАК ДИНАРЫ","368"]
[70,null,"Иранский реал","Иран реалы","Иранский реал",58,null,"364",null,70,"Иранский реал","Иран реалы","364"]
[72,null,"ИРЛАНДСКИЙ ФУНТ","ИРЛАНДСКИЙ ФУНТ","ИРЛАНДСКИЙ ФУНТ",59,null,"372",null,72,"ИРЛАНДСКИЙ ФУНТ","ИРЛАНДСКИЙ ФУНТ","372"]
[184,null,"Исландская крона","Исланд кронасы","Исландская крона",60,null,"352",null,184,"Исландская крона","Исланд кронасы","352"]
[141,null,"ИСПАНСКАЯ ПЕСЕТА","ИСПАН ПЕСЕТАСЫ","ИСПАНСКАЯ ПЕСЕТА",61,null,"724",null,141,"ИСПАНСКАЯ ПЕСЕТА","ИСПАН ПЕСЕТАСЫ","724"]
[74,null,"ИТАЛЬЯНСКАЯ ЛИРА","ИТАЛЬЯН ЛИРАСЫ","ИТАЛЬЯНСКАЯ ЛИРА",62,null,"380",null,74,"ИТАЛЬЯНСКАЯ ЛИРА","ИТАЛЬЯН ЛИРАСЫ","380"]
[167,null,"ЙЕМЕНСКИЙ РИАЛ","ЙЕМЕН РИАЛЫ","ЙЕМЕНСКИЙ РИАЛ",63,null,"886",null,167,"ЙЕМЕНСКИЙ РИАЛ","ЙЕМЕН РИАЛЫ","886"]
[76,null,"Йена","Йена",{"$f":"CONCATENATE(IF(B65<>\"\",CONCATENATE(B65,\" \"),\"\"),IF(p_language_current_id=1,C65,IF(p_language_current_id=2,D65,IF(C65=D65,C65,CONCATENATE(D65,IF(F65=0,\" / \",CHAR(10)),C65)))),IF(G65<>\"\",CONCATENATE(\" \",G65),\"\"))","v":"Йена"},64,null,"392",null,76,"Йена","Йена","392"]
[{"$f":"J66","v":28},null,{"$f":"K66","v":"Канадский доллар"},{"$f":"L66","v":"Канада доллары"},"Канадский доллар",65,null,{"$f":"CONCATENATE(M66)","v":"124"},null,28,"Канадский доллар","Канада доллары","124"]
[126,null,"Катарский риял","Катар риялы","Катарский риял",66,null,"634",null,126,"Катарский риял","Катар риялы","634"]
[169,null,"КВАЧА(ЗАМБИЙСКАЯ)","КВАЧА","КВАЧА(ЗАМБИЙСКАЯ)",67,null,"894",null,169,"КВАЧА(ЗАМБИЙСКАЯ)","КВАЧА","894"]
[79,null,"Кеннийский шиллинг","Кения шиллингі","Кеннийский шиллинг",68,null,"404",null,79,"Кеннийский шиллинг","Кения шиллингі","404"]
[60,null,"Кетцаль","Кетцаль","Кетцаль",69,null,"320",null,60,"Кетцаль","Кетцаль","320"]
[118,null,"КИНА","КИНА","КИНА",70,null,"598",null,118,"КИНА","КИНА","598"]
[84,null,"КИП","КИП","КИП",71,null,"418",null,84,"КИП","КИП","418"]
[41,null,"КИПРСКИЙ ФУНТ","КИПР ФУНТЫ","КИПРСКИЙ ФУНТ",72,null,"196",null,41,"КИПРСКИЙ ФУНТ","КИПР ФУНТЫ","196"]
[83,null,"КИРГИЗСКИЙ СОМ","СОМ","КИРГИЗСКИЙ СОМ",73,null,"417",null,83,"КИРГИЗСКИЙ СОМ","СОМ","417"]
[34,null,"Колумбийское песо","Колумбия песосы","Колумбийское песо",74,null,"170",null,34,"Колумбийское песо","Колумбия песосы","170"]
[188,null,"Конвертируемые марки","Айырбасталатын маркалар","Конвертируемые марки",75,null,"977",null,188,"Конвертируемые марки","Айырбасталатын маркалар","977"]
[113,null,"Кордоба","Кордоба","Кордоба",76,null,"558",null,113,"Кордоба","Кордоба","558"]
[37,null,"Косториканский колон","Косторика колоны","Косториканский колон",77,null,"188",null,37,"Косториканский колон","Косторика колоны","188"]
[48,null,"КРОНА","ЭСТОН КРОНАСЫ","КРОНА",78,null,"233",null,48,"КРОНА","ЭСТОН КРОНАСЫ","233"]
[40,null,"КУБИHСKОЕ ПЕСО","КУБА ПЕСОСЫ","КУБИHСKОЕ ПЕСО",79,null,"192",null,40,"КУБИHСKОЕ ПЕСО","КУБА ПЕСОСЫ","192"]
[82,null,"Кувейтский динар","Кувейт динары","Кувейтский динар",80,null,"414",null,82,"Кувейтский динар","Кувейт динары","414"]
[24,null,"КЬЯТ","КЬЯТ","КЬЯТ",81,null,"104",null,24,"КЬЯТ","КЬЯТ","104"]
[54,null,"Лари","Лари","Лари",82,null,"981",null,54,"Лари","Лари","981"]
[87,null,"Латвийские латы","Латвия латы","Латвийские латы",83,null,"428",null,87,"Латвийские латы","Латвия латы","428"]
[23,null,"ЛЕВ","ЛЕВ","ЛЕВ",84,null,"100",null,23,"ЛЕВ","ЛЕВ","100"]
[2,null,"Лек","Лек","Лек",85,null,"008",null,2,"Лек","Лек","008"]
[64,null,"Лемпира","Лемпира","Лемпира",86,null,"340",null,64,"Лемпира","Лемпира","340"]
[133,null,"ЛЕОНЕ","ЛЕОНЕ","ЛЕОНЕ",87,null,"694",null,133,"ЛЕОНЕ","ЛЕОНЕ","694"]
[88,null,"ЛИБЕРИЙСКИЙ ДОЛЛАР","ЛИБЕРИЯ ДОЛЛАРЫ","ЛИБЕРИЙСКИЙ ДОЛЛАР",88,null,"430",null,88,"ЛИБЕРИЙСКИЙ ДОЛЛАР","ЛИБЕРИЯ ДОЛЛАРЫ","430"]
[85,null,"Ливанский фунт","Ливан фунты","Ливанский фунт",89,null,"422",null,85,"Ливанский фунт","Ливан фунты","422"]
[89,null,"ЛИВИЙСKИЙ ДИНАР","ЛИВИЯ ДИНАРЫ","ЛИВИЙСKИЙ ДИНАР",90,null,"434",null,89,"ЛИВИЙСKИЙ ДИНАР","ЛИВИЯ ДИНАРЫ","434"]
[144,null,"ЛИЛАНГЕНИ","ЛИЛАНГЕНИ","ЛИЛАНГЕНИ",91,null,"748",null,144,"ЛИЛАНГЕНИ","ЛИЛАНГЕНИ","748"]
[90,null,"Литовские литы","Литва литы","Литовские литы",92,null,"440",null,90,"Литовские литы","Литва литы","440"]
[86,null,"ЛОТИ","ЛОТИ","ЛОТИ",93,null,"426",null,86,"ЛОТИ","ЛОТИ","426"]
[91,null,"ЛЮКСЕМБУРГСКИЙ ФРАНК","ЛЮКСЕМБУРГСКИЙ ФРАНК","ЛЮКСЕМБУРГСКИЙ ФРАНК",94,null,"442",null,91,"ЛЮКСЕМБУРГСКИЙ ФРАНК","ЛЮКСЕМБУРГСКИЙ ФРАНК","442"]
[99,null,"Маврикийская рупия","Маврикий рупиясы","Маврикийская рупия",95,null,"480",null,99,"Маврикийская рупия","Маврикий рупиясы","480"]
[93,null,"МАЛАГАСИЙСКИЙ ФРАНК","МАЛАГАСИЙ ФРАНКІ",{"$f":"CONCATENATE(IF(B97<>\"\",CONCATENATE(B97,\" \"),\"\"),IF(p_language_current_id=1,C97,IF(p_language_current_id=2,D97,IF(C97=D97,C97,CONCATENATE(D97,IF(F97=0,\" / \",CHAR(10)),C97)))),IF(G97<>\"\",CONCATENATE(\" \",G97),\"\"))","v":"МАЛАГАСИЙСКИЙ ФРАНК"},96,null,"450",null,93,"МАЛАГАСИЙСКИЙ ФРАНК","МАЛАГАСИЙ ФРАНКІ","450"]
[95,null,"Малайзийский ринггит","Малайзия ринггиті","Малайзийский ринггит",97,null,"458",null,95,"Малайзийский ринггит","Малайзия ринггиті","458"]
[97,null,"МАЛЬТИЙСКАЯ ЛИРА","МАЛЬТА ЛИРАСЫ","МАЛЬТИЙСКАЯ ЛИРА",98,null,"470",null,97,"МАЛЬТИЙСКАЯ ЛИРА","МАЛЬТА ЛИРАСЫ","470"]
[155,null,"МАНАТ","МАНАТ","МАНАТ",99,null,"795",null,155,"МАНАТ","МАНАТ","795"]
[103,null,"Марокканский дирхам","Марокко дирхамы","Марокканский дирхам",100,null,"504",null,103,"Марокканский дирхам","Марокко дирхамы","504"]
[100,null,"Мексиканское песо","Мексика песосы","Мексиканское песо",101,null,"484",null,100,"Мексиканское песо","Мексика песосы","484"]
[104,null,"Метикал","Метикал","Метикал",102,null,"508",null,104,"Метикал","Метикал","508"]
[102,null,"Молдавский лей","Молдова лейі","Молдавский лей",103,null,"498",null,102,"Молдавский лей","Молдова лейі","498"]
[114,null,"Найра","Найра","Найра",104,null,"566",null,114,"Найра","Найра","566"]
[106,null,"Намибийский доллар","Намибия доллары","Намибийский доллар",105,null,"516",null,106,"Намибийский доллар","Намибия доллары","516"]
[17,null,"НГУЛТРУМ","НГУЛТРУМ","НГУЛТРУМ",106,null,"064",null,17,"НГУЛТРУМ","НГУЛТРУМ","064"]
[56,null,"НЕМЕЦКАЯ МАРКА","НЕМІС МАРКАСЫ","НЕМЕЦКАЯ МАРКА",107,null,"276",null,56,"НЕМЕЦКАЯ МАРКА","НЕМІС МАРКАСЫ","276"]
[107,null,"НЕПАЛЬСКАЯ РУПИЯ","НЕПАЛЬ РУПИЯСЫ","НЕПАЛЬСКАЯ РУПИЯ",108,null,"524",null,107,"НЕПАЛЬСКАЯ РУПИЯ","НЕПАЛЬ РУПИЯСЫ","524"]
[109,null,"Нидерландск.антильск.гульден","Нидерланд.антильдік гульден","Нидерландск.антильск.гульден",109,null,"532",null,109,"Нидерландск.антильск.гульден","Нидерланд.антильдік гульден","532"]
[108,null,"НИДЕРЛАНДСКИЙ ГУЛЬДЕН","НИДЕРЛАНД ГУЛЬДЕНІ","НИДЕРЛАНДСКИЙ ГУЛЬДЕН",110,null,"528",null,108,"НИДЕРЛАНДСКИЙ ГУЛЬДЕН","НИДЕРЛАНД ГУЛЬДЕНІ","528"]
[5,null,"НОВАЯ КВАНЗА","КВАНЗА","НОВАЯ КВАНЗА",111,null,"973",null,5,"НОВАЯ КВАНЗА","КВАНЗА","973"]
[179,null,"Новая турецкая лира","Жаѕа тїрік лирасы","Новая турецкая лира",112,null,"949",null,179,"Новая турецкая лира","Жаѕа тїрік лирасы","949"]
[112,null,"Новозеландский доллар","Жаѕазеландия доллары","Новозеландский доллар",113,null,"554",null,112,"Новозеландский доллар","Жаѕазеландия доллары","554"]
[36,null,"НОВЫЙ ЗАИР","ЖАҢА ЗАИР","НОВЫЙ ЗАИР",114,null,"180",null,36,"НОВЫЙ ЗАИР","ЖАҢА ЗАИР","180"]
[73,null,"Новый израильский шекель","Жаѕа израил шекелі","Новый израильский шекель",115,null,"376",null,73,"Новый израильский шекель","Жаѕа израил шекелі","376"]
[190,null,"Новый манат","Жаѕа манат","Новый манат",116,null,"934",null,190,"Новый манат","Жаѕа манат","934"]
[127,null,"Новый румынский лей","Жаѕа румын лейі","Новый румынский лей",117,null,"946",null,127,"Новый румынский лей","Жаѕа румын лейі","946"]
[120,null,"Новый соль","Жаѕа соль","Новый соль",118,null,"604",null,120,"Новый соль","Жаѕа соль","604"]
[170,null,"Новый тайваньский доллар","Жаѕа тайвань доллары","Новый тайваньский доллар",119,null,"901",null,170,"Новый тайваньский доллар","Жаѕа тайвань доллары","901"]
[115,null,"Норвежская крона","Норвегия кронасы","Норвежская крона",120,null,"578",null,115,"Норвежская крона","Норвегия кронасы","578"]
[105,null,"Оманский риал","Оман риалы","Оманский риал",121,null,"512",null,105,"Оманский риал","Оман риалы","512"]
[150,null,"ПААНГА","ПААНГА","ПААНГА",122,null,"776",null,150,"ПААНГА","ПААНГА","776"]
[116,null,"ПАКИСТАНСКАЯ РУПИЯ","ПАКИСТАН РУПИЯСЫ","ПАКИСТАНСКАЯ РУПИЯ",123,null,"586",null,116,"ПАКИСТАНСКАЯ РУПИЯ","ПАКИСТАН РУПИЯСЫ","586"]
[92,null,"ПАТАКА","ПАТАКА","ПАТАКА",124,null,"446",null,92,"ПАТАКА","ПАТАКА","446"]
[124,null,"ПЕСО ГВИНЕИ-БИСАУ","ГВИНЕЯ-БИСАУ ПЕСОСЫ","ПЕСО ГВИНЕИ-БИСАУ",125,null,"624",null,124,"ПЕСО ГВИНЕИ-БИСАУ","ГВИНЕЯ-БИСАУ ПЕСОСЫ","624"]
[123,null,"ПОРТУГАЛЬСКОЕ ЭСКУДО","ПОРТУГАЛ ЭСКУДОСЫ","ПОРТУГАЛЬСКОЕ ЭСКУДО",126,null,"620",null,123,"ПОРТУГАЛЬСКОЕ ЭСКУДО","ПОРТУГАЛ ЭСКУДОСЫ","620"]
[19,null,"Пула","Пула","Пула",127,null,"072",null,19,"Пула","Пула","072"]
[27,null,"РИЕЛЬ","РИЕЛЬ",{"$f":"CONCATENATE(IF(B129<>\"\",CONCATENATE(B129,\" \"),\"\"),IF(p_language_current_id=1,C129,IF(p_language_current_id=2,D129,IF(C129=D129,C129,CONCATENATE(D129,IF(F129=0,\" / \",CHAR(10)),C129)))),IF(G129<>\"\",CONCATENATE(\" \",G129),\"\"))","v":"РИЕЛЬ"},128,null,"116",null,27,"РИЕЛЬ","РИЕЛЬ","116"]
[{"$f":"J130","v":158},null,{"$f":"K130","v":"Российский рубль"},{"$f":"L130","v":"Ресей рублі"},"Российский рубль",129,null,{"$f":"CONCATENATE(M130)","v":"643"},null,158,"Российский рубль","Ресей рублі","643"]
[69,null,"Рупия","Рупия","Рупия",130,null,"360",null,69,"Рупия","Рупия","360"]
[31,null,"Рупия Шри-Ланки","Шри-Ланки рупиясы","Рупия Шри-Ланки",131,null,"144",null,31,"Рупия Шри-Ланки","Шри-Ланки рупиясы","144"]
[96,null,"РУФИЯ","РУФИЯ","РУФИЯ",132,null,"462",null,96,"РУФИЯ","РУФИЯ","462"]
[139,null,"Рэнд","Рэнд","Рэнд",133,null,"710",null,139,"Рэнд","Рэнд","710"]
[46,null,"Сальвадорский колон","Сальвадор колоны","Сальвадорский колон",134,null,"222",null,46,"Сальвадорский колон","Сальвадор колоны","222"]
[131,null,"Саудовский риял","Саудов риялы","Саудовский риял",135,null,"682",null,131,"Саудовский риял","Саудов риялы","682"]
[176,null,"СДР (СПЕЦИАЛЬНЫЕ ПРАВА ЗАИМСТВОВАНИЯ)","СДР","СДР (СПЕЦИАЛЬНЫЕ ПРАВА ЗАИМСТВОВАНИЯ)",136,null,"960",null,176,"СДР (СПЕЦИАЛЬНЫЕ ПРАВА ЗАИМСТВОВАНИЯ)","СДР","960"]
[80,null,"СЕВ-КОРЕЙСКАЯ ВОНА","СОЛТҮСТІК КОРЕЯ ВОНАСЫ","СЕВ-КОРЕЙСКАЯ ВОНА",137,null,"408",null,80,"СЕВ-КОРЕЙСКАЯ ВОНА","СОЛТҮСТІК КОРЕЯ ВОНАСЫ","408"]
[57,null,"Седи","Седи","Седи",138,null,"936",null,57,"Седи","Седи","936"]
[132,null,"СЕЙШЕЛЬСКАЯ РУПИЯ","СЕЙШЕЛЬ РУПИЯСЫ","СЕЙШЕЛЬСКАЯ РУПИЯ",139,null,"690",null,132,"СЕЙШЕЛЬСКАЯ РУПИЯ","СЕЙШЕЛЬ РУПИЯСЫ","690"]
[185,null,"Сербский динар","Серб динары","Сербский динар",140,null,"941",null,185,"Сербский динар","Серб динары","941"]
[134,null,"Сингапурский доллар","Сингапур доллары","Сингапурский доллар",141,null,"702",null,134,"Сингапурский доллар","Сингапур доллары","702"]
[147,null,"СИРИЙСKИЙ ФУНТ","СИРИЯ ФУНТЫ","СИРИЙСKИЙ ФУНТ",142,null,"760",null,147,"СИРИЙСKИЙ ФУНТ","СИРИЯ ФУНТЫ","760"]
[135,null,"СЛОВАЦКАЯ КРОНА","СЛОВАК КРОНАСЫ","СЛОВАЦКАЯ КРОНА",143,null,"703",null,135,"СЛОВАЦКАЯ КРОНА","СЛОВАК КРОНАСЫ","703"]
[138,null,"СОМАЛИЙСКИЙ ШИЛЛИНГ","СОМАЛИ ШИЛЛИНГІ","СОМАЛИЙСКИЙ ШИЛЛИНГ",144,null,"706",null,138,"СОМАЛИЙСКИЙ ШИЛЛИНГ","СОМАЛИ ШИЛЛИНГІ","706"]
[148,null,"Сомони","Сомони","Сомони",145,null,"972",null,148,"Сомони","Сомони","972"]
[142,null,"СУДАНСКИЙ ДИНАР","СУДАН ДИНАРЫ","СУДАНСКИЙ ДИНАР",146,null,"736",null,142,"СУДАНСКИЙ ДИНАР","СУДАН ДИНАРЫ","736"]
[45,null,"СУКРЕ","СУКРЕ","СУКРЕ",147,null,"",null,45,"СУКРЕ","СУКРЕ"]
[143,null,"СУРИНАМСКИЙ ГУЛЬДЕН","СУРИНАМСКИЙ ГУЛЬДЕН","СУРИНАМСКИЙ ГУЛЬДЕН",148,null,"740",null,143,"СУРИНАМСКИЙ ГУЛЬДЕН","СУРИНАМСКИЙ ГУЛЬДЕН","740"]
[180,null,"Суринамский доллар","Суринам доллары","Суринамский доллар",149,null,"968",null,180,"Суринамский доллар","Суринам доллары","968"]
[12,null,"ТАКА","ТАКА","ТАКА",150,null,"050",null,12,"ТАКА","ТАКА","050"]
[166,null,"ТАЛА","ТАЛА","ТАЛА",151,null,"882",null,166,"ТАЛА","ТАЛА","882"]
[161,null,"ТАНЗАНИЙСКИЙ ШИЛЛИНГ","ТАНЗАНИЯ ШИЛЛИНГІ","ТАНЗАНИЙСКИЙ ШИЛЛИНГ",152,null,"834",null,161,"ТАНЗАНИЙСКИЙ ШИЛЛИНГ","ТАНЗАНИЯ ШИЛЛИНГІ","834"]
[77,null,"Тенге","Тенге","Тенге",153,null,"398",null,77,"Тенге","Тенге","398"]
[125,null,"ТИМОРСКОЕ ЭСКУДО","ТИМОРСКОЕ ЭСКУДО","ТИМОРСКОЕ ЭСКУДО",154,null,"626",null,125,"ТИМОРСКОЕ ЭСКУДО","ТИМОРСКОЕ ЭСКУДО","626"]
[137,null,"ТОЛАР (СЛОВЕНИЯ)","ТОЛАР","ТОЛАР (СЛОВЕНИЯ)",155,null,"705",null,137,"ТОЛАР (СЛОВЕНИЯ)","ТОЛАР","705"]
[101,null,"Тугрик","Тугрик","Тугрик",156,null,"496",null,101,"Тугрик","Тугрик","496"]
[153,null,"Тунисский динар","Тунис динары","Тунисский динар",157,null,"943",null,153,"Тунисский динар","Тунис динары","943"]
[154,null,"ТУРЕЦКАЯ ЛИРА","ТҮРІК ЛИРАСЫ","ТУРЕЦКАЯ ЛИРА",158,null,"792",null,154,"ТУРЕЦКАЯ ЛИРА","ТҮРІК ЛИРАСЫ","792"]
[156,null,"Угандский шиллинг","Уганда шиллингі","Угандский шиллинг",159,null,"800",null,156,"Угандский шиллинг","Уганда шиллингі","800"]
[98,null,"УГИЯ","УГИЯ",{"$f":"CONCATENATE(IF(B161<>\"\",CONCATENATE(B161,\" \"),\"\"),IF(p_language_current_id=1,C161,IF(p_language_current_id=2,D161,IF(C161=D161,C161,CONCATENATE(D161,IF(F161=0,\" / \",CHAR(10)),C161)))),IF(G161<>\"\",CONCATENATE(\" \",G161),\"\"))","v":"УГИЯ"},160,null,"478",null,98,"УГИЯ","УГИЯ","478"]
[164,null,"УЗБЕКСКИЙ СУМ","ӨЗБЕК СУМЫ","УЗБЕКСКИЙ СУМ",161,null,"860",null,164,"УЗБЕКСКИЙ СУМ","ӨЗБЕК СУМЫ","860"]
[163,null,"Уругвайское песо","Уругвай песосы","Уругвайское песо",162,null,"858",null,163,"Уругвайское песо","Уругвай песосы","858"]
[121,null,"Филиппинское песо","Филиппин песосы","Филиппинское песо",163,null,"608",null,121,"Филиппинское песо","Филиппин песосы","608"]
[51,null,"ФИНЛЯНДСКАЯ МАРКА","ФИНЛЯНДСКАЯ МАРКА","ФИНЛЯНДСКАЯ МАРКА",164,null,"246",null,51,"ФИНЛЯНДСКАЯ МАРКА","ФИНЛЯНДСКАЯ МАРКА","246"]
[49,null,"ФОЛКЛЕНДСКИЙ ФУНТ","ФОЛКЛЕНД АРАЛДАРЫНЫҢ ФУНТЫ","ФОЛКЛЕНДСКИЙ ФУНТ",165,null,"238",null,49,"ФОЛКЛЕНДСКИЙ ФУНТ","ФОЛКЛЕНД АРАЛДАРЫНЫҢ ФУНТЫ","238"]
[66,null,"Форинт","Форинт","Форинт",166,null,"348",null,66,"Форинт","Форинт","348"]
[52,null,"ФРАHЦУЗСКИЙ ФРАНК","ФРАHЦУЗСКИЙ ФРАНК","ФРАHЦУЗСКИЙ ФРАНК",167,null,"250",null,52,"ФРАHЦУЗСКИЙ ФРАНК","ФРАHЦУЗСКИЙ ФРАНК","250"]
[53,null,"ФРАНК ДЖИБУТИ","ДЖИБУТИ ФРАНКІ","ФРАНК ДЖИБУТИ",168,null,"262",null,53,"ФРАНК ДЖИБУТИ","ДЖИБУТИ ФРАНКІ","262"]
[35,null,"ФРАНК КОМОРСКИХ ОСТРОВОВ","КОМОР ФРАНКІ","ФРАНК КОМОРСКИХ ОСТРОВОВ",169,null,"174",null,35,"ФРАНК КОМОРСКИХ ОСТРОВОВ","КОМОР ФРАНКІ","174"]
[171,null,"Франк КФА ВЕАС","КФА ВЕАС франкі","Франк КФА ВЕАС",170,null,"950",null,171,"Франк КФА ВЕАС","КФА ВЕАС франкі","950"]
[173,null,"Франк КФА ВСЕАО","КФА ВСЕАО франкі","Франк КФА ВСЕАО",171,null,"952",null,173,"Франк КФА ВСЕАО","КФА ВСЕАО франкі","952"]
[174,null,"ФРАНК КФП","КФП ФРАНКІ","ФРАНК КФП",172,null,"953",null,174,"ФРАНК КФП","КФП ФРАНКІ","953"]
[128,null,"ФРАНК РУАНДЫ","РУАНД ФРАНКІ","ФРАНК РУАНДЫ",173,null,"646",null,128,"ФРАНК РУАНДЫ","РУАНД ФРАНКІ","646"]
[129,null,"ФУНТ ОСТРОВА СВЯТОЙ ЕЛЕНЫ","ӘУЛИЕ ЕЛЕНА  ФУНТЫ","ФУНТ ОСТРОВА СВЯТОЙ ЕЛЕНЫ",174,null,"654",null,129,"ФУНТ ОСТРОВА СВЯТОЙ ЕЛЕНЫ","ӘУЛИЕ ЕЛЕНА  ФУНТЫ","654"]
[39,null,"Хорватская куна","Хорват кунасы","Хорватская куна",175,null,"191",null,39,"Хорватская куна","Хорват кунасы","191"]
[38,null,"ХОРВАТСКИЙ ДИНАР","ХОРВАТСКИЙ ДИНАР","ХОРВАТСКИЙ ДИНАР",176,null,"",null,38,"ХОРВАТСКИЙ ДИНАР","ХОРВАТСКИЙ ДИНАР"]
[42,null,"Чешская крона","Чех кронасы","Чешская крона",177,null,"203",null,42,"Чешская крона","Чех кронасы","203"]
[32,null,"Чилийское песо","Чили песосы","Чилийское песо",178,null,"152",null,32,"Чилийское песо","Чили песосы","152"]
[145,null,"ШВЕДСКАЯ КРОНА","ШВЕД КРОНАСЫ","ШВЕДСКАЯ КРОНА",179,null,"752",null,145,"ШВЕДСКАЯ КРОНА","ШВЕД КРОНАСЫ","752"]
[146,null,"ШВЕЙЦАРСКИЙ ФРАНК","ШВЕЙЦАРИЯ ФРАНКІ","ШВЕЙЦАРСКИЙ ФРАНК",180,null,"756",null,146,"ШВЕЙЦАРСКИЙ ФРАНК","ШВЕЙЦАРИЯ ФРАНКІ","756"]
[9,null,"ШИЛЛИНГ","ШИЛЛИНГ","ШИЛЛИНГ",181,null,"040",null,9,"ШИЛЛИНГ","ШИЛЛИНГ","040"]
[29,null,"ЭСКУДО КАБО-ВЕРДЕ","КАБО-ВЕРДЕ ЭСКУДОСЫ","ЭСКУДО КАБО-ВЕРДЕ",182,null,"132",null,29,"ЭСКУДО КАБО-ВЕРДЕ","КАБО-ВЕРДЕ ЭСКУДОСЫ","132"]
[47,null,"ЭФИОПСКИЙ БЫР","ЭФИОПИЯ БЫРЫ","ЭФИОПСКИЙ БЫР",183,null,"230",null,47,"ЭФИОПСКИЙ БЫР","ЭФИОПИЯ БЫРЫ","230"]
[33,null,"Юань, Рэнминби","Юань, Рэнминби","Юань, Рэнминби",184,null,"156",null,33,"Юань, Рэнминби","Юань, Рэнминби","156"]
[168,null,"ЮГОСЛАВСКИЙ ДИНАР","ЮГОСЛАВИЯЛЫҚ ДИНАР","ЮГОСЛАВСКИЙ ДИНАР",185,null,"890",null,168,"ЮГОСЛАВСКИЙ ДИНАР","ЮГОСЛАВИЯЛЫҚ ДИНАР","890"]
[75,null,"Ямайский доллар","Ямайка доллары","Ямайский доллар",186,null,"388",null,75,"Ямайский доллар","Ямайка доллары","388"]

{"sheet":"Справочник стран","index":12,"n_rows":262,"n_cols":16,"rows_kept":262,"cut":false,"hidden":true,"merged":[[0,0,0,8]]}
["Справочник стран"]
["ID","Код слева","Наименование на русском языке","Наименование на казахском языке","Наименование","Перенос текста","Код справа","Код","Признак СНГ",null,"id_country","name","name_kz","is_sng","oksm_code"]
[{"$f":"K3","v":10},null,{"$f":"L3","v":"АВСТРАЛИЯ"},{"$f":"M3","v":"АВСТРАЛИЯ"},{"$f":"CONCATENATE(IF(B3<>\"\",CONCATENATE(B3,\" \"),\"\"),IF(p_language_current_id=1,C3,IF(p_language_current_id=2,D3,IF(C3=D3,C3,CONCATENATE(D3,IF(F3=0,\" / \",CHAR(10)),C3)))),IF(G3<>\"\",CONCATENATE(\" \",G3),\"\"))","v":"АВСТРАЛИЯ"},0,null,{"$f":"CONCATENATE(O3)","v":"036"},{"$f":"N3","v":0},{"$f":"IF(AND(H3<>\"\",H3<>\" \"),CONCATENATE(\"(\",H3,\")\"),\"\")","v":"(036)"},10,"АВСТРАЛИЯ","АВСТРАЛИЯ",0,"036","select * from"]
[{"$f":"K4","v":11},null,{"$f":"L4","v":"АВСТРИЯ"},{"$f":"M4","v":"АВСТРИЯ"},{"$f":"CONCATENATE(IF(B4<>\"\",CONCATENATE(B4,\" \"),\"\"),IF(p_language_current_id=1,C4,IF(p_language_current_id=2,D4,IF(C4=D4,C4,CONCATENATE(D4,IF(F4=0,\" / \",CHAR(10)),C4)))),IF(G4<>\"\",CONCATENATE(\" \",G4),\"\"))","v":"АВСТРИЯ"},0,null,{"$f":"CONCATENATE(O4)","v":"040"},{"$f":"N4","v":0},null,11,"АВСТРИЯ","АВСТРИЯ",0,"040","(select id_country, name, name_kz, is_sng_cnry, nvl(oksm_code, ' ') from s_country_last where trim(oksm_code) is not null and id_country not in (310, 311, 315) and date_end is null"]
[8,null,"АЗЕРБАЙДЖАН","ӘЗЕРБАЙЖАН","АЗЕРБАЙДЖАН",0,null,"031",1,null,8,"АЗЕРБАЙДЖАН","ӘЗЕРБАЙЖАН",1,"031","  union  "]
[2,null,"АЛБАНИЯ","АЛБАНИЯ","АЛБАНИЯ",0,null,"008",0,null,2,"АЛБАНИЯ","АЛБАНИЯ",0,"008"," select id_country, name, name_kz, is_sng_cnry, nvl(oksm_code, ' ') from s_country_last where trim(oksm_code) is null and id_country in (137, 243, 242) and date_end is null)"]
[3,null,"АЛЖИР","АЛЖИР","АЛЖИР",0,null,"012",0,null,3,"АЛЖИР","АЛЖИР",0,"012","order by name;"]
[184,null,"АНГИЛЬЯ (БРИТ.)","АНГИЛЬЯ","АНГИЛЬЯ (БРИТ.)",0,null,"660",0,null,184,"АНГИЛЬЯ (БРИТ.)","АНГИЛЬЯ",0,"660"]
[6,null,"АНГОЛА","АНГОЛА","АНГОЛА",0,null,"024",0,null,6,"АНГОЛА","АНГОЛА",0,"024"]
[5,null,"АНДОРРА","АНДОРРА","АНДОРРА",0,null,"020",0,null,5,"АНДОРРА","АНДОРРА",0,"020"]
[291,null,"АНТАРКТИКА","АНТАРКТИКА","АНТАРКТИКА",0,null,"010",0,null,291,"АНТАРКТИКА","АНТАРКТИКА",0,"010"]
[7,null,"АНТИГУА И БАРБУДА","АНТИГУА ЖӘНЕ БАРБУДА","АНТИГУА И БАРБУДА",0,null,"028",0,null,7,"АНТИГУА И БАРБУДА","АНТИГУА ЖӘНЕ БАРБУДА",0,"028"]
[9,null,"АРГЕНТИНА","АРГЕНТИНА","АРГЕНТИНА",0,null,"032",0,null,9,"АРГЕНТИНА","АРГЕНТИНА",0,"032"]
[15,null,"АРМЕНИЯ","АРМЕНИЯ","АРМЕНИЯ",0,null,"051",1,null,15,"АРМЕНИЯ","АРМЕНИЯ",1,"051"]
[150,null,"АРУБА ОСТРОВ (НИДЕРЛАНДЫ)","АРУБА","АРУБА ОСТРОВ (НИДЕРЛАНДЫ)",0,null,"533",0,null,150,"АРУБА ОСТРОВ (НИДЕРЛАНДЫ)","АРУБА",0,"533"]
[109,null,"АТТОЛ ДЖОНСТОН (США)","АТТОЛ ДЖОНСТОН (США)","АТТОЛ ДЖОНСТОН (США)",0,null,"396",0,null,109,"АТТОЛ ДЖОНСТОН (США)","АТТОЛ ДЖОНСТОН (США)",0,"396"]
[1,null,"АФГАНИСТАН","АУҒАНСТАН","АФГАНИСТАН",0,null,"004",0,null,1,"АФГАНИСТАН","АУҒАНСТАН",0,"004"]
[12,null,"Багамы","Багам","Багамы",0,null,"044",0,null,12,"Багамы","Багам",0,"044"]
[14,null,"БАНГЛАДЕШ","БАНГЛАДЕШ","БАНГЛАДЕШ",0,null,"050",0,null,14,"БАНГЛАДЕШ","БАНГЛАДЕШ",0,"050"]
[16,null,"БАРБАДОС","БАРБАДОС","БАРБАДОС",0,null,"052",0,null,16,"БАРБАДОС","БАРБАДОС",0,"052"]
[13,null,"БАХРЕЙН","БАХРЕЙН","БАХРЕЙН",0,null,"048",0,null,13,"БАХРЕЙН","БАХРЕЙН",0,"048"]
[33,null,"БЕЛАРУСЬ","БЕЛАРУСЬ","БЕЛАРУСЬ",0,null,"112",1,null,33,"БЕЛАРУСЬ","БЕЛАРУСЬ",1,"112"]
[25,null,"БЕЛИЗ","БЕЛИЗ","БЕЛИЗ",0,null,"084",0,null,25,"БЕЛИЗ","БЕЛИЗ",0,"084"]
[17,null,"БЕЛЬГИЯ","БЕЛЬГИЯ","БЕЛЬГИЯ",0,null,"056",0,null,17,"БЕЛЬГИЯ","БЕЛЬГИЯ",0,"056"]
[57,null,"БЕНИН","БЕНИН","БЕНИН",0,null,"204",0,null,57,"БЕНИН","БЕНИН",0,"204"]
[18,null,"Бермуды","Бермуд","Бермуды",0,null,"060",0,null,18,"Бермуды","Бермуд",0,"060"]
[30,null,"БОЛГАРИЯ","БОЛГАРИЯ","БОЛГАРИЯ",0,null,"100",0,null,30,"БОЛГАРИЯ","БОЛГАРИЯ",0,"100"]
[20,null,"БОЛИВИЯ","БОЛИВИЯ","БОЛИВИЯ",0,null,"068",0,null,20,"БОЛИВИЯ","БОЛИВИЯ",0,"068"]
[300,null,"Бонэйр, Синт-Эстатиус и Саба","Бонэйр, Синт-Эстатиус и Саба","Бонэйр, Синт-Эстатиус и Саба",0,null,"535",0,null,300,"Бонэйр, Синт-Эстатиус и Саба","Бонэйр, Синт-Эстатиус и Саба",0,"535"]
[21,null,"БОСНИЯ И ГЕРЦЕГОВИНА","БОСНИЯ ЖӘНЕ ГЕРЦЕГОВИНА","БОСНИЯ И ГЕРЦЕГОВИНА",0,null,"070",0,null,21,"БОСНИЯ И ГЕРЦЕГОВИНА","БОСНИЯ ЖӘНЕ ГЕРЦЕГОВИНА",0,"070"]
[22,null,"БОТСВАНА","БОТСВАНА","БОТСВАНА",0,null,"072",0,null,22,"БОТСВАНА","БОТСВАНА",0,"072"]
[24,null,"БРАЗИЛИЯ","БРАЗИЛИЯ","БРАЗИЛИЯ",0,null,"076",0,null,24,"БРАЗИЛИЯ","БРАЗИЛИЯ",0,"076"]
[26,null,"БРИТАНСКАЯ ТЕРРИТОРИЯ В ИНДИЙСКОМ ОКЕАНЕ","БРИТАНСКАЯ ТЕРРИТОРИЯ В ИНДИЙСКОМ ОКЕАНЕ","БРИТАНСКАЯ ТЕРРИТОРИЯ В ИНДИЙСКОМ ОКЕАНЕ",0,null,"086",0,null,26,"БРИТАНСКАЯ ТЕРРИТОРИЯ В ИНДИЙСКОМ ОКЕАНЕ","БРИТАНСКАЯ ТЕРРИТОРИЯ В ИНДИЙСКОМ ОКЕАНЕ",0,"086"]
[29,null,"Бруней-Даруссалам","Бруней-Даруссалам","Бруней-Даруссалам",0,null,"096",0,null,29,"Бруней-Даруссалам","Бруней-Даруссалам",0,"096"]
[232,null,"БУРКИНА-ФАСО","БУРКИНА-ФАСО","БУРКИНА-ФАСО",0,null,"854",0,null,232,"БУРКИНА-ФАСО","БУРКИНА-ФАСО",0,"854"]
[32,null,"БУРУНДИ","БУРУНДИ","БУРУНДИ",0,null,"108",0,null,32,"БУРУНДИ","БУРУНДИ",0,"108"]
[19,null,"БУТАН","БУТАН","БУТАН",0,null,"064",0,null,19,"БУТАН","БУТАН",0,"064"]
[152,null,"ВАНУАТУ","ВАНУАТУ","ВАНУАТУ",0,null,"548",0,null,152,"ВАНУАТУ","ВАНУАТУ",0,"548"]
[97,null,"ВЕНГРИЯ","ВЕНГРИЯ","ВЕНГРИЯ",0,null,"348",0,null,97,"ВЕНГРИЯ","ВЕНГРИЯ",0,"348"]
[235,null,"ВЕНЕСУЭЛА","ВЕНЕСУЭЛА","ВЕНЕСУЭЛА",0,null,"862",0,null,235,"ВЕНЕСУЭЛА","ВЕНЕСУЭЛА",0,"862"]
[28,null,"Виргинские острова  (Брит.)","Виргин аралдары (Брит.)","Виргинские острова  (Брит.)",0,null,"092",0,null,28,"Виргинские острова  (Брит.)","Виргин аралдары (Брит.)",0,"092"]
[231,null,"Виргинские острова, США","Виргин аралдары,  АҚШ","Виргинские острова, США",0,null,"850",0,null,231,"Виргинские острова, США","Виргин аралдары,  АҚШ",0,"850"]
[4,null,"ВОСТОЧНОЕ САМОА (США)","АМЕРИКАН САМОАСЫ","ВОСТОЧНОЕ САМОА (США)",0,null,"016",0,null,4,"ВОСТОЧНОЕ САМОА (США)","АМЕРИКАН САМОАСЫ",0,"016"]
[196,null,"ВЬЕТНАМ","ВЬЕТНАМ","ВЬЕТНАМ",0,null,"704",0,null,196,"ВЬЕТНАМ","ВЬЕТНАМ",0,"704"]
[76,null,"ГАБОН","ГАБОН","ГАБОН",0,null,"266",0,null,76,"ГАБОН","ГАБОН",0,"266"]
[92,null,"ГАИТИ","ГАИТИ","ГАИТИ",0,null,"332",0,null,92,"ГАИТИ","ГАИТИ",0,"332"]
[91,null,"ГАЙАНА","ГАЙАНА","ГАЙАНА",0,null,"328",0,null,91,"ГАЙАНА","ГАЙАНА",0,"328"]
[78,null,"ГАМБИЯ","ГАМБИЯ","ГАМБИЯ",0,null,"270",0,null,78,"ГАМБИЯ","ГАМБИЯ",0,"270"]
[81,null,"Гана - Республика Гана","Гана - Гана Республикасы","Гана - Республика Гана",0,null,"288",0,null,81,"Гана - Республика Гана","Гана - Гана Республикасы",0,"288"]
[87,null,"ГВАДЕЛУПА","ГВАДЕЛУПА","ГВАДЕЛУПА",0,null,"312",0,null,87,"ГВАДЕЛУПА","ГВАДЕЛУПА",0,"312"]
[89,null,"ГВАТЕМАЛА","ГВАТЕМАЛА","ГВАТЕМАЛА",0,null,"320",0,null,89,"ГВАТЕМАЛА","ГВАТЕМАЛА",0,"320"]
[72,null,"ГВИАНА","ФРАНЦУЗ ГВИАНАСЫ","ГВИАНА",0,null,"254",0,null,72,"ГВИАНА","ФРАНЦУЗ ГВИАНАСЫ",0,"254"]
[90,null,"ГВИНЕЯ","ГВИНЕЯ","ГВИНЕЯ",0,null,"324",0,null,90,"ГВИНЕЯ","ГВИНЕЯ",0,"324"]
[174,null,"ГВИНЕЯ-БИСАУ","ГВИНЕЯ-БИСАУ","ГВИНЕЯ-БИСАУ",0,null,"624",0,null,174,"ГВИНЕЯ-БИСАУ","ГВИНЕЯ-БИСАУ",0,"624"]
[80,null,"ГЕРМАНИЯ","ГЕРМАНИЯ","ГЕРМАНИЯ",0,null,"276",0,null,80,"ГЕРМАНИЯ","ГЕРМАНИЯ",0,"276"]
[82,null,"ГИБРАЛТАР (БРИТ.)","ГИБРАЛТАР","ГИБРАЛТАР (БРИТ.)",0,null,"292",0,null,82,"ГИБРАЛТАР (БРИТ.)","ГИБРАЛТАР",0,"292"]
[95,null,"ГОНДУРАС","ГОНДУРАС","ГОНДУРАС",0,null,"340",0,null,95,"ГОНДУРАС","ГОНДУРАС",0,"340"]
[96,null,"ГОНКОНГ (СЯНГАН)","ГОНКОНГ","ГОНКОНГ (СЯНГАН)",0,null,"344",0,null,96,"ГОНКОНГ (СЯНГАН)","ГОНКОНГ",0,"344"]
[86,null,"ГРЕНАДА","ГРЕНАДА","ГРЕНАДА",0,null,"308",0,null,86,"ГРЕНАДА","ГРЕНАДА",0,"308"]
[85,null,"ГРЕНЛАНДИЯ (ДАНИЯ)","ГРЕНЛАНДИЯ","ГРЕНЛАНДИЯ (ДАНИЯ)",0,null,"304",0,null,85,"ГРЕНЛАНДИЯ (ДАНИЯ)","ГРЕНЛАНДИЯ",0,"304"]
[84,null,"ГРЕЦИЯ","ГРЕЦИЯ","ГРЕЦИЯ",0,null,"300",0,null,84,"ГРЕЦИЯ","ГРЕЦИЯ",0,"300"]
[77,null,"ГРУЗИЯ","ГРУЗИЯ","ГРУЗИЯ",0,null,"268",0,null,77,"ГРУЗИЯ","ГРУЗИЯ",0,"268"]
[88,null,"ГУАМ (США)","ГУАМ","ГУАМ (США)",0,null,"316",0,null,88,"ГУАМ (США)","ГУАМ",0,"316"]
[58,null,"ДАНИЯ","ДАНИЯ","ДАНИЯ",0,null,"208",0,null,58,"ДАНИЯ","ДАНИЯ",0,"208"]
[75,null,"ДЖИБУТИ","ДЖИБУТИ","ДЖИБУТИ",0,null,"262",0,null,75,"ДЖИБУТИ","ДЖИБУТИ",0,"262"]
[59,null,"ДОМИНИКА","ДОМИНИКА","ДОМИНИКА",0,null,"212",0,null,59,"ДОМИНИКА","ДОМИНИКА",0,"212"]
[60,null,"ДОМИНИКАНСКАЯ РЕСПУБЛИКА","ДОМИНИКАН РЕСПУБЛИКАСЫ","ДОМИНИКАНСКАЯ РЕСПУБЛИКА",0,null,"214",0,null,60,"ДОМИНИКАНСКАЯ РЕСПУБЛИКА","ДОМИНИКАН РЕСПУБЛИКАСЫ",0,"214"]
[{"$f":"K68","v":243},null,{"$f":"L68","v":"др.страны не СНГ"},{"$f":"M68","v":"ТМД емес басқа елдер"},{"$f":"CONCATENATE(IF(B68<>\"\",CONCATENATE(B68,\" \"),\"\"),IF(p_language_current_id=1,C68,IF(p_language_current_id=2,D68,IF(C68=D68,C68,CONCATENATE(D68,IF(F68=0,\" / \",CHAR(10)),C68)))),IF(G68<>\"\",CONCATENATE(\" \",G68),\"\"))","v":"др.страны не СНГ"},0,null,{"$f":"CONCATENATE(O68)","v":" "},{"$f":"N68","v":0},null,243,"др.страны не СНГ","ТМД емес басқа елдер",0," "]
[225,null,"Египет  - Арабская Республика Египет","Египет  -  Египет Араб Республикасы","Египет  - Арабская Республика Египет",0,null,"818",0,null,225,"Египет  - Арабская Республика Египет","Египет  -  Египет Араб Республикасы",0,"818"]
[241,null,"ЗАМБИЯ","ЗАМБИЯ","ЗАМБИЯ",0,null,"894",0,null,241,"ЗАМБИЯ","ЗАМБИЯ",0,"894"]
[202,null,"ЗАПАДНАЯ САХАРА","ЗАПАДНАЯ САХАРА","ЗАПАДНАЯ САХАРА",0,null,"732",0,null,202,"ЗАПАДНАЯ САХАРА","ЗАПАДНАЯ САХАРА",0,"732"]
[238,null,"ЗАПАДНОЕ САМОА","САМОА","ЗАПАДНОЕ САМОА",0,null,"882",0,null,238,"ЗАПАДНОЕ САМОА","САМОА",0,"882"]
[200,null,"ЗИМБАБВЕ","ЗИМБАБВЕ","ЗИМБАБВЕ",0,null,"716",0,null,200,"ЗИМБАБВЕ","ЗИМБАБВЕ",0,"716"]
[104,null,"ИЗРАИЛЬ","ИЗРАИЛЬ","ИЗРАИЛЬ",0,null,"376",0,null,104,"ИЗРАИЛЬ","ИЗРАИЛЬ",0,"376"]
[99,null,"ИНДИЯ","ИНДИЯ","ИНДИЯ",0,null,"356",0,null,99,"ИНДИЯ","ИНДИЯ",0,"356"]
[100,null,"ИНДОНЕЗИЯ","ИНДОНЕЗИЯ","ИНДОНЕЗИЯ",0,null,"360",0,null,100,"ИНДОНЕЗИЯ","ИНДОНЕЗИЯ",0,"360"]
[111,null,"ИОРДАНИЯ","ИОРДАНИЯ","ИОРДАНИЯ",0,null,"400",0,null,111,"ИОРДАНИЯ","ИОРДАНИЯ",0,"400"]
[102,null,"ИРАК","ИРАК","ИРАК",0,null,"368",0,null,102,"ИРАК","ИРАК",0,"368"]
[101,null,"ИРАН","ИРАН, ИСЛАМ РЕСПУБЛИКАСЫ","ИРАН",0,null,"364",0,null,101,"ИРАН","ИРАН, ИСЛАМ РЕСПУБЛИКАСЫ",0,"364"]
[103,null,"ИРЛАНДИЯ","ИРЛАНДИЯ","ИРЛАНДИЯ",0,null,"372",0,null,103,"ИРЛАНДИЯ","ИРЛАНДИЯ",0,"372"]
[98,null,"ИСЛАНДИЯ","ИСЛАНДИЯ","ИСЛАНДИЯ",0,null,"352",0,null,98,"ИСЛАНДИЯ","ИСЛАНДИЯ",0,"352"]
[201,null,"ИСПАНИЯ","ИСПАНИЯ","ИСПАНИЯ",0,null,"724",0,null,201,"ИСПАНИЯ","ИСПАНИЯ",0,"724"]
[105,null,"ИТАЛИЯ","ИТАЛИЯ","ИТАЛИЯ",0,null,"380",0,null,105,"ИТАЛИЯ","ИТАЛИЯ",0,"380"]
[239,null,"ЙЕМЕН","ЙЕМЕН","ЙЕМЕН",0,null,"887",0,null,239,"ЙЕМЕН","ЙЕМЕН",0,"887"]
[37,null,"КАБО-ВЕРДЕ","КАБО-ВЕРДЕ","КАБО-ВЕРДЕ",0,null,"132",0,null,37,"КАБО-ВЕРДЕ","КАБО-ВЕРДЕ",0,"132"]
[110,null,"КАЗАХСТАН","КАЗАХСТАН","КАЗАХСТАН",0,null,"398",1,null,110,"КАЗАХСТАН","КАЗАХСТАН",1,"398"]
[34,null,"КАМБОДЖА","КАМБОДЖА","КАМБОДЖА",0,null,"116",0,null,34,"КАМБОДЖА","КАМБОДЖА",0,"116"]
[35,null,"КАМЕРУН","КАМЕРУН","КАМЕРУН",0,null,"120",0,null,35,"КАМЕРУН","КАМЕРУН",0,"120"]
[36,null,"КАНАДА","КАНАДА","КАНАДА",0,null,"124",0,null,36,"КАНАДА","КАНАДА",0,"124"]
[177,null,"КАТАР","КАТАР","КАТАР",0,null,"634",0,null,177,"КАТАР","КАТАР",0,"634"]
[112,null,"КЕНИЯ","КЕНИЯ","КЕНИЯ",0,null,"404",0,null,112,"КЕНИЯ","КЕНИЯ",0,"404"]
[55,null,"КИПР","КИПР","КИПР",0,null,"196",0,null,55,"КИПР","КИПР",0,"196"]
[83,null,"КИРИБАТИ","КИРИБАТИ","КИРИБАТИ",0,null,"296",0,null,83,"КИРИБАТИ","КИРИБАТИ",0,"296"]
[43,null,"КИТАЙ","ҚЫТАЙ","КИТАЙ",0,null,"156",0,null,43,"КИТАЙ","ҚЫТАЙ",0,"156"]
[46,null,"Кокосовые (килинг) острова","Кокосовые (килинг) острова","Кокосовые (килинг) острова",0,null,"166",0,null,46,"Кокосовые (килинг) острова","Кокосовые (килинг) острова",0,"166"]
[47,null,"КОЛУМБИЯ","КОЛУМБИЯ","КОЛУМБИЯ",0,null,"170",0,null,47,"КОЛУМБИЯ","КОЛУМБИЯ",0,"170"]
[48,null,"Коморы","Комор","Коморы",0,null,"174",0,null,48,"Коморы","Комор",0,"174"]
[49,null,"КОНГО","КОНГО","КОНГО",0,null,"178",0,null,49,"КОНГО","КОНГО",0,"178"]
[50,null,"КОНГО,ДЕМОКРАТИЧЕСКАЯ РЕСПУБЛИКА (бывш. ЗАИР)","Конго, Демократиялық республика","КОНГО,ДЕМОКРАТИЧЕСКАЯ РЕСПУБЛИКА (бывш. ЗАИР)",0,null,"180",0,null,50,"КОНГО,ДЕМОКРАТИЧЕСКАЯ РЕСПУБЛИКА (бывш. ЗАИР)","Конго, Демократиялық республика",0,"180"]
[113,null,"Корея, Народно-Демократическая  республика","Корея, Халықтық-Демократиялық республика","Корея, Народно-Демократическая  республика",0,null,"408",0,null,113,"Корея, Народно-Демократическая  республика","Корея, Халықтық-Демократиялық республика",0,"408"]
[324,null,"Косово","Косово","Косово",0,null,"373",0,null,324,"Косово","Косово",0,"373"]
[52,null,"КОСТА-РИКА","КОСТА-РИКА","КОСТА-РИКА",0,null,"188",0,null,52,"КОСТА-РИКА","КОСТА-РИКА",0,"188"]
[106,null,"КОТ-Д ИВУАР","КОТ-Д ИВУАР","КОТ-Д ИВУАР",0,null,"384",0,null,106,"КОТ-Д ИВУАР","КОТ-Д ИВУАР",0,"384"]
[54,null,"КУБА","КУБА","КУБА",0,null,"192",0,null,54,"КУБА","КУБА",0,"192"]
[115,null,"КУВЕЙТ","КУВЕЙТ","КУВЕЙТ",0,null,"414",0,null,115,"КУВЕЙТ","КУВЕЙТ",0,"414"]
[116,null,"КЫРГЫЗСТАН","КЫРГЫЗСТАН","КЫРГЫЗСТАН",0,null,"417",1,null,116,"КЫРГЫЗСТАН","КЫРГЫЗСТАН",1,"417"]
[301,null,"Кюрасао","Кюрасао","Кюрасао",0,null,"531",0,null,301,"Кюрасао","Кюрасао",0,"531"]
[117,null,"Лаосская народно-демократическая  республика","Лаос халықтық-демократиялық  республикасы","Лаосская народно-демократическая  республика",0,null,"418",0,null,117,"Лаосская народно-демократическая  республика","Лаос халықтық-демократиялық  республикасы",0,"418"]
[120,null,"ЛАТВИЯ","ЛАТВИЯ","ЛАТВИЯ",0,null,"428",0,null,120,"ЛАТВИЯ","ЛАТВИЯ",0,"428"]
[119,null,"ЛЕСОТО","ЛЕСОТО","ЛЕСОТО",0,null,"426",0,null,119,"ЛЕСОТО","ЛЕСОТО",0,"426"]
[121,null,"ЛИБЕРИЯ","ЛИБЕРИЯ","ЛИБЕРИЯ",0,null,"430",0,null,121,"ЛИБЕРИЯ","ЛИБЕРИЯ",0,"430"]
[118,null,"ЛИВАН","ЛИВАН","ЛИВАН",0,null,"422",0,null,118,"ЛИВАН","ЛИВАН",0,"422"]
[122,null,"Ливийская Арабская Джамахирия","Ливия Араб Джамахириясы","Ливийская Арабская Джамахирия",0,null,"434",0,null,122,"Ливийская Арабская Джамахирия","Ливия Араб Джамахириясы",0,"434"]
[124,null,"ЛИТВА","ЛИТВА","ЛИТВА",0,null,"440",0,null,124,"ЛИТВА","ЛИТВА",0,"440"]
[123,null,"ЛИХТЕНШТЕЙН","ЛИХТЕНШТЕЙН","ЛИХТЕНШТЕЙН",0,null,"438",0,null,123,"ЛИХТЕНШТЕЙН","ЛИХТЕНШТЕЙН",0,"438"]
[125,null,"ЛЮКСЕМБУРГ","ЛЮКСЕМБУРГ","ЛЮКСЕМБУРГ",0,null,"442",0,null,125,"ЛЮКСЕМБУРГ","ЛЮКСЕМБУРГ",0,"442"]
[135,null,"МАВРИКИЙ","МАВРИКИЙ","МАВРИКИЙ",0,null,"480",0,null,135,"МАВРИКИЙ","МАВРИКИЙ",0,"480"]
[134,null,"МАВРИТАНИЯ","МАВРИТАНИЯ","МАВРИТАНИЯ",0,null,"478",0,null,134,"МАВРИТАНИЯ","МАВРИТАНИЯ",0,"478"]
[127,null,"МАДАГАСКАР","МАДАГАСКАР","МАДАГАСКАР",0,null,"450",0,null,127,"МАДАГАСКАР","МАДАГАСКАР",0,"450"]
[293,null,"МАЙОТТА","МАЙОТТА","МАЙОТТА",0,null,"175",0,null,293,"МАЙОТТА","МАЙОТТА",0,"175"]
[126,null,"Макао - Специальный административный регион в Китае","Макао - Қытайдағы арнайы әкімшілік аймақ","Макао - Специальный административный регион в Китае",0,null,"446",0,null,126,"Макао - Специальный административный регион в Китае","Макао - Қытайдағы арнайы әкімшілік аймақ",0,"446"]
[224,null,"МАКЕДОНИЯ","МАКЕДОНИЯ, БҰРЫНҒЫ ЮГОСЛАВИЯ РЕСПУБЛИКАСЫ","МАКЕДОНИЯ",0,null,"807",0,null,224,"МАКЕДОНИЯ","МАКЕДОНИЯ, БҰРЫНҒЫ ЮГОСЛАВИЯ РЕСПУБЛИКАСЫ",0,"807"]
[128,null,"МАЛАВИ","МАЛАВИ","МАЛАВИ",0,null,"454",0,null,128,"МАЛАВИ","МАЛАВИ",0,"454"]
[129,null,"МАЛАЙЗИЯ","МАЛАЙЗИЯ","МАЛАЙЗИЯ",0,null,"458",0,null,129,"МАЛАЙЗИЯ","МАЛАЙЗИЯ",0,"458"]
[131,null,"МАЛИ","МАЛИ","МАЛИ",0,null,"466",0,null,131,"МАЛИ","МАЛИ",0,"466"]
[161,null,"Малые тихоокеанские отдаленные о-ва Соединенных Штатов","Малые тихоокеанские отдаленные о-ва Соединенных Штатов","Малые тихоокеанские отдаленные о-ва Соединенных Штатов",0,null,"581",0,null,161,"Малые тихоокеанские отдаленные о-ва Соединенных Штатов","Малые тихоокеанские отдаленные о-ва Соединенных Штатов",0,"581"]
[130,null,"МАЛЬДИВЫ","МАЛЬДИВЫ","МАЛЬДИВЫ",0,null,"462",0,null,130,"МАЛЬДИВЫ","МАЛЬДИВЫ",0,"462"]
[132,null,"МАЛЬТА","МАЛЬТА","МАЛЬТА",0,null,"470",0,null,132,"МАЛЬТА","МАЛЬТА",0,"470"]
[142,null,"МАРОККО","МАРОККО","МАРОККО",0,null,"504",0,null,142,"МАРОККО","МАРОККО",0,"504"]
[133,null,"МАРТИНИКА","МАРТИНИКА","МАРТИНИКА",0,null,"474",0,null,133,"МАРТИНИКА","МАРТИНИКА",0,"474"]
[163,null,"Маршалловы острова","Маршал аралдары","Маршалловы острова",0,null,"584",0,null,163,"Маршалловы острова","Маршал аралдары",0,"584"]
[{"$f":"K132","v":242},null,{"$f":"L132","v":"МЕЖДУНАРОДНЫЕ ОРГАНИЗАЦИИ"},{"$f":"M132","v":"ХАЛЫҚАРАЛЫҚ ҰЙЫМДАР"},{"$f":"CONCATENATE(IF(B132<>\"\",CONCATENATE(B132,\" \"),\"\"),IF(p_language_current_id=1,C132,IF(p_language_current_id=2,D132,IF(C132=D132,C132,CONCATENATE(D132,IF(F132=0,\" / \",CHAR(10)),C132)))),IF(G132<>\"\",CONCATENATE(\" \",G132),\"\"))","v":"МЕЖДУНАРОДНЫЕ ОРГАНИЗАЦИИ"},0,null,{"$f":"CONCATENATE(O132)","v":"999"},{"$f":"N132","v":0},null,242,"МЕЖДУНАРОДНЫЕ ОРГАНИЗАЦИИ","ХАЛЫҚАРАЛЫҚ ҰЙЫМДАР",0,"999"]
[136,null,"МЕКСИКА","МЕКСИКА","МЕКСИКА",0,null,"484",0,null,136,"МЕКСИКА","МЕКСИКА",0,"484"]
[162,null,"Микронезия, Федеративные штаты","Микронезия, Федерациялық штаттар","Микронезия, Федеративные штаты",0,null,"583",0,null,162,"Микронезия, Федеративные штаты","Микронезия, Федерациялық штаттар",0,"583"]
[143,null,"МОЗАМБИК","МОЗАМБИК","МОЗАМБИК",0,null,"508",0,null,143,"МОЗАМБИК","МОЗАМБИК",0,"508"]
[138,null,"МОНАКО","МОНАКО","МОНАКО",0,null,"492",0,null,138,"МОНАКО","МОНАКО",0,"492"]
[139,null,"МОНГОЛИЯ","МОНГОЛИЯ","МОНГОЛИЯ",0,null,"496",0,null,139,"МОНГОЛИЯ","МОНГОЛИЯ",0,"496"]
[141,null,"МОНТСЕРРАТ (БРИТ.)","МОНТСЕРРАТ","МОНТСЕРРАТ (БРИТ.)",0,null,"500",0,null,141,"МОНТСЕРРАТ (БРИТ.)","МОНТСЕРРАТ",0,"500"]
[31,null,"МЬЯНМА","МЬЯНМА","МЬЯНМА",0,null,"104",0,null,31,"МЬЯНМА","МЬЯНМА",0,"104"]
[145,null,"НАМИБИЯ","НАМИБИЯ","НАМИБИЯ",0,null,"516",0,null,145,"НАМИБИЯ","НАМИБИЯ",0,"516"]
[146,null,"НАУРУ","НАУРУ","НАУРУ",0,null,"520",0,null,146,"НАУРУ","НАУРУ",0,"520"]
[147,null,"НЕПАЛ","НЕПАЛ","НЕПАЛ",0,null,"524",0,null,147,"НЕПАЛ","НЕПАЛ",0,"524"]
[155,null,"НИГЕР","НИГЕР","НИГЕР",0,null,"562",0,null,155,"НИГЕР","НИГЕР",0,"562"]
[156,null,"НИГЕРИЯ","НИГЕРИЯ","НИГЕРИЯ",0,null,"566",0,null,156,"НИГЕРИЯ","НИГЕРИЯ",0,"566"]
[148,null,"НИДЕРЛАНДЫ","НИДЕРЛАНД","НИДЕРЛАНДЫ",0,null,"528",0,null,148,"НИДЕРЛАНДЫ","НИДЕРЛАНД",0,"528"]
[154,null,"НИКАРАГУА","НИКАРАГУА","НИКАРАГУА",0,null,"558",0,null,154,"НИКАРАГУА","НИКАРАГУА",0,"558"]
[157,null,"НИУЭ (Н.ЗЕЛАНДИЯ)","НИУЭ","НИУЭ (Н.ЗЕЛАНДИЯ)",0,null,"570",0,null,157,"НИУЭ (Н.ЗЕЛАНДИЯ)","НИУЭ",0,"570"]
[153,null,"НОВАЯ ЗЕЛАНДИЯ","ЖАҢА ЗЕЛАНДИЯ","НОВАЯ ЗЕЛАНДИЯ",0,null,"554",0,null,153,"НОВАЯ ЗЕЛАНДИЯ","ЖАҢА ЗЕЛАНДИЯ",0,"554"]
[151,null,"НОВАЯ КАЛЕДОНИЯ (ФРАНЦИЯ)","ЖАҢА КАЛЕДОНИЯ","НОВАЯ КАЛЕДОНИЯ (ФРАНЦИЯ)",0,null,"540",0,null,151,"НОВАЯ КАЛЕДОНИЯ (ФРАНЦИЯ)","ЖАҢА КАЛЕДОНИЯ",0,"540"]
[159,null,"НОРВЕГИЯ","НОРВЕГИЯ","НОРВЕГИЯ",0,null,"578",0,null,159,"НОРВЕГИЯ","НОРВЕГИЯ",0,"578"]
[227,null,"НОРМАНДСКИЕ ОСТРОВА","НОРМАНДСКИЕ ОСТРОВА","НОРМАНДСКИЕ ОСТРОВА",0,null,"830",0,null,227,"НОРМАНДСКИЕ ОСТРОВА","НОРМАНДСКИЕ ОСТРОВА",0,"830"]
[216,null,"ОБЪЕДИНЕННЫЕ АРАБСКИЕ ЭМИРАТЫ","БІРІККЕН АРАБ ӘМІРЛІКТЕРІ","ОБЪЕДИНЕННЫЕ АРАБСКИЕ ЭМИРАТЫ",0,null,"784",0,null,216,"ОБЪЕДИНЕННЫЕ АРАБСКИЕ ЭМИРАТЫ","БІРІККЕН АРАБ ӘМІРЛІКТЕРІ",0,"784"]
[289,null,"О-в Гернси","Гернси аралы","О-в Гернси",0,null,"831",0,null,289,"О-в Гернси","Гернси аралы",0,"831"]
[244,null,"О-в Джерси","Джерси аралы","О-в Джерси",0,null,"832",0,null,244,"О-в Джерси","Джерси аралы",0,"832"]
[144,null,"ОМАН","ОМАН","ОМАН",0,null,"512",0,null,144,"ОМАН","ОМАН",0,"512"]
[23,null,"Остров Буве","Буве аралы","Остров Буве",0,null,"074",0,null,23,"Остров Буве","Буве аралы",0,"074"]
[228,null,"Остров Мэн","Мэн аралы","Остров Мэн",0,null,"833",0,null,228,"Остров Мэн","Мэн аралы",0,"833"]
[158,null,"Остров Норфолк","Норфолк аралы","Остров Норфолк",0,null,"574",0,null,158,"Остров Норфолк","Норфолк аралы",0,"574"]
[45,null,"Остров Рождества","Остров Рождества","Остров Рождества",0,null,"162",0,null,45,"Остров Рождества","Остров Рождества",0,"162"]
[283,null,"ОСТРОВ СВЯТОЙ ЕЛЕНЫ","ӘУЛИЕ ЕЛЕНА","ОСТРОВ СВЯТОЙ ЕЛЕНЫ",0,null,"654",0,null,283,"ОСТРОВ СВЯТОЙ ЕЛЕНЫ","ӘУЛИЕ ЕЛЕНА",0,"654"]
[93,null,"Остров Херд и острова Макдональд","Остров Херд и острова Макдональд","Остров Херд и острова Макдональд",0,null,"334",0,null,93,"Остров Херд и острова Макдональд","Остров Херд и острова Макдональд",0,"334"]
[38,null,"Острова Кайман","Кайман аралдары","Острова Кайман",0,null,"136",0,null,38,"Острова Кайман","Кайман аралдары",0,"136"]
[51,null,"Острова Кука","Кук аралдары","Острова Кука",0,null,"184",0,null,51,"Острова Кука","Кук аралдары",0,"184"]
[137,null,"ОСТРОВА МИДУЭЙ","ОСТРОВА МИДУЭЙ","ОСТРОВА МИДУЭЙ",0,null," ",0,null,137,"ОСТРОВА МИДУЭЙ","ОСТРОВА МИДУЭЙ",0," "]
[220,null,"Острова Теркс и Кайкос","Теркс пен Кайкос аралдары","Острова Теркс и Кайкос",0,null,"796",0,null,220,"Острова Теркс и Кайкос","Теркс пен Кайкос аралдары",0,"796"]
[165,null,"ПАКИСТАН","ПӘКСТАН","ПАКИСТАН",0,null,"586",0,null,165,"ПАКИСТАН","ПӘКСТАН",0,"586"]
[164,null,"ПАЛАУ (США)","ПАЛАУ","ПАЛАУ (США)",0,null,"585",0,null,164,"ПАЛАУ (США)","ПАЛАУ",0,"585"]
[294,null,"ПАЛЕСТИНСКАЯ ТЕРРИТОРИЯ, ОККУПИРОВАННАЯ","ПАЛЕСТИНА АУМАҒЫ, БАСЫП АЛЫНҒАН","ПАЛЕСТИНСКАЯ ТЕРРИТОРИЯ, ОККУПИРОВАННАЯ",0,null,"275",0,null,294,"ПАЛЕСТИНСКАЯ ТЕРРИТОРИЯ, ОККУПИРОВАННАЯ","ПАЛЕСТИНА АУМАҒЫ, БАСЫП АЛЫНҒАН",0,"275"]
[166,null,"ПАНАМА","ПАНАМА","ПАНАМА",0,null,"591",0,null,166,"ПАНАМА","ПАНАМА",0,"591"]
[94,null,"Папский престол (Государство-город Ватикан)","Папа престолы (Мемлекет-Ватикан қаласы)","Папский престол (Государство-город Ватикан)",0,null,"336",0,null,94,"Папский престол (Государство-город Ватикан)","Папа престолы (Мемлекет-Ватикан қаласы)",0,"336"]
[167,null,"ПАПУА-НОВАЯ ГВИНЕЯ","ПАПУА-ЖАҢА ГВИНЕЯ","ПАПУА-НОВАЯ ГВИНЕЯ",0,null,"598",0,null,167,"ПАПУА-НОВАЯ ГВИНЕЯ","ПАПУА-ЖАҢА ГВИНЕЯ",0,"598"]
[168,null,"ПАРАГВАЙ","ПАРАГВАЙ","ПАРАГВАЙ",0,null,"600",0,null,168,"ПАРАГВАЙ","ПАРАГВАЙ",0,"600"]
[169,null,"ПЕРУ","ПЕРУ","ПЕРУ",0,null,"604",0,null,169,"ПЕРУ","ПЕРУ",0,"604"]
[171,null,"ПИТКЭРН (БРИТ.)","ПИТКЭРН","ПИТКЭРН (БРИТ.)",0,null,"612",0,null,171,"ПИТКЭРН (БРИТ.)","ПИТКЭРН",0,"612"]
[172,null,"ПОЛЬША","ПОЛЬША","ПОЛЬША",0,null,"616",0,null,172,"ПОЛЬША","ПОЛЬША",0,"616"]
[173,null,"ПОРТУГАЛИЯ","ПОРТУГАЛИЯ","ПОРТУГАЛИЯ",0,null,"620",0,null,173,"ПОРТУГАЛИЯ","ПОРТУГАЛИЯ",0,"620"]
[176,null,"ПУЭРТО-РИКО","ПУЭРТО-РИКО","ПУЭРТО-РИКО",0,null,"630",0,null,176,"ПУЭРТО-РИКО","ПУЭРТО-РИКО",0,"630"]
[326,null,"Республика Абхазия","Республика Абхазия","Республика Абхазия",0,null,"895",0,null,326,"Республика Абхазия","Республика Абхазия",0,"895"]
[114,null,"РЕСПУБЛИКА КОРЕЯ (ЮЖНАЯ)","КОРЕЯ, РЕСПУБЛИКА","РЕСПУБЛИКА КОРЕЯ (ЮЖНАЯ)",0,null,"410",0,null,114,"РЕСПУБЛИКА КОРЕЯ (ЮЖНАЯ)","КОРЕЯ, РЕСПУБЛИКА",0,"410"]
[140,null,"РЕСПУБЛИКА МОЛДОВА","МОЛДОВА РЕСПУБЛИКАСЫ","РЕСПУБЛИКА МОЛДОВА",0,null,"498",1,null,140,"РЕСПУБЛИКА МОЛДОВА","МОЛДОВА РЕСПУБЛИКАСЫ",1,"498"]
[178,null,"РЕЮНЬОН","РЕЮНЬОН","РЕЮНЬОН",0,null,"638",0,null,178,"РЕЮНЬОН","РЕЮНЬОН",0,"638"]
[180,null,"РОССИЙСКАЯ ФЕДЕРАЦИЯ","РЕСЕЙ ФЕДЕРАЦИЯСЫ","РОССИЙСКАЯ ФЕДЕРАЦИЯ",0,null,"643",1,null,180,"РОССИЙСКАЯ ФЕДЕРАЦИЯ","РЕСЕЙ ФЕДЕРАЦИЯСЫ",1,"643"]
[181,null,"РУАНДА","РУАНДА","РУАНДА",0,null,"646",0,null,181,"РУАНДА","РУАНДА",0,"646"]
[179,null,"РУМЫНИЯ","РУМЫНИЯ","РУМЫНИЯ",0,null,"642",0,null,179,"РУМЫНИЯ","РУМЫНИЯ",0,"642"]
[62,null,"САЛЬВАДОР","ЭЛЬ-САЛЬВАДОР","САЛЬВАДОР",0,null,"222",0,null,62,"САЛЬВАДОР","ЭЛЬ-САЛЬВАДОР",0,"222"]
[188,null,"САН-МАРИНО","САН-МАРИНО","САН-МАРИНО",0,null,"674",0,null,188,"САН-МАРИНО","САН-МАРИНО",0,"674"]
[189,null,"САН-ТОМЕ И ПРИНСИПИ","САН-ТОМЕ ЖӘНЕ ПРИНСИПИ","САН-ТОМЕ И ПРИНСИПИ",0,null,"678",0,null,189,"САН-ТОМЕ И ПРИНСИПИ","САН-ТОМЕ ЖӘНЕ ПРИНСИПИ",0,"678"]
[190,null,"САУДОВСКАЯ АРАВИЯ","САУД АРАВИЯСЫ","САУДОВСКАЯ АРАВИЯ",0,null,"682",0,null,190,"САУДОВСКАЯ АРАВИЯ","САУД АРАВИЯСЫ",0,"682"]
[206,null,"СВАЗИЛЕНД","СВАЗИЛЕНД","СВАЗИЛЕНД",0,null,"748",0,null,206,"СВАЗИЛЕНД","СВАЗИЛЕНД",0,"748"]
[160,null,"СЕВЕРНЫЕ МАРИАНСКИЕ ОСТРОВА (США)","СОЛТҮСТІК МАРИАНА АРАЛДАРЫ","СЕВЕРНЫЕ МАРИАНСКИЕ ОСТРОВА (США)",0,null,"580",0,null,160,"СЕВЕРНЫЕ МАРИАНСКИЕ ОСТРОВА (США)","СОЛТҮСТІК МАРИАНА АРАЛДАРЫ",0,"580"]
[192,null,"Сейшелы","Сейшель","Сейшелы",0,null,"690",0,null,192,"Сейшелы","Сейшель",0,"690"]
[284,null,"СЕКТОР ГАЗА (бывш. ПАЛЕСТИНСКИЕ ТЕРРИТОРИИ)","СЕКТОР ГАЗА (бывш. ПАЛЕСТИНСКИЕ ТЕРРИТОРИИ)","СЕКТОР ГАЗА (бывш. ПАЛЕСТИНСКИЕ ТЕРРИТОРИИ)",0,null,"274",0,null,284,"СЕКТОР ГАЗА (бывш. ПАЛЕСТИНСКИЕ ТЕРРИТОРИИ)","СЕКТОР ГАЗА (бывш. ПАЛЕСТИНСКИЕ ТЕРРИТОРИИ)",0,"274"]
[330,null,"Сен-Бартелеми","Сен-Бартелеми","Сен-Бартелеми",0,null,"652",0,null,330,"Сен-Бартелеми","Сен-Бартелеми",0,"652"]
[191,null,"СЕНЕГАЛ","СЕНЕГАЛ","СЕНЕГАЛ",0,null,"686",0,null,191,"СЕНЕГАЛ","СЕНЕГАЛ",0,"686"]
[329,null,"Сен-Мартен (французская часть)","Сен-Мартен (франция бөлегі)","Сен-Мартен (французская часть)",0,null,"663",0,null,329,"Сен-Мартен (французская часть)","Сен-Мартен (франция бөлегі)",0,"663"]
[{"$f":"K196","v":187},null,{"$f":"L196","v":"СЕНТ-ВИНСЕНТ И ГРЕНАДИНЫ"},{"$f":"M196","v":"СЕНТ-ВИНСЕНТ ЖӘНЕ ГРЕНАДИНДЕР"},{"$f":"CONCATENATE(IF(B196<>\"\",CONCATENATE(B196,\" \"),\"\"),IF(p_language_current_id=1,C196,IF(p_language_current_id=2,D196,IF(C196=D196,C196,CONCATENATE(D196,IF(F196=0,\" / \",CHAR(10)),C196)))),IF(G196<>\"\",CONCATENATE(\" \",G196),\"\"))","v":"СЕНТ-ВИНСЕНТ И ГРЕНАДИНЫ"},0,null,{"$f":"CONCATENATE(O196)","v":"670"},{"$f":"N196","v":0},null,187,"СЕНТ-ВИНСЕНТ И ГРЕНАДИНЫ","СЕНТ-ВИНСЕНТ ЖӘНЕ ГРЕНАДИНДЕР",0,"670"]
[183,null,"СЕНТ-КИТС И НЕВИС","СЕНТ-КИТС ЖӘНЕ НЕВИС","СЕНТ-КИТС И НЕВИС",0,null,"659",0,null,183,"СЕНТ-КИТС И НЕВИС","СЕНТ-КИТС ЖӘНЕ НЕВИС",0,"659"]
[185,null,"СЕНТ-ЛЮСИЯ","СЕНТ-ЛЮСИЯ","СЕНТ-ЛЮСИЯ",0,null,"662",0,null,185,"СЕНТ-ЛЮСИЯ","СЕНТ-ЛЮСИЯ",0,"662"]
[186,null,"Сент-Пьер и  Микелон","Сент-Пьер және  Микелон","Сент-Пьер и  Микелон",0,null,"666",0,null,186,"Сент-Пьер и  Микелон","Сент-Пьер және  Микелон",0,"666"]
[296,null,"Сербия","Сербия","Сербия",0,null,"688",0,null,296,"Сербия","Сербия",0,"688"]
[240,null,"Сербия и Черногория","Сербия и Черногория","Сербия и Черногория",0,null,"891",0,null,240,"Сербия и Черногория","Сербия и Черногория",0,"891"]
[194,null,"Сингапур","Сингапур","Сингапур",0,null,"702",0,null,194,"Сингапур","Сингапур",0,"702"]
[302,null,"Синт-Мартен (нидерландская часть)","Синт-Мартен (нидерланд болігі)","Синт-Мартен (нидерландская часть)",0,null,"534",0,null,302,"Синт-Мартен (нидерландская часть)","Синт-Мартен (нидерланд болігі)",0,"534"]
[209,null,"СИРИЯ","СИРИЯ АРАБ РЕСПУБЛИКАСЫ","СИРИЯ",0,null,"760",0,null,209,"СИРИЯ","СИРИЯ АРАБ РЕСПУБЛИКАСЫ",0,"760"]
[195,null,"СЛОВАКИЯ","СЛОВАКИЯ","СЛОВАКИЯ",0,null,"703",0,null,195,"СЛОВАКИЯ","СЛОВАКИЯ",0,"703"]
[197,null,"СЛОВЕНИЯ","СЛОВЕНИЯ","СЛОВЕНИЯ",0,null,"705",0,null,197,"СЛОВЕНИЯ","СЛОВЕНИЯ",0,"705"]
[230,null,"Соединенные Штаты","Құрама Штаттар","Соединенные Штаты",0,null,"840",0,null,230,"Соединенные Штаты","Құрама Штаттар",0,"840"]
[226,null,"Соединеное Королевство","Құрама Королдігі","Соединеное Королевство",0,null,"826",0,null,226,"Соединеное Королевство","Құрама Королдігі",0,"826"]
[27,null,"СОЛОМОНОВЫ ОСТРОВА","СОЛОМОН АРАЛДАРЫ","СОЛОМОНОВЫ ОСТРОВА",0,null,"090",0,null,27,"СОЛОМОНОВЫ ОСТРОВА","СОЛОМОН АРАЛДАРЫ",0,"090"]
[198,null,"СОМАЛИ","СОМАЛИ","СОМАЛИ",0,null,"706",0,null,198,"СОМАЛИ","СОМАЛИ",0,"706"]
[203,null,"Судан","Судан","Судан",0,null,"729",0,null,203,"Судан","Судан",0,"729"]
[204,null,"СУРИНАМ","СУРИНАМ","СУРИНАМ",0,null,"740",0,null,204,"СУРИНАМ","СУРИНАМ",0,"740"]
[193,null,"СЬЕРРА-ЛЕОНЕ","СЬЕРРА-ЛЕОНЕ","СЬЕРРА-ЛЕОНЕ",0,null,"694",0,null,193,"СЬЕРРА-ЛЕОНЕ","СЬЕРРА-ЛЕОНЕ",0,"694"]
[210,null,"ТАДЖИКИСТАН","ТӘЖІКСТАН","ТАДЖИКИСТАН",0,null,"762",1,null,210,"ТАДЖИКИСТАН","ТӘЖІКСТАН",1,"762"]
[211,null,"ТАИЛАНД","ТАИЛАНД","ТАИЛАНД",0,null,"764",0,null,211,"ТАИЛАНД","ТАИЛАНД",0,"764"]
[44,null,"Тайвань (в составе Китая)","Тайвань","Тайвань (в составе Китая)",0,null,"158",0,null,44,"Тайвань (в составе Китая)","Тайвань",0,"158"]
[229,null,"Танзания, объединенная республика","Танзания, құрама республикасы","Танзания, объединенная республика",0,null,"834",0,null,229,"Танзания, объединенная республика","Танзания, құрама республикасы",0,"834"]
[175,null,"Тимор Лоросае","Тимор Лоросае","Тимор Лоросае",0,null,"626",0,null,175,"Тимор Лоросае","Тимор Лоросае",0,"626"]
[331,null,"Тимор-Лешти","Тимор-Лешти","Тимор-Лешти",0,null,"626",0,null,331,"Тимор-Лешти","Тимор-Лешти",0,"626"]
[212,null,"ТОГО","ТОГО","ТОГО",0,null,"768",0,null,212,"ТОГО","ТОГО",0,"768"]
[213,null,"ТОКЕЛАУ (ЮНИОН) (НОВАЯ ЗЕЛАНДИЯ)","ТОКЕЛАУ","ТОКЕЛАУ (ЮНИОН) (НОВАЯ ЗЕЛАНДИЯ)",0,null,"772",0,null,213,"ТОКЕЛАУ (ЮНИОН) (НОВАЯ ЗЕЛАНДИЯ)","ТОКЕЛАУ",0,"772"]
[214,null,"ТОНГА","ТОНГА","ТОНГА",0,null,"776",0,null,214,"ТОНГА","ТОНГА",0,"776"]
[215,null,"ТРИНИДАД И ТОБАГО","ТРИНИДАД ЖӘНЕ ТОБАГО","ТРИНИДАД И ТОБАГО",0,null,"780",0,null,215,"ТРИНИДАД И ТОБАГО","ТРИНИДАД ЖӘНЕ ТОБАГО",0,"780"]
[221,null,"ТУВАЛУ","ТУВАЛУ","ТУВАЛУ",0,null,"798",0,null,221,"ТУВАЛУ","ТУВАЛУ",0,"798"]
[217,null,"ТУНИС","ТУНИС","ТУНИС",0,null,"788",0,null,217,"ТУНИС","ТУНИС",0,"788"]
[219,null,"ТУРКМЕНИСТАН","ТҮРКМЕНСТАН","ТУРКМЕНИСТАН",0,null,"795",1,null,219,"ТУРКМЕНИСТАН","ТҮРКМЕНСТАН",1,"795"]
[218,null,"ТУРЦИЯ","ТҮРКИЯ","ТУРЦИЯ",0,null,"792",0,null,218,"ТУРЦИЯ","ТҮРКИЯ",0,"792"]
[222,null,"УГАНДА","УГАНДА","УГАНДА",0,null,"800",0,null,222,"УГАНДА","УГАНДА",0,"800"]
[234,null,"УЗБЕКИСТАН","ӨЗБЕКСТАН","УЗБЕКИСТАН",0,null,"860",1,null,234,"УЗБЕКИСТАН","ӨЗБЕКСТАН",1,"860"]
[223,null,"УКРАИНА","УКРАИНА","УКРАИНА",0,null,"804",1,null,223,"УКРАИНА","УКРАИНА",1,"804"]
[237,null,"Уоллис и Футуна","Уоллис пен Футуна","Уоллис и Футуна",0,null,"876",0,null,237,"Уоллис и Футуна","Уоллис пен Футуна",0,"876"]
[233,null,"УРУГВАЙ","УРУГВАЙ","УРУГВАЙ",0,null,"858",0,null,233,"УРУГВАЙ","УРУГВАЙ",0,"858"]
[236,null,"УЭЙК","УЭЙК","УЭЙК",0,null,"872",0,null,236,"УЭЙК","УЭЙК",0,"872"]
[67,null,"ФАРЕРСКИЕ ОСТРОВА (ДАНИЯ)","ФАРЕР АРАЛДАРЫ","ФАРЕРСКИЕ ОСТРОВА (ДАНИЯ)",0,null,"234",0,null,67,"ФАРЕРСКИЕ ОСТРОВА (ДАНИЯ)","ФАРЕР АРАЛДАРЫ",0,"234"]
[69,null,"ФИДЖИ","ФИДЖИ","ФИДЖИ",0,null,"242",0,null,69,"ФИДЖИ","ФИДЖИ",0,"242"]
[170,null,"ФИЛИППИНЫ","ФИЛИППИН","ФИЛИППИНЫ",0,null,"608",0,null,170,"ФИЛИППИНЫ","ФИЛИППИН",0,"608"]
[70,null,"ФИНЛЯНДИЯ","ФИНЛЯНДИЯ","ФИНЛЯНДИЯ",0,null,"246",0,null,70,"ФИНЛЯНДИЯ","ФИНЛЯНДИЯ",0,"246"]
[68,null,"ФОЛКЛЕНДСКИЕ (Мальвинские) ОСТРОВА (Брит.)","Фолкленд (Мальвин) аралдары","ФОЛКЛЕНДСКИЕ (Мальвинские) ОСТРОВА (Брит.)",0,null,"238",0,null,68,"ФОЛКЛЕНДСКИЕ (Мальвинские) ОСТРОВА (Брит.)","Фолкленд (Мальвин) аралдары",0,"238"]
[71,null,"ФРАНЦИЯ","ФРАНЦИЯ","ФРАНЦИЯ",0,null,"250",0,null,71,"ФРАНЦИЯ","ФРАНЦИЯ",0,"250"]
[73,null,"ФРАНЦУЗСКАЯ ПОЛИНЕЗИЯ","ФРАНЦУЗ ПОЛИНЕЗИЯСЫ","ФРАНЦУЗСКАЯ ПОЛИНЕЗИЯ",0,null,"258",0,null,73,"ФРАНЦУЗСКАЯ ПОЛИНЕЗИЯ","ФРАНЦУЗ ПОЛИНЕЗИЯСЫ",0,"258"]
[74,null,"ФРАНЦУЗСКИЕ ЮЖНЫЕ ТЕРРИТОРИИ","ФРАНЦУЗСКИЕ ЮЖНЫЕ ТЕРРИТОРИИ","ФРАНЦУЗСКИЕ ЮЖНЫЕ ТЕРРИТОРИИ",0,null,"260",0,null,74,"ФРАНЦУЗСКИЕ ЮЖНЫЕ ТЕРРИТОРИИ","ФРАНЦУЗСКИЕ ЮЖНЫЕ ТЕРРИТОРИИ",0,"260"]
[53,null,"ХОРВАТИЯ","ХОРВАТИЯ","ХОРВАТИЯ",0,null,"191",0,null,53,"ХОРВАТИЯ","ХОРВАТИЯ",0,"191"]
[39,null,"Центрально-африканская республика","Орталық Африка республикасы","Центрально-африканская республика",0,null,"140",0,null,39,"Центрально-африканская республика","Орталық Африка республикасы",0,"140"]
[41,null,"ЧАД","ЧАД","ЧАД",0,null,"148",0,null,41,"ЧАД","ЧАД",0,"148"]
[297,null,"Черногория","Черногория","Черногория",0,null,"499",0,null,297,"Черногория","Черногория",0,"499"]
[56,null,"ЧЕХИЯ","ЧЕХ РЕСПУБЛИКАСЫ","ЧЕХИЯ",0,null,"203",0,null,56,"ЧЕХИЯ","ЧЕХ РЕСПУБЛИКАСЫ",0,"203"]
[42,null,"ЧИЛИ","ЧИЛИ","ЧИЛИ",0,null,"152",0,null,42,"ЧИЛИ","ЧИЛИ",0,"152"]
[208,null,"ШВЕЙЦАРИЯ","ШВЕЙЦАРИЯ","ШВЕЙЦАРИЯ",0,null,"756",0,null,208,"ШВЕЙЦАРИЯ","ШВЕЙЦАРИЯ",0,"756"]
[207,null,"ШВЕЦИЯ","ШВЕЦИЯ","ШВЕЦИЯ",0,null,"752",0,null,207,"ШВЕЦИЯ","ШВЕЦИЯ",0,"752"]
[205,null,"Шпицберген и Ян Майен","Шпицберген мен Ян Майен","Шпицберген и Ян Майен",0,null,"744",0,null,205,"Шпицберген и Ян Майен","Шпицберген мен Ян Майен",0,"744"]
[40,null,"ШРИ-ЛАНКА","ШРИ-ЛАНКА","ШРИ-ЛАНКА",0,null,"144",0,null,40,"ШРИ-ЛАНКА","ШРИ-ЛАНКА",0,"144"]
[61,null,"ЭКВАДОР","ЭКВАДОР","ЭКВАДОР",0,null,"218",0,null,61,"ЭКВАДОР","ЭКВАДОР",0,"218"]
[63,null,"ЭКВАТОРИАЛЬНАЯ ГВИНЕЯ","ЭКВАТОРИАЛДЫҚ ГВИНЕЯ","ЭКВАТОРИАЛЬНАЯ ГВИНЕЯ",0,null,"226",0,null,63,"ЭКВАТОРИАЛЬНАЯ ГВИНЕЯ","ЭКВАТОРИАЛДЫҚ ГВИНЕЯ",0,"226"]
[292,null,"ЭЛАНДСКИЕ ОСТРОВА","АЛАНД АРАЛДАРЫ","ЭЛАНДСКИЕ ОСТРОВА",0,null,"248",0,null,292,"ЭЛАНДСКИЕ ОСТРОВА","АЛАНД АРАЛДАРЫ",0,"248"]
[65,null,"ЭРИТРЕЯ","ЭРИТРЕЯ","ЭРИТРЕЯ",0,null,"232",0,null,65,"ЭРИТРЕЯ","ЭРИТРЕЯ",0,"232"]
[66,null,"ЭСТОНИЯ","ЭСТОНИЯ","ЭСТОНИЯ",0,null,"233",0,null,66,"ЭСТОНИЯ","ЭСТОНИЯ",0,"233"]
[64,null,"ЭФИОПИЯ","ЭФИОПИЯ","ЭФИОПИЯ",0,null,"231",0,null,64,"ЭФИОПИЯ","ЭФИОПИЯ",0,"231"]
[199,null,"Южная Африка","Оңтүстік Африка","Южная Африка",0,null,"710",0,null,199,"Южная Африка","Оңтүстік Африка",0,"710"]
[295,null,"ЮЖНАЯ ДЖОРДЖИЯ И ЮЖНЫЕ САНДВИЧЕВЫ ОСТРОВА","ЮЖНАЯ ДЖОРДЖИЯ И ЮЖНЫЕ САНДВИЧЕВЫ ОСТРОВА","ЮЖНАЯ ДЖОРДЖИЯ И ЮЖНЫЕ САНДВИЧЕВЫ ОСТРОВА",0,null,"239",0,null,295,"ЮЖНАЯ ДЖОРДЖИЯ И ЮЖНЫЕ САНДВИЧЕВЫ ОСТРОВА","ЮЖНАЯ ДЖОРДЖИЯ И ЮЖНЫЕ САНДВИЧЕВЫ ОСТРОВА",0,"239"]
[{"$f":"K260","v":327},null,{"$f":"L260","v":"Южный Судан"},"Оңтүстік Судан",{"$f":"CONCATENATE(IF(B260<>\"\",CONCATENATE(B260,\" \"),\"\"),IF(p_language_current_id=1,C260,IF(p_language_current_id=2,D260,IF(C260=D260,C260,CONCATENATE(D260,IF(F260=0,\" / \",CHAR(10)),C260)))),IF(G260<>\"\",CONCATENATE(\" \",G260),\"\"))","v":"Южный Судан"},0,null,{"$f":"CONCATENATE(O260)","v":"728"},{"$f":"N260","v":0},null,327,"Южный Судан","Оңтүстік Судан",0,"728"]
[{"$f":"K261","v":107},null,"ЯМАЙКА","ЯМАЙКА",{"$f":"CONCATENATE(IF(B261<>\"\",CONCATENATE(B261,\" \"),\"\"),IF(p_language_current_id=1,C261,IF(p_language_current_id=2,D261,IF(C261=D261,C261,CONCATENATE(D261,IF(F261=0,\" / \",CHAR(10)),C261)))),IF(G261<>\"\",CONCATENATE(\" \",G261),\"\"))","v":"ЯМАЙКА"},0,null,{"$f":"CONCATENATE(O261)","v":"388"},{"$f":"N261","v":0},null,107,"ЯМАЙКА","ЯМАЙКА",0,"388"]
[{"$f":"K262","v":108},null,"ЯПОНИЯ","ЖАПОНИЯ",{"$f":"CONCATENATE(IF(B262<>\"\",CONCATENATE(B262,\" \"),\"\"),IF(p_language_current_id=1,C262,IF(p_language_current_id=2,D262,IF(C262=D262,C262,CONCATENATE(D262,IF(F262=0,\" / \",CHAR(10)),C262)))),IF(G262<>\"\",CONCATENATE(\" \",G262),\"\"))","v":"ЯПОНИЯ"},0,null,{"$f":"CONCATENATE(O262)","v":"392"},{"$f":"N262","v":0},null,108,"ЯПОНИЯ","ЖАПОНИЯ",0,"392"]